{"text_format":"3","workbook":"xlsx","n_sheets":15,"sheets":["Način korištenja ovog predloška","Popis učenika","Kolovoz","Rujan","Listopad","Studeni","Prosinac","Siječanj","Veljača","Ožujak","Travanj","Svibanj","Lipanj","Srpanj","Izvješće o nazočnosti učenika"],"not_rendered":{"defined_names":16},"read":"whole","date_system":"1900"}

{"sheet":"Način korištenja ovog predloška","index":0,"n_rows":25,"n_cols":5,"rows_kept":25,"merged":[[3,2,3,12],[4,4,4,12],[5,4,5,12],[6,4,6,12],[7,4,7,12],[8,4,8,7],[11,2,11,12],[12,4,12,12],[13,4,13,12],[14,4,14,12],[17,2,17,12],[18,4,18,12],[19,4,19,12],[20,4,20,12],[21,4,21,12],[24,2,24,12]]}
["NAČIN KORIŠTENJA OVOG PREDLOŠKA"]
[]
[null,"GDJE POČETI?"]
[null,null,"Prije no što počnete evidentirati nazočnost učenika morate učiniti nekoliko koraka:"]
[{"$nulls":3},"1.","Dodavanje učenika: na listu Popis učenika unesite podatke o svakom učeniku, primjerice nazive skrbnika i podatke za kontakt. Identifikacijski broj učenika važna je stavka jer predstavlja jedinstveni identifikator za svakog učenika i koristi se u cijeloj radnoj knjizi za razne padajuće popise s identifikacijskim brojem učenika da bi se pojednostavnio unos podataka. Podaci uneseni na popis studenata koriste se i na drugim listovima, primjerice u izvješću o nazočnosti učenika i u mjesečnim evidencijama nazočnosti."]
[{"$nulls":3},"2.","Promjena školske kalendarske godine: na listu Kolovoz za nazočnost kliknite kontrolu strelice za pomicanje na gornjem desnom rubu zaglavlja da biste ažurirali školsku kalendarsku godinu. Tom će se promjenom ažurirati zaglavlje na svim mjesečnim zapisima o nazočnosti u cijeloj radnoj knjizi. (Imajte na umu da se gumb strelice za pomicanje neće ispisati.)"]
[{"$nulls":3},"3.","(Neobavezno) Izmjena boja u cijeloj radnoj knjizi: najprije dođite na posljednji list, Izvješće o nazočnosti učenika, a zatim na kartici Pregled u grupi Promjene kliknite Ukloni zaštitu lista. Zatim na kartici Izgled stranice u grupi Teme kliknite Boje i iz galerije boja odaberite neki drugi skup boja teme. Kada promijenite boje i druge aspekte teme, vratite se na list Izvješće o nazočnosti učenika i na kartici Pregled u grupi Promjene kliknite Zaštiti list, a zatim kliknite U redu."]
[{"$nulls":4},"Savjet: Stvorite prilagođeni skup boja teme u skladu s bojama vaše škole! Da biste to učinili, na kartici Izgled stranice u grupi Teme kliknite Boje , a zatim pri dnu galerije boja kliknite Stvori nove boje teme. Dodatne informacije o stvaranju prilagođenog skupa boja potražite u sljedećoj temi pomoći: "]
[{"$nulls":4},"Prilagodite temu dokumenta."]
[]
[null,"DODAO SAM UČENIKE. ŠTO SAD?"]
[null,null,"Nakon unosa učenika na list Popis učenika možete početi evidentirati njihovu nazočnost za školsku godinu slijedeći ove korake:"]
[{"$nulls":3},"1.","Da biste u evidenciju nazočnosti dodali studente, kliknite unutar ćelije ispod stupca Identifikacijski broj učenika i odaberite identifikacijski broj s popisa. Kada odaberete identifikacijski broj, automatski će se prikazati ime učenika. "]
[{"$nulls":4},"Savjet: spremite korake unosa podataka! Kada dodate učenike za jedan mjesec, odaberite unesene identifikacijske brojeve učenika, kopirajte ih, a zatim ih zalijepite u stupac Identifikacijski broj učenika za preostale mjesece. "]
[{"$nulls":3},"2.","Zatim unesite podatke o njihovoj nazočnosti za svaki dan u mjesecu pomoću vrsta nazočnosti navedenih u opisu boja. Nazočnost učenika automatski se izračunava prema vrsti nazočnosti za svakog učenika u stupcu s ukupnim zbrojem. Ukupan broj izostanaka za svaki dan automatski se izračunava na dnu tablice u retku s ukupnim zbrojem."]
[]
[null,"KAKO DODATI JOŠ UČENIKA U MJESEČNU EVIDENCIJU NAZOČNOSTI?"]
[null,null,"Listovi mjesečne evidencija nazočnosti i popis učenika tablice su programa Excel. Da biste dodali nove retke u bilo koju tablicu programa Excel, učinite nešto od ovog:"]
[{"$nulls":3},"● ","Ako tablica nema redak s ukupnim zbrojem, počnite upisivati ispod tablice i ona će se automatski proširiti kada pritisnete tipku Enter ili Tab."]
[{"$nulls":3},"● ","Postavite pokazivač ćelije u posljednju ćeliju iznad retka s ukupnim zbrojem, primjerice u ćeliju Dani izostanka za posljednjeg učenika, a zatim pritisnite tipku Tab."]
[{"$nulls":3},"● ","Desnom tipkom miša kliknite unutar tablice i na skočnom izborniku pokažite na Umetni, a zatim kliknite Reci tablice iznad ili Reci tablice ispod. "]
[{"$nulls":3},"● ","U donjem desnom kutu tablice postavite pokazivač miša na ručicu za promjenu veličine tablice i povucite prema dolje da biste povećali broj dostupnih redaka tablice"]
[]
[null,"MOGU LI POGLEDATI PODATKE O UČENIKOVOJ NAZOČNOSTI ZA CIJELU ŠKOLSKU GODINU?"]
[null,null,"Posljednji list u ovoj radnoj knjizi, Izvješće o nazočnosti učenika, prati godišnju nazočnost do trenutnog datuma. Da biste pogledali izvješće za određenog učenika, kliknite ćeliju ispod ćelije Identifikacijski broj učenika, a zatim odaberite identifikacijski broj s padajućeg popisa. Podaci koje ste za odabranog učenika prethodno unijeli na list Popis učenika automatski će se prikazati. Imajte na umu da prilikom prvog korištenja izvješća o nazočnosti učenika morate unijeti školu, učitelja i sobu. Ti se podaci neće promijeniti ako odaberete nekog drugog učenika. "]

{"sheet":"Popis učenika","index":1,"n_rows":8,"n_cols":19,"rows_kept":8}
["POPIS UČENIKA"]
[]
[null,"Identifikacijski broj učenika","Ime učenika","Prezime učenika","Spol","Datum rođenja","Roditelj ili skrbnik 1","Odnos s roditeljem/skrbnikom 1","Službeni broj roditelja/skrbnika 1","Kućni broj roditelja/skrbnika 1","Roditelj/skrbnik 2","Odnos s roditeljem/skrbnikom 2","Službeni broj roditelja/skrbnika 2","Kućni broj roditelja/skrbnika 2","Kontakt za hitne slučajeve","Srodstvo s kontaktom za hitne slučajeve","Službeni broj kontakta za hitne slučajeve","Kućni broj kontakta za hitne slučajeve","Ime i prezime učenika"]
[null,"S001","Neven","Tomić","M","1997-03-28","Dragan","Tomić",1235550134,2345550134,"Dragan Tomić","Otac",1235550134,2345550134,"Tihomir Sasić","Djed",7895550189,7895550134,{"$f":"PopisUčenika[[#This Row],[Ime učenika]]&\" \" &PopisUčenika[[#This Row],[Prezime učenika]]","v":"Neven Tomić"}]
[null,"S002","Učenik",2,{"$nulls":14},{"$f":"PopisUčenika[[#This Row],[Ime učenika]]&\" \" &PopisUčenika[[#This Row],[Prezime učenika]]","v":"Učenik 2"}]
[null,"S003","Učenik",3,{"$nulls":14},{"$f":"PopisUčenika[[#This Row],[Ime učenika]]&\" \" &PopisUčenika[[#This Row],[Prezime učenika]]","v":"Učenik 3"}]
[null,"S004","Učenik",4,{"$nulls":14},{"$f":"PopisUčenika[[#This Row],[Ime učenika]]&\" \" &PopisUčenika[[#This Row],[Prezime učenika]]","v":"Učenik 4"}]
[null,"S005","Učenik",5,{"$nulls":14},{"$f":"PopisUčenika[[#This Row],[Ime učenika]]&\" \" &PopisUčenika[[#This Row],[Prezime učenika]]","v":"Učenik 5"}]

{"sheet":"Kolovoz","index":2,"n_rows":12,"n_cols":39,"rows_kept":12,"merged":[[4,34,4,38]]}
["EVIDENCIJA NAZOČNOSTI UČENIKA",{"$nulls":36},"Početak školske godine:",2012]
[]
[null,null,"OPIS BOJA ","K","Kašnjenje",null,null,"O","Opravdani",null,null,"N","Neopravdani",null,null,"P","Prisutan",null,null,"Ne","Nema škole"]
[]
[null,{"$f":"DATE(KalendarskaGodina,8,1)","v":"2012-08-01"},null,{"$f":"TEXT(WEEKDAY(DATE(KalendarskaGodina,8,1),1),\"aaa\")","v":"sri"},{"$f":"TEXT(WEEKDAY(DATE(KalendarskaGodina,8,2),1),\"aaa\")","v":"čet"},{"$f":"TEXT(WEEKDAY(DATE(KalendarskaGodina,8,3),1),\"aaa\")","v":"pet"},{"$f":"TEXT(WEEKDAY(DATE(KalendarskaGodina,8,4),1),\"aaa\")","v":"sub"},{"$f":"TEXT(WEEKDAY(DATE(KalendarskaGodina,8,5),1),\"aaa\")","v":"ned"},{"$f":"TEXT(WEEKDAY(DATE(KalendarskaGodina,8,6),1),\"aaa\")","v":"pon"},{"$f":"TEXT(WEEKDAY(DATE(KalendarskaGodina,8,7),1),\"aaa\")","v":"uto"},{"$f":"TEXT(WEEKDAY(DATE(KalendarskaGodina,8,8),1),\"aaa\")","v":"sri"},{"$f":"TEXT(WEEKDAY(DATE(KalendarskaGodina,8,9),1),\"aaa\")","v":"čet"},{"$f":"TEXT(WEEKDAY(DATE(KalendarskaGodina,8,10),1),\"aaa\")","v":"pet"},{"$f":"TEXT(WEEKDAY(DATE(KalendarskaGodina,8,11),1),\"aaa\")","v":"sub"},{"$f":"TEXT(WEEKDAY(DATE(KalendarskaGodina,8,12),1),\"aaa\")","v":"ned"},{"$f":"TEXT(WEEKDAY(DATE(KalendarskaGodina,8,13),1),\"aaa\")","v":"pon"},{"$f":"TEXT(WEEKDAY(DATE(KalendarskaGodina,8,14),1),\"aaa\")","v":"uto"},{"$f":"TEXT(WEEKDAY(DATE(KalendarskaGodina,8,15),1),\"aaa\")","v":"sri"},{"$f":"TEXT(WEEKDAY(DATE(KalendarskaGodina,8,16),1),\"aaa\")","v":"čet"},{"$f":"TEXT(WEEKDAY(DATE(KalendarskaGodina,8,17),1),\"aaa\")","v":"pet"},{"$f":"TEXT(WEEKDAY(DATE(KalendarskaGodina,8,18),1),\"aaa\")","v":"sub"},{"$f":"TEXT(WEEKDAY(DATE(KalendarskaGodina,8,19),1),\"aaa\")","v":"ned"},{"$f":"TEXT(WEEKDAY(DATE(KalendarskaGodina,8,20),1),\"aaa\")","v":"pon"},{"$f":"TEXT(WEEKDAY(DATE(KalendarskaGodina,8,21),1),\"aaa\")","v":"uto"},{"$f":"TEXT(WEEKDAY(DATE(KalendarskaGodina,8,22),1),\"aaa\")","v":"sri"},{"$f":"TEXT(WEEKDAY(DATE(KalendarskaGodina,8,23),1),\"aaa\")","v":"čet"},{"$f":"TEXT(WEEKDAY(DATE(KalendarskaGodina,8,24),1),\"aaa\")","v":"pet"},{"$f":"TEXT(WEEKDAY(DATE(KalendarskaGodina,8,25),1),\"aaa\")","v":"sub"},{"$f":"TEXT(WEEKDAY(DATE(KalendarskaGodina,8,26),1),\"aaa\")","v":"ned"},{"$f":"TEXT(WEEKDAY(DATE(KalendarskaGodina,8,27),1),\"aaa\")","v":"pon"},{"$f":"TEXT(WEEKDAY(DATE(KalendarskaGodina,8,28),1),\"aaa\")","v":"uto"},{"$f":"TEXT(WEEKDAY(DATE(KalendarskaGodina,8,29),1),\"aaa\")","v":"sri"},{"$f":"TEXT(WEEKDAY(DATE(KalendarskaGodina,8,30),1),\"aaa\")","v":"čet"},{"$f":"TEXT(WEEKDAY(DATE(KalendarskaGodina,8,31),1),\"aaa\")","v":"pet"},"Ukupno"]
[null,"Identifikacijski broj učenika","Ime učenika","1","2","3","4","5","6","7","8","9","10","11","12","13","14","15","16","17","18","19","20","21","22","23","24","25","26","27","28","29","30","31","K","O","N","P","Dani izostanaka"]
[null,"S001",{"$f":"IFERROR(VLOOKUP(NazočnostZaKolovoz[[#This Row],[Identifikacijski broj učenika]],PopisUčenika[],18,FALSE),\"\")","v":"Neven Tomić"},"P","P","K","K","P","Ne","Ne","P","P","O","P","P","Ne","Ne","P","P","P","P","P","Ne","Ne","P","P","P","P","P","Ne","Ne","P","P","P",{"$f":"COUNTIF(NazočnostZaKolovoz[[#This Row],[1]:[31]],Šifra1)","v":2},{"$f":"COUNTIF(NazočnostZaKolovoz[[#This Row],[1]:[31]],Šifra2)","v":1},{"$f":"COUNTIF(NazočnostZaKolovoz[[#This Row],[1]:[31]],Šifra3)","v":0},{"$f":"COUNTIF(NazočnostZaKolovoz[[#This Row],[1]:[31]],Šifra4)","v":20},{"$f":"SUM(NazočnostZaKolovoz[[#This Row],[O]:[N]])","v":1}]
[null,"S002",{"$f":"IFERROR(VLOOKUP(NazočnostZaKolovoz[[#This Row],[Identifikacijski broj učenika]],PopisUčenika[],18,FALSE),\"\")","v":"Učenik 2"},"P","N","P","P","P","Ne","Ne","P","O","O","O","O","Ne","Ne","P","P","P","P","P","Ne","Ne","P","P","P","K","K","Ne","Ne","P","P","P",{"$f":"COUNTIF(NazočnostZaKolovoz[[#This Row],[1]:[31]],Šifra1)","v":2},{"$f":"COUNTIF(NazočnostZaKolovoz[[#This Row],[1]:[31]],Šifra2)","v":4},{"$f":"COUNTIF(NazočnostZaKolovoz[[#This Row],[1]:[31]],Šifra3)","v":1},{"$f":"COUNTIF(NazočnostZaKolovoz[[#This Row],[1]:[31]],Šifra4)","v":16},{"$f":"SUM(NazočnostZaKolovoz[[#This Row],[O]:[N]])","v":5}]
[null,"S003",{"$f":"IFERROR(VLOOKUP(NazočnostZaKolovoz[[#This Row],[Identifikacijski broj učenika]],PopisUčenika[],18,FALSE),\"\")","v":"Učenik 3"},"P","O","P","P","P","Ne","Ne","P","P","N","P","P","Ne","Ne","P","P","P","P","P","Ne","Ne","P","P","O","O","P","Ne","Ne","P","P","P",{"$f":"COUNTIF(NazočnostZaKolovoz[[#This Row],[1]:[31]],Šifra1)","v":0},{"$f":"COUNTIF(NazočnostZaKolovoz[[#This Row],[1]:[31]],Šifra2)","v":3},{"$f":"COUNTIF(NazočnostZaKolovoz[[#This Row],[1]:[31]],Šifra3)","v":1},{"$f":"COUNTIF(NazočnostZaKolovoz[[#This Row],[1]:[31]],Šifra4)","v":19},{"$f":"SUM(NazočnostZaKolovoz[[#This Row],[O]:[N]])","v":4}]
[null,"S004",{"$f":"IFERROR(VLOOKUP(NazočnostZaKolovoz[[#This Row],[Identifikacijski broj učenika]],PopisUčenika[],18,FALSE),\"\")","v":"Učenik 4"},"P","P","P","P","P","Ne","Ne","P","P","P","P","P","Ne","Ne","P","P","P","P","P","Ne","Ne","P","N","P","P","O","Ne","Ne","P","O","P",{"$f":"COUNTIF(NazočnostZaKolovoz[[#This Row],[1]:[31]],Šifra1)","v":0},{"$f":"COUNTIF(NazočnostZaKolovoz[[#This Row],[1]:[31]],Šifra2)","v":2},{"$f":"COUNTIF(NazočnostZaKolovoz[[#This Row],[1]:[31]],Šifra3)","v":1},{"$f":"COUNTIF(NazočnostZaKolovoz[[#This Row],[1]:[31]],Šifra4)","v":20},{"$f":"SUM(NazočnostZaKolovoz[[#This Row],[O]:[N]])","v":3}]
[null,"S005",{"$f":"IFERROR(VLOOKUP(NazočnostZaKolovoz[[#This Row],[Identifikacijski broj učenika]],PopisUčenika[],18,FALSE),\"\")","v":"Učenik 5"},"P","P","P","P","P","Ne","Ne","P","P","P","P","P","Ne","Ne","P","P","P","P","P","Ne","Ne","P","P","P","P","P","Ne","Ne","P","P","P",{"$f":"COUNTIF(NazočnostZaKolovoz[[#This Row],[1]:[31]],Šifra1)","v":0},{"$f":"COUNTIF(NazočnostZaKolovoz[[#This Row],[1]:[31]],Šifra2)","v":0},{"$f":"COUNTIF(NazočnostZaKolovoz[[#This Row],[1]:[31]],Šifra3)","v":0},{"$f":"COUNTIF(NazočnostZaKolovoz[[#This Row],[1]:[31]],Šifra4)","v":23},{"$f":"SUM(NazočnostZaKolovoz[[#This Row],[O]:[N]])","v":0}]
[null,null,"Ukupan broj dana izostanaka",{"$f":"COUNTIF(NazočnostZaKolovoz[1],\"N\")+COUNTIF(NazočnostZaKolovoz[1],\"O\")","v":0},{"$f":"COUNTIF(NazočnostZaKolovoz[2],\"N\")+COUNTIF(NazočnostZaKolovoz[2],\"O\")","v":2},{"$f":"COUNTIF(NazočnostZaKolovoz[3],\"N\")+COUNTIF(NazočnostZaKolovoz[3],\"O\")","v":0},{"$f":"COUNTIF(NazočnostZaKolovoz[4],\"N\")+COUNTIF(NazočnostZaKolovoz[4],\"O\")","v":0},{"$f":"COUNTIF(NazočnostZaKolovoz[5],\"N\")+COUNTIF(NazočnostZaKolovoz[5],\"O\")","v":0},{"$f":"COUNTIF(NazočnostZaKolovoz[6],\"N\")+COUNTIF(NazočnostZaKolovoz[6],\"O\")","v":0},{"$f":"COUNTIF(NazočnostZaKolovoz[7],\"N\")+COUNTIF(NazočnostZaKolovoz[7],\"O\")","v":0},{"$f":"COUNTIF(NazočnostZaKolovoz[8],\"N\")+COUNTIF(NazočnostZaKolovoz[8],\"O\")","v":0},{"$f":"COUNTIF(NazočnostZaKolovoz[9],\"N\")+COUNTIF(NazočnostZaKolovoz[9],\"O\")","v":1},{"$f":"COUNTIF(NazočnostZaKolovoz[10],\"N\")+COUNTIF(NazočnostZaKolovoz[10],\"O\")","v":3},{"$f":"COUNTIF(NazočnostZaKolovoz[11],\"N\")+COUNTIF(NazočnostZaKolovoz[11],\"O\")","v":1},{"$f":"COUNTIF(NazočnostZaKolovoz[12],\"N\")+COUNTIF(NazočnostZaKolovoz[12],\"O\")","v":1},{"$f":"COUNTIF(NazočnostZaKolovoz[13],\"N\")+COUNTIF(NazočnostZaKolovoz[13],\"O\")","v":0},{"$f":"COUNTIF(NazočnostZaKolovoz[14],\"N\")+COUNTIF(NazočnostZaKolovoz[14],\"O\")","v":0},{"$f":"COUNTIF(NazočnostZaKolovoz[15],\"N\")+COUNTIF(NazočnostZaKolovoz[15],\"O\")","v":0},{"$f":"COUNTIF(NazočnostZaKolovoz[16],\"N\")+COUNTIF(NazočnostZaKolovoz[16],\"O\")","v":0},{"$f":"COUNTIF(NazočnostZaKolovoz[17],\"N\")+COUNTIF(NazočnostZaKolovoz[17],\"O\")","v":0},{"$f":"COUNTIF(NazočnostZaKolovoz[18],\"N\")+COUNTIF(NazočnostZaKolovoz[18],\"O\")","v":0},{"$f":"COUNTIF(NazočnostZaKolovoz[19],\"N\")+COUNTIF(NazočnostZaKolovoz[19],\"O\")","v":0},{"$f":"COUNTIF(NazočnostZaKolovoz[20],\"N\")+COUNTIF(NazočnostZaKolovoz[20],\"O\")","v":0},{"$f":"COUNTIF(NazočnostZaKolovoz[21],\"N\")+COUNTIF(NazočnostZaKolovoz[21],\"O\")","v":0},{"$f":"COUNTIF(NazočnostZaKolovoz[22],\"N\")+COUNTIF(NazočnostZaKolovoz[22],\"O\")","v":0},{"$f":"COUNTIF(NazočnostZaKolovoz[23],\"N\")+COUNTIF(NazočnostZaKolovoz[23],\"O\")","v":1},{"$f":"COUNTIF(NazočnostZaKolovoz[24],\"N\")+COUNTIF(NazočnostZaKolovoz[24],\"O\")","v":1},{"$f":"COUNTIF(NazočnostZaKolovoz[25],\"N\")+COUNTIF(NazočnostZaKolovoz[25],\"O\")","v":1},{"$f":"COUNTIF(NazočnostZaKolovoz[26],\"N\")+COUNTIF(NazočnostZaKolovoz[26],\"O\")","v":1},{"$f":"COUNTIF(NazočnostZaKolovoz[27],\"N\")+COUNTIF(NazočnostZaKolovoz[27],\"O\")","v":0},{"$f":"COUNTIF(NazočnostZaKolovoz[28],\"N\")+COUNTIF(NazočnostZaKolovoz[28],\"O\")","v":0},{"$f":"COUNTIF(NazočnostZaKolovoz[29],\"N\")+COUNTIF(NazočnostZaKolovoz[29],\"O\")","v":0},{"$f":"COUNTIF(NazočnostZaKolovoz[30],\"N\")+COUNTIF(NazočnostZaKolovoz[30],\"O\")","v":1},{"$f":"COUNTIF(NazočnostZaKolovoz[31],\"N\")+COUNTIF(NazočnostZaKolovoz[31],\"O\")","v":0},{"$f":"SUBTOTAL(109,NazočnostZaKolovoz[K])","v":4},{"$f":"SUBTOTAL(109,NazočnostZaKolovoz[O])","v":10},{"$f":"SUBTOTAL(109,NazočnostZaKolovoz[N])","v":3},{"$f":"SUBTOTAL(109,NazočnostZaKolovoz[P])","v":98},{"$f":"SUBTOTAL(109,NazočnostZaKolovoz[Dani izostanaka])","v":13}]

{"sheet":"Rujan","index":3,"n_rows":12,"n_cols":39,"rows_kept":12,"merged":[[4,34,4,38]]}
["EVIDENCIJA NAZOČNOSTI UČENIKA",{"$nulls":36},"Početak školske godine:",{"$f":"KalendarskaGodina","v":2012}]
[]
[null,null,{"$f":"TekstOpisaBoja","v":"OPIS BOJA "},{"$f":"Šifra1","v":"K"},{"$f":"TekstŠifre1","v":"Kašnjenje"},null,null,{"$f":"Šifra2","v":"O"},{"$f":"TekstŠifre2","v":"Opravdani"},null,null,{"$f":"Šifra3","v":"N"},{"$f":"TekstŠifre3","v":"Neopravdani"},null,null,{"$f":"Šifra4","v":"P"},{"$f":"TekstŠifre4","v":"Prisutan"},null,null,{"$f":"Šifra5","v":"Ne"},{"$f":"TekstŠifre5","v":"Nema škole"}]
[]
[null,{"$f":"DATE(KalendarskaGodina,9,1)","v":"2012-09-01"},null,{"$f":"TEXT(WEEKDAY(DATE(KalendarskaGodina,9,1),1),\"aaa\")","v":"sub"},{"$f":"TEXT(WEEKDAY(DATE(KalendarskaGodina,9,2),1),\"aaa\")","v":"ned"},{"$f":"TEXT(WEEKDAY(DATE(KalendarskaGodina,9,3),1),\"aaa\")","v":"pon"},{"$f":"TEXT(WEEKDAY(DATE(KalendarskaGodina,9,4),1),\"aaa\")","v":"uto"},{"$f":"TEXT(WEEKDAY(DATE(KalendarskaGodina,9,5),1),\"aaa\")","v":"sri"},{"$f":"TEXT(WEEKDAY(DATE(KalendarskaGodina,9,6),1),\"aaa\")","v":"čet"},{"$f":"TEXT(WEEKDAY(DATE(KalendarskaGodina,9,7),1),\"aaa\")","v":"pet"},{"$f":"TEXT(WEEKDAY(DATE(KalendarskaGodina,9,8),1),\"aaa\")","v":"sub"},{"$f":"TEXT(WEEKDAY(DATE(KalendarskaGodina,9,9),1),\"aaa\")","v":"ned"},{"$f":"TEXT(WEEKDAY(DATE(KalendarskaGodina,9,10),1),\"aaa\")","v":"pon"},{"$f":"TEXT(WEEKDAY(DATE(KalendarskaGodina,9,11),1),\"aaa\")","v":"uto"},{"$f":"TEXT(WEEKDAY(DATE(KalendarskaGodina,9,12),1),\"aaa\")","v":"sri"},{"$f":"TEXT(WEEKDAY(DATE(KalendarskaGodina,9,13),1),\"aaa\")","v":"čet"},{"$f":"TEXT(WEEKDAY(DATE(KalendarskaGodina,9,14),1),\"aaa\")","v":"pet"},{"$f":"TEXT(WEEKDAY(DATE(KalendarskaGodina,9,15),1),\"aaa\")","v":"sub"},{"$f":"TEXT(WEEKDAY(DATE(KalendarskaGodina,9,16),1),\"aaa\")","v":"ned"},{"$f":"TEXT(WEEKDAY(DATE(KalendarskaGodina,9,17),1),\"aaa\")","v":"pon"},{"$f":"TEXT(WEEKDAY(DATE(KalendarskaGodina,9,18),1),\"aaa\")","v":"uto"},{"$f":"TEXT(WEEKDAY(DATE(KalendarskaGodina,9,19),1),\"aaa\")","v":"sri"},{"$f":"TEXT(WEEKDAY(DATE(KalendarskaGodina,9,20),1),\"aaa\")","v":"čet"},{"$f":"TEXT(WEEKDAY(DATE(KalendarskaGodina,9,21),1),\"aaa\")","v":"pet"},{"$f":"TEXT(WEEKDAY(DATE(KalendarskaGodina,9,22),1),\"aaa\")","v":"sub"},{"$f":"TEXT(WEEKDAY(DATE(KalendarskaGodina,9,23),1),\"aaa\")","v":"ned"},{"$f":"TEXT(WEEKDAY(DATE(KalendarskaGodina,9,24),1),\"aaa\")","v":"pon"},{"$f":"TEXT(WEEKDAY(DATE(KalendarskaGodina,9,25),1),\"aaa\")","v":"uto"},{"$f":"TEXT(WEEKDAY(DATE(KalendarskaGodina,9,26),1),\"aaa\")","v":"sri"},{"$f":"TEXT(WEEKDAY(DATE(KalendarskaGodina,9,27),1),\"aaa\")","v":"čet"},{"$f":"TEXT(WEEKDAY(DATE(KalendarskaGodina,9,28),1),\"aaa\")","v":"pet"},{"$f":"TEXT(WEEKDAY(DATE(KalendarskaGodina,9,29),1),\"aaa\")","v":"sub"},{"$f":"TEXT(WEEKDAY(DATE(KalendarskaGodina,9,30),1),\"aaa\")","v":"ned"},null,"Ukupno"]
[null,"Identifikacijski broj učenika","Ime učenika","1","2","3","4","5","6","7","8","9","10","11","12","13","14","15","16","17","18","19","20","21","22","23","24","25","26","27","28","29","30"," ","K","O","N","P","Dani izostanaka"]
[null,null,{"$f":"IFERROR(VLOOKUP(NazočnostZaRujan[[#This Row],[Identifikacijski broj učenika]],PopisUčenika[],18,FALSE),\"\")","v":""},{"$nulls":31},{"$f":"COUNTIF(NazočnostZaRujan[[#This Row],[1]:[ ]],Šifra1)","v":0},{"$f":"COUNTIF(NazočnostZaRujan[[#This Row],[1]:[ ]],Šifra2)","v":0},{"$f":"COUNTIF(NazočnostZaRujan[[#This Row],[1]:[ ]],Šifra3)","v":0},{"$f":"COUNTIF(NazočnostZaRujan[[#This Row],[1]:[ ]],Šifra4)","v":0},{"$f":"SUM(NazočnostZaRujan[[#This Row],[O]:[N]])","v":0}]
[null,null,{"$f":"IFERROR(VLOOKUP(NazočnostZaRujan[[#This Row],[Identifikacijski broj učenika]],PopisUčenika[],18,FALSE),\"\")","v":""},{"$nulls":31},{"$f":"COUNTIF(NazočnostZaRujan[[#This Row],[1]:[ ]],Šifra1)","v":0},{"$f":"COUNTIF(NazočnostZaRujan[[#This Row],[1]:[ ]],Šifra2)","v":0},{"$f":"COUNTIF(NazočnostZaRujan[[#This Row],[1]:[ ]],Šifra3)","v":0},{"$f":"COUNTIF(NazočnostZaRujan[[#This Row],[1]:[ ]],Šifra4)","v":0},{"$f":"SUM(NazočnostZaRujan[[#This Row],[O]:[N]])","v":0}]
[null,null,{"$f":"IFERROR(VLOOKUP(NazočnostZaRujan[[#This Row],[Identifikacijski broj učenika]],PopisUčenika[],18,FALSE),\"\")","v":""},{"$nulls":31},{"$f":"COUNTIF(NazočnostZaRujan[[#This Row],[1]:[ ]],Šifra1)","v":0},{"$f":"COUNTIF(NazočnostZaRujan[[#This Row],[1]:[ ]],Šifra2)","v":0},{"$f":"COUNTIF(NazočnostZaRujan[[#This Row],[1]:[ ]],Šifra3)","v":0},{"$f":"COUNTIF(NazočnostZaRujan[[#This Row],[1]:[ ]],Šifra4)","v":0},{"$f":"SUM(NazočnostZaRujan[[#This Row],[O]:[N]])","v":0}]
[null,null,{"$f":"IFERROR(VLOOKUP(NazočnostZaRujan[[#This Row],[Identifikacijski broj učenika]],PopisUčenika[],18,FALSE),\"\")","v":""},{"$nulls":31},{"$f":"COUNTIF(NazočnostZaRujan[[#This Row],[1]:[ ]],Šifra1)","v":0},{"$f":"COUNTIF(NazočnostZaRujan[[#This Row],[1]:[ ]],Šifra2)","v":0},{"$f":"COUNTIF(NazočnostZaRujan[[#This Row],[1]:[ ]],Šifra3)","v":0},{"$f":"COUNTIF(NazočnostZaRujan[[#This Row],[1]:[ ]],Šifra4)","v":0},{"$f":"SUM(NazočnostZaRujan[[#This Row],[O]:[N]])","v":0}]
[null,null,{"$f":"IFERROR(VLOOKUP(NazočnostZaRujan[[#This Row],[Identifikacijski broj učenika]],PopisUčenika[],18,FALSE),\"\")","v":""},{"$nulls":31},{"$f":"COUNTIF(NazočnostZaRujan[[#This Row],[1]:[ ]],Šifra1)","v":0},{"$f":"COUNTIF(NazočnostZaRujan[[#This Row],[1]:[ ]],Šifra2)","v":0},{"$f":"COUNTIF(NazočnostZaRujan[[#This Row],[1]:[ ]],Šifra3)","v":0},{"$f":"COUNTIF(NazočnostZaRujan[[#This Row],[1]:[ ]],Šifra4)","v":0},{"$f":"SUM(NazočnostZaRujan[[#This Row],[O]:[N]])","v":0}]
[null,null,"Ukupan broj dana izostanaka",{"$f":"COUNTIF(NazočnostZaRujan[1],\"N\")+COUNTIF(NazočnostZaRujan[1],\"O\")","v":0},{"$f":"COUNTIF(NazočnostZaRujan[2],\"N\")+COUNTIF(NazočnostZaRujan[2],\"O\")","v":0},{"$f":"COUNTIF(NazočnostZaRujan[3],\"N\")+COUNTIF(NazočnostZaRujan[3],\"O\")","v":0},{"$f":"COUNTIF(NazočnostZaRujan[4],\"N\")+COUNTIF(NazočnostZaRujan[4],\"O\")","v":0},{"$f":"COUNTIF(NazočnostZaRujan[5],\"N\")+COUNTIF(NazočnostZaRujan[5],\"O\")","v":0},{"$f":"COUNTIF(NazočnostZaRujan[6],\"N\")+COUNTIF(NazočnostZaRujan[6],\"O\")","v":0},{"$f":"COUNTIF(NazočnostZaRujan[7],\"N\")+COUNTIF(NazočnostZaRujan[7],\"O\")","v":0},{"$f":"COUNTIF(NazočnostZaRujan[8],\"N\")+COUNTIF(NazočnostZaRujan[8],\"O\")","v":0},{"$f":"COUNTIF(NazočnostZaRujan[9],\"N\")+COUNTIF(NazočnostZaRujan[9],\"O\")","v":0},{"$f":"COUNTIF(NazočnostZaRujan[10],\"N\")+COUNTIF(NazočnostZaRujan[10],\"O\")","v":0},{"$f":"COUNTIF(NazočnostZaRujan[11],\"N\")+COUNTIF(NazočnostZaRujan[11],\"O\")","v":0},{"$f":"COUNTIF(NazočnostZaRujan[12],\"N\")+COUNTIF(NazočnostZaRujan[12],\"O\")","v":0},{"$f":"COUNTIF(NazočnostZaRujan[13],\"N\")+COUNTIF(NazočnostZaRujan[13],\"O\")","v":0},{"$f":"COUNTIF(NazočnostZaRujan[14],\"N\")+COUNTIF(NazočnostZaRujan[14],\"O\")","v":0},{"$f":"COUNTIF(NazočnostZaRujan[15],\"N\")+COUNTIF(NazočnostZaRujan[15],\"O\")","v":0},{"$f":"COUNTIF(NazočnostZaRujan[16],\"N\")+COUNTIF(NazočnostZaRujan[16],\"O\")","v":0},{"$f":"COUNTIF(NazočnostZaRujan[17],\"N\")+COUNTIF(NazočnostZaRujan[17],\"O\")","v":0},{"$f":"COUNTIF(NazočnostZaRujan[18],\"N\")+COUNTIF(NazočnostZaRujan[18],\"O\")","v":0},{"$f":"COUNTIF(NazočnostZaRujan[19],\"N\")+COUNTIF(NazočnostZaRujan[19],\"O\")","v":0},{"$f":"COUNTIF(NazočnostZaRujan[20],\"N\")+COUNTIF(NazočnostZaRujan[20],\"O\")","v":0},{"$f":"COUNTIF(NazočnostZaRujan[21],\"N\")+COUNTIF(NazočnostZaRujan[21],\"O\")","v":0},{"$f":"COUNTIF(NazočnostZaRujan[22],\"N\")+COUNTIF(NazočnostZaRujan[22],\"O\")","v":0},{"$f":"COUNTIF(NazočnostZaRujan[23],\"N\")+COUNTIF(NazočnostZaRujan[23],\"O\")","v":0},{"$f":"COUNTIF(NazočnostZaRujan[24],\"N\")+COUNTIF(NazočnostZaRujan[24],\"O\")","v":0},{"$f":"COUNTIF(NazočnostZaRujan[25],\"N\")+COUNTIF(NazočnostZaRujan[25],\"O\")","v":0},{"$f":"COUNTIF(NazočnostZaRujan[26],\"N\")+COUNTIF(NazočnostZaRujan[26],\"O\")","v":0},{"$f":"COUNTIF(NazočnostZaRujan[27],\"N\")+COUNTIF(NazočnostZaRujan[27],\"O\")","v":0},{"$f":"COUNTIF(NazočnostZaRujan[28],\"N\")+COUNTIF(NazočnostZaRujan[28],\"O\")","v":0},{"$f":"COUNTIF(NazočnostZaRujan[29],\"N\")+COUNTIF(NazočnostZaRujan[29],\"O\")","v":0},{"$f":"COUNTIF(NazočnostZaRujan[30],\"N\")+COUNTIF(NazočnostZaRujan[30],\"O\")","v":0},{"$f":"COUNTIF(NazočnostZaRujan[[ ]],\"N\")+COUNTIF(NazočnostZaRujan[[ ]],\"O\")","v":0},{"$f":"SUBTOTAL(109,NazočnostZaRujan[K])","v":0},{"$f":"SUBTOTAL(109,NazočnostZaRujan[O])","v":0},{"$f":"SUBTOTAL(109,NazočnostZaRujan[N])","v":0},{"$f":"SUBTOTAL(109,NazočnostZaRujan[P])","v":0},{"$f":"SUBTOTAL(109,NazočnostZaRujan[Dani izostanaka])","v":0}]

{"sheet":"Listopad","index":4,"n_rows":12,"n_cols":39,"rows_kept":12,"merged":[[4,34,4,38]]}
["EVIDENCIJA NAZOČNOSTI UČENIKA",{"$nulls":36},"Početak školske godine:",{"$f":"KalendarskaGodina","v":2012}]
[]
[null,null,{"$f":"TekstOpisaBoja","v":"OPIS BOJA "},{"$f":"Šifra1","v":"K"},{"$f":"TekstŠifre1","v":"Kašnjenje"},null,null,{"$f":"Šifra2","v":"O"},{"$f":"TekstŠifre2","v":"Opravdani"},null,null,{"$f":"Šifra3","v":"N"},{"$f":"TekstŠifre3","v":"Neopravdani"},null,null,{"$f":"Šifra4","v":"P"},{"$f":"TekstŠifre4","v":"Prisutan"},null,null,{"$f":"Šifra5","v":"Ne"},{"$f":"TekstŠifre5","v":"Nema škole"}]
[]
[null,{"$f":"DATE(KalendarskaGodina,10,1)","v":"2012-10-01"},null,{"$f":"TEXT(WEEKDAY(DATE(KalendarskaGodina,10,1),1),\"aaa\")","v":"pon"},{"$f":"TEXT(WEEKDAY(DATE(KalendarskaGodina,10,2),1),\"aaa\")","v":"uto"},{"$f":"TEXT(WEEKDAY(DATE(KalendarskaGodina,10,3),1),\"aaa\")","v":"sri"},{"$f":"TEXT(WEEKDAY(DATE(KalendarskaGodina,10,4),1),\"aaa\")","v":"čet"},{"$f":"TEXT(WEEKDAY(DATE(KalendarskaGodina,10,5),1),\"aaa\")","v":"pet"},{"$f":"TEXT(WEEKDAY(DATE(KalendarskaGodina,10,6),1),\"aaa\")","v":"sub"},{"$f":"TEXT(WEEKDAY(DATE(KalendarskaGodina,10,7),1),\"aaa\")","v":"ned"},{"$f":"TEXT(WEEKDAY(DATE(KalendarskaGodina,10,8),1),\"aaa\")","v":"pon"},{"$f":"TEXT(WEEKDAY(DATE(KalendarskaGodina,10,9),1),\"aaa\")","v":"uto"},{"$f":"TEXT(WEEKDAY(DATE(KalendarskaGodina,10,10),1),\"aaa\")","v":"sri"},{"$f":"TEXT(WEEKDAY(DATE(KalendarskaGodina,10,11),1),\"aaa\")","v":"čet"},{"$f":"TEXT(WEEKDAY(DATE(KalendarskaGodina,10,12),1),\"aaa\")","v":"pet"},{"$f":"TEXT(WEEKDAY(DATE(KalendarskaGodina,10,13),1),\"aaa\")","v":"sub"},{"$f":"TEXT(WEEKDAY(DATE(KalendarskaGodina,10,14),1),\"aaa\")","v":"ned"},{"$f":"TEXT(WEEKDAY(DATE(KalendarskaGodina,10,15),1),\"aaa\")","v":"pon"},{"$f":"TEXT(WEEKDAY(DATE(KalendarskaGodina,10,16),1),\"aaa\")","v":"uto"},{"$f":"TEXT(WEEKDAY(DATE(KalendarskaGodina,10,17),1),\"aaa\")","v":"sri"},{"$f":"TEXT(WEEKDAY(DATE(KalendarskaGodina,10,18),1),\"aaa\")","v":"čet"},{"$f":"TEXT(WEEKDAY(DATE(KalendarskaGodina,10,19),1),\"aaa\")","v":"pet"},{"$f":"TEXT(WEEKDAY(DATE(KalendarskaGodina,10,20),1),\"aaa\")","v":"sub"},{"$f":"TEXT(WEEKDAY(DATE(KalendarskaGodina,10,21),1),\"aaa\")","v":"ned"},{"$f":"TEXT(WEEKDAY(DATE(KalendarskaGodina,10,22),1),\"aaa\")","v":"pon"},{"$f":"TEXT(WEEKDAY(DATE(KalendarskaGodina,10,23),1),\"aaa\")","v":"uto"},{"$f":"TEXT(WEEKDAY(DATE(KalendarskaGodina,10,24),1),\"aaa\")","v":"sri"},{"$f":"TEXT(WEEKDAY(DATE(KalendarskaGodina,10,25),1),\"aaa\")","v":"čet"},{"$f":"TEXT(WEEKDAY(DATE(KalendarskaGodina,10,26),1),\"aaa\")","v":"pet"},{"$f":"TEXT(WEEKDAY(DATE(KalendarskaGodina,10,27),1),\"aaa\")","v":"sub"},{"$f":"TEXT(WEEKDAY(DATE(KalendarskaGodina,10,28),1),\"aaa\")","v":"ned"},{"$f":"TEXT(WEEKDAY(DATE(KalendarskaGodina,10,29),1),\"aaa\")","v":"pon"},{"$f":"TEXT(WEEKDAY(DATE(KalendarskaGodina,10,30),1),\"aaa\")","v":"uto"},{"$f":"TEXT(WEEKDAY(DATE(KalendarskaGodina,10,31),1),\"aaa\")","v":"sri"},"Ukupno"]
[null,"Identifikacijski broj učenika","Ime učenika","1","2","3","4","5","6","7","8","9","10","11","12","13","14","15","16","17","18","19","20","21","22","23","24","25","26","27","28","29","30","31","K","O","N","P","Dani izostanaka"]
[null,null,{"$f":"IFERROR(VLOOKUP(NazočnostZaListopad[[#This Row],[Identifikacijski broj učenika]],PopisUčenika[],18,FALSE),\"\")","v":""},{"$nulls":31},{"$f":"COUNTIF(NazočnostZaListopad[[#This Row],[1]:[31]],Šifra1)","v":0},{"$f":"COUNTIF(NazočnostZaListopad[[#This Row],[1]:[31]],Šifra2)","v":0},{"$f":"COUNTIF(NazočnostZaListopad[[#This Row],[1]:[31]],Šifra3)","v":0},{"$f":"COUNTIF(NazočnostZaListopad[[#This Row],[1]:[31]],Šifra4)","v":0},{"$f":"SUM(NazočnostZaRujan[[#This Row],[O]:[N]])","v":0}]
[null,null,{"$f":"IFERROR(VLOOKUP(NazočnostZaListopad[[#This Row],[Identifikacijski broj učenika]],PopisUčenika[],18,FALSE),\"\")","v":""},{"$nulls":31},{"$f":"COUNTIF(NazočnostZaListopad[[#This Row],[1]:[31]],Šifra1)","v":0},{"$f":"COUNTIF(NazočnostZaListopad[[#This Row],[1]:[31]],Šifra2)","v":0},{"$f":"COUNTIF(NazočnostZaListopad[[#This Row],[1]:[31]],Šifra3)","v":0},{"$f":"COUNTIF(NazočnostZaListopad[[#This Row],[1]:[31]],Šifra4)","v":0},{"$f":"SUM(NazočnostZaRujan[[#This Row],[O]:[N]])","v":0}]
[null,null,{"$f":"IFERROR(VLOOKUP(NazočnostZaListopad[[#This Row],[Identifikacijski broj učenika]],PopisUčenika[],18,FALSE),\"\")","v":""},{"$nulls":31},{"$f":"COUNTIF(NazočnostZaListopad[[#This Row],[1]:[31]],Šifra1)","v":0},{"$f":"COUNTIF(NazočnostZaListopad[[#This Row],[1]:[31]],Šifra2)","v":0},{"$f":"COUNTIF(NazočnostZaListopad[[#This Row],[1]:[31]],Šifra3)","v":0},{"$f":"COUNTIF(NazočnostZaListopad[[#This Row],[1]:[31]],Šifra4)","v":0},{"$f":"SUM(NazočnostZaRujan[[#This Row],[O]:[N]])","v":0}]
[null,null,{"$f":"IFERROR(VLOOKUP(NazočnostZaListopad[[#This Row],[Identifikacijski broj učenika]],PopisUčenika[],18,FALSE),\"\")","v":""},{"$nulls":31},{"$f":"COUNTIF(NazočnostZaListopad[[#This Row],[1]:[31]],Šifra1)","v":0},{"$f":"COUNTIF(NazočnostZaListopad[[#This Row],[1]:[31]],Šifra2)","v":0},{"$f":"COUNTIF(NazočnostZaListopad[[#This Row],[1]:[31]],Šifra3)","v":0},{"$f":"COUNTIF(NazočnostZaListopad[[#This Row],[1]:[31]],Šifra4)","v":0},{"$f":"SUM(NazočnostZaRujan[[#This Row],[O]:[N]])","v":0}]
[null,null,{"$f":"IFERROR(VLOOKUP(NazočnostZaListopad[[#This Row],[Identifikacijski broj učenika]],PopisUčenika[],18,FALSE),\"\")","v":""},{"$nulls":31},{"$f":"COUNTIF(NazočnostZaListopad[[#This Row],[1]:[31]],Šifra1)","v":0},{"$f":"COUNTIF(NazočnostZaListopad[[#This Row],[1]:[31]],Šifra2)","v":0},{"$f":"COUNTIF(NazočnostZaListopad[[#This Row],[1]:[31]],Šifra3)","v":0},{"$f":"COUNTIF(NazočnostZaListopad[[#This Row],[1]:[31]],Šifra4)","v":0},{"$f":"SUM(NazočnostZaRujan[[#This Row],[O]:[N]])","v":0}]
[null,null,"Ukupan broj dana izostanaka",{"$f":"COUNTIF(NazočnostZaListopad[1],\"N\")+COUNTIF(NazočnostZaListopad[1],\"O\")","v":0},{"$f":"COUNTIF(NazočnostZaListopad[2],\"N\")+COUNTIF(NazočnostZaListopad[2],\"O\")","v":0},{"$f":"COUNTIF(NazočnostZaListopad[3],\"N\")+COUNTIF(NazočnostZaListopad[3],\"O\")","v":0},{"$f":"COUNTIF(NazočnostZaListopad[4],\"N\")+COUNTIF(NazočnostZaListopad[4],\"O\")","v":0},{"$f":"COUNTIF(NazočnostZaListopad[5],\"N\")+COUNTIF(NazočnostZaListopad[5],\"O\")","v":0},{"$f":"COUNTIF(NazočnostZaListopad[6],\"N\")+COUNTIF(NazočnostZaListopad[6],\"O\")","v":0},{"$f":"COUNTIF(NazočnostZaListopad[7],\"N\")+COUNTIF(NazočnostZaListopad[7],\"O\")","v":0},{"$f":"COUNTIF(NazočnostZaListopad[8],\"N\")+COUNTIF(NazočnostZaListopad[8],\"O\")","v":0},{"$f":"COUNTIF(NazočnostZaListopad[9],\"N\")+COUNTIF(NazočnostZaListopad[9],\"O\")","v":0},{"$f":"COUNTIF(NazočnostZaListopad[10],\"N\")+COUNTIF(NazočnostZaListopad[10],\"O\")","v":0},{"$f":"COUNTIF(NazočnostZaListopad[11],\"N\")+COUNTIF(NazočnostZaListopad[11],\"O\")","v":0},{"$f":"COUNTIF(NazočnostZaListopad[12],\"N\")+COUNTIF(NazočnostZaListopad[12],\"O\")","v":0},{"$f":"COUNTIF(NazočnostZaListopad[13],\"N\")+COUNTIF(NazočnostZaListopad[13],\"O\")","v":0},{"$f":"COUNTIF(NazočnostZaListopad[14],\"N\")+COUNTIF(NazočnostZaListopad[14],\"O\")","v":0},{"$f":"COUNTIF(NazočnostZaListopad[15],\"N\")+COUNTIF(NazočnostZaListopad[15],\"O\")","v":0},{"$f":"COUNTIF(NazočnostZaListopad[16],\"N\")+COUNTIF(NazočnostZaListopad[16],\"O\")","v":0},{"$f":"COUNTIF(NazočnostZaListopad[17],\"N\")+COUNTIF(NazočnostZaListopad[17],\"O\")","v":0},{"$f":"COUNTIF(NazočnostZaListopad[18],\"N\")+COUNTIF(NazočnostZaListopad[18],\"O\")","v":0},{"$f":"COUNTIF(NazočnostZaListopad[19],\"N\")+COUNTIF(NazočnostZaListopad[19],\"O\")","v":0},{"$f":"COUNTIF(NazočnostZaListopad[20],\"N\")+COUNTIF(NazočnostZaListopad[20],\"O\")","v":0},{"$f":"COUNTIF(NazočnostZaListopad[21],\"N\")+COUNTIF(NazočnostZaListopad[21],\"O\")","v":0},{"$f":"COUNTIF(NazočnostZaListopad[22],\"N\")+COUNTIF(NazočnostZaListopad[22],\"O\")","v":0},{"$f":"COUNTIF(NazočnostZaListopad[23],\"N\")+COUNTIF(NazočnostZaListopad[23],\"O\")","v":0},{"$f":"COUNTIF(NazočnostZaListopad[24],\"N\")+COUNTIF(NazočnostZaListopad[24],\"O\")","v":0},{"$f":"COUNTIF(NazočnostZaListopad[25],\"N\")+COUNTIF(NazočnostZaListopad[25],\"O\")","v":0},{"$f":"COUNTIF(NazočnostZaListopad[26],\"N\")+COUNTIF(NazočnostZaListopad[26],\"O\")","v":0},{"$f":"COUNTIF(NazočnostZaListopad[27],\"N\")+COUNTIF(NazočnostZaListopad[27],\"O\")","v":0},{"$f":"COUNTIF(NazočnostZaListopad[28],\"N\")+COUNTIF(NazočnostZaListopad[28],\"O\")","v":0},{"$f":"COUNTIF(NazočnostZaListopad[29],\"N\")+COUNTIF(NazočnostZaListopad[29],\"O\")","v":0},{"$f":"COUNTIF(NazočnostZaListopad[30],\"N\")+COUNTIF(NazočnostZaListopad[30],\"O\")","v":0},{"$f":"COUNTIF(NazočnostZaListopad[31],\"N\")+COUNTIF(NazočnostZaListopad[31],\"O\")","v":0},{"$f":"SUBTOTAL(109,NazočnostZaListopad[K])","v":0},{"$f":"SUBTOTAL(109,NazočnostZaListopad[O])","v":0},{"$f":"SUBTOTAL(109,NazočnostZaListopad[N])","v":0},{"$f":"SUBTOTAL(109,NazočnostZaListopad[P])","v":0},{"$f":"SUBTOTAL(109,NazočnostZaListopad[Dani izostanaka])","v":0}]

{"sheet":"Studeni","index":5,"n_rows":12,"n_cols":39,"rows_kept":12,"merged":[[4,34,4,38]]}
["EVIDENCIJA NAZOČNOSTI UČENIKA",{"$nulls":36},"Početak školske godine:",{"$f":"KalendarskaGodina","v":2012}]
[]
[null,null,{"$f":"TekstOpisaBoja","v":"OPIS BOJA "},{"$f":"Šifra1","v":"K"},{"$f":"TekstŠifre1","v":"Kašnjenje"},null,null,{"$f":"Šifra2","v":"O"},{"$f":"TekstŠifre2","v":"Opravdani"},null,null,{"$f":"Šifra3","v":"N"},{"$f":"TekstŠifre3","v":"Neopravdani"},null,null,{"$f":"Šifra4","v":"P"},{"$f":"TekstŠifre4","v":"Prisutan"},null,null,{"$f":"Šifra5","v":"Ne"},{"$f":"TekstŠifre5","v":"Nema škole"}]
[]
[null,{"$f":"DATE(KalendarskaGodina,11,1)","v":"2012-11-01"},null,{"$f":"TEXT(WEEKDAY(DATE(KalendarskaGodina,11,1),1),\"aaa\")","v":"čet"},{"$f":"TEXT(WEEKDAY(DATE(KalendarskaGodina,11,2),1),\"aaa\")","v":"pet"},{"$f":"TEXT(WEEKDAY(DATE(KalendarskaGodina,11,3),1),\"aaa\")","v":"sub"},{"$f":"TEXT(WEEKDAY(DATE(KalendarskaGodina,11,4),1),\"aaa\")","v":"ned"},{"$f":"TEXT(WEEKDAY(DATE(KalendarskaGodina,11,5),1),\"aaa\")","v":"pon"},{"$f":"TEXT(WEEKDAY(DATE(KalendarskaGodina,11,6),1),\"aaa\")","v":"uto"},{"$f":"TEXT(WEEKDAY(DATE(KalendarskaGodina,11,7),1),\"aaa\")","v":"sri"},{"$f":"TEXT(WEEKDAY(DATE(KalendarskaGodina,11,8),1),\"aaa\")","v":"čet"},{"$f":"TEXT(WEEKDAY(DATE(KalendarskaGodina,11,9),1),\"aaa\")","v":"pet"},{"$f":"TEXT(WEEKDAY(DATE(KalendarskaGodina,11,10),1),\"aaa\")","v":"sub"},{"$f":"TEXT(WEEKDAY(DATE(KalendarskaGodina,11,11),1),\"aaa\")","v":"ned"},{"$f":"TEXT(WEEKDAY(DATE(KalendarskaGodina,11,12),1),\"aaa\")","v":"pon"},{"$f":"TEXT(WEEKDAY(DATE(KalendarskaGodina,11,13),1),\"aaa\")","v":"uto"},{"$f":"TEXT(WEEKDAY(DATE(KalendarskaGodina,11,14),1),\"aaa\")","v":"sri"},{"$f":"TEXT(WEEKDAY(DATE(KalendarskaGodina,11,15),1),\"aaa\")","v":"čet"},{"$f":"TEXT(WEEKDAY(DATE(KalendarskaGodina,11,16),1),\"aaa\")","v":"pet"},{"$f":"TEXT(WEEKDAY(DATE(KalendarskaGodina,11,17),1),\"aaa\")","v":"sub"},{"$f":"TEXT(WEEKDAY(DATE(KalendarskaGodina,11,18),1),\"aaa\")","v":"ned"},{"$f":"TEXT(WEEKDAY(DATE(KalendarskaGodina,11,19),1),\"aaa\")","v":"pon"},{"$f":"TEXT(WEEKDAY(DATE(KalendarskaGodina,11,20),1),\"aaa\")","v":"uto"},{"$f":"TEXT(WEEKDAY(DATE(KalendarskaGodina,11,21),1),\"aaa\")","v":"sri"},{"$f":"TEXT(WEEKDAY(DATE(KalendarskaGodina,11,22),1),\"aaa\")","v":"čet"},{"$f":"TEXT(WEEKDAY(DATE(KalendarskaGodina,11,23),1),\"aaa\")","v":"pet"},{"$f":"TEXT(WEEKDAY(DATE(KalendarskaGodina,11,24),1),\"aaa\")","v":"sub"},{"$f":"TEXT(WEEKDAY(DATE(KalendarskaGodina,11,25),1),\"aaa\")","v":"ned"},{"$f":"TEXT(WEEKDAY(DATE(KalendarskaGodina,11,26),1),\"aaa\")","v":"pon"},{"$f":"TEXT(WEEKDAY(DATE(KalendarskaGodina,11,27),1),\"aaa\")","v":"uto"},{"$f":"TEXT(WEEKDAY(DATE(KalendarskaGodina,11,28),1),\"aaa\")","v":"sri"},{"$f":"TEXT(WEEKDAY(DATE(KalendarskaGodina,11,29),1),\"aaa\")","v":"čet"},{"$f":"TEXT(WEEKDAY(DATE(KalendarskaGodina,11,30),1),\"aaa\")","v":"pet"},null,"Ukupno"]
[null,"Identifikacijski broj učenika","Ime učenika","1","2","3","4","5","6","7","8","9","10","11","12","13","14","15","16","17","18","19","20","21","22","23","24","25","26","27","28","29","30"," ","K","O","N","P","Dani izostanaka"]
[null,null,{"$f":"IFERROR(VLOOKUP(NazočnostZaStudeni[[#This Row],[Identifikacijski broj učenika]],PopisUčenika[],18,FALSE),\"\")","v":""},{"$nulls":31},{"$f":"COUNTIF(NazočnostZaStudeni[[#This Row],[1]:[ ]],Šifra1)","v":0},{"$f":"COUNTIF(NazočnostZaStudeni[[#This Row],[1]:[ ]],Šifra2)","v":0},{"$f":"COUNTIF(NazočnostZaStudeni[[#This Row],[1]:[ ]],Šifra3)","v":0},{"$f":"COUNTIF(NazočnostZaStudeni[[#This Row],[1]:[ ]],Šifra4)","v":0},{"$f":"SUM(NazočnostZaRujan[[#This Row],[O]:[N]])","v":0}]
[null,null,{"$f":"IFERROR(VLOOKUP(NazočnostZaStudeni[[#This Row],[Identifikacijski broj učenika]],PopisUčenika[],18,FALSE),\"\")","v":""},{"$nulls":31},{"$f":"COUNTIF(NazočnostZaStudeni[[#This Row],[1]:[ ]],Šifra1)","v":0},{"$f":"COUNTIF(NazočnostZaStudeni[[#This Row],[1]:[ ]],Šifra2)","v":0},{"$f":"COUNTIF(NazočnostZaStudeni[[#This Row],[1]:[ ]],Šifra3)","v":0},{"$f":"COUNTIF(NazočnostZaStudeni[[#This Row],[1]:[ ]],Šifra4)","v":0},{"$f":"SUM(NazočnostZaRujan[[#This Row],[O]:[N]])","v":0}]
[null,null,{"$f":"IFERROR(VLOOKUP(NazočnostZaStudeni[[#This Row],[Identifikacijski broj učenika]],PopisUčenika[],18,FALSE),\"\")","v":""},{"$nulls":31},{"$f":"COUNTIF(NazočnostZaStudeni[[#This Row],[1]:[ ]],Šifra1)","v":0},{"$f":"COUNTIF(NazočnostZaStudeni[[#This Row],[1]:[ ]],Šifra2)","v":0},{"$f":"COUNTIF(NazočnostZaStudeni[[#This Row],[1]:[ ]],Šifra3)","v":0},{"$f":"COUNTIF(NazočnostZaStudeni[[#This Row],[1]:[ ]],Šifra4)","v":0},{"$f":"SUM(NazočnostZaRujan[[#This Row],[O]:[N]])","v":0}]
[null,null,{"$f":"IFERROR(VLOOKUP(NazočnostZaStudeni[[#This Row],[Identifikacijski broj učenika]],PopisUčenika[],18,FALSE),\"\")","v":""},{"$nulls":31},{"$f":"COUNTIF(NazočnostZaStudeni[[#This Row],[1]:[ ]],Šifra1)","v":0},{"$f":"COUNTIF(NazočnostZaStudeni[[#This Row],[1]:[ ]],Šifra2)","v":0},{"$f":"COUNTIF(NazočnostZaStudeni[[#This Row],[1]:[ ]],Šifra3)","v":0},{"$f":"COUNTIF(NazočnostZaStudeni[[#This Row],[1]:[ ]],Šifra4)","v":0},{"$f":"SUM(NazočnostZaRujan[[#This Row],[O]:[N]])","v":0}]
[null,null,{"$f":"IFERROR(VLOOKUP(NazočnostZaStudeni[[#This Row],[Identifikacijski broj učenika]],PopisUčenika[],18,FALSE),\"\")","v":""},{"$nulls":31},{"$f":"COUNTIF(NazočnostZaStudeni[[#This Row],[1]:[ ]],Šifra1)","v":0},{"$f":"COUNTIF(NazočnostZaStudeni[[#This Row],[1]:[ ]],Šifra2)","v":0},{"$f":"COUNTIF(NazočnostZaStudeni[[#This Row],[1]:[ ]],Šifra3)","v":0},{"$f":"COUNTIF(NazočnostZaStudeni[[#This Row],[1]:[ ]],Šifra4)","v":0},{"$f":"SUM(NazočnostZaRujan[[#This Row],[O]:[N]])","v":0}]
[null,null,"Ukupan broj dana izostanaka",{"$f":"COUNTIF(NazočnostZaStudeni[1],\"N\")+COUNTIF(NazočnostZaStudeni[1],\"O\")","v":0},{"$f":"COUNTIF(NazočnostZaStudeni[2],\"N\")+COUNTIF(NazočnostZaStudeni[2],\"O\")","v":0},{"$f":"COUNTIF(NazočnostZaStudeni[3],\"N\")+COUNTIF(NazočnostZaStudeni[3],\"O\")","v":0},{"$f":"COUNTIF(NazočnostZaStudeni[4],\"N\")+COUNTIF(NazočnostZaStudeni[4],\"O\")","v":0},{"$f":"COUNTIF(NazočnostZaStudeni[5],\"N\")+COUNTIF(NazočnostZaStudeni[5],\"O\")","v":0},{"$f":"COUNTIF(NazočnostZaStudeni[6],\"N\")+COUNTIF(NazočnostZaStudeni[6],\"O\")","v":0},{"$f":"COUNTIF(NazočnostZaStudeni[7],\"N\")+COUNTIF(NazočnostZaStudeni[7],\"O\")","v":0},{"$f":"COUNTIF(NazočnostZaStudeni[8],\"N\")+COUNTIF(NazočnostZaStudeni[8],\"O\")","v":0},{"$f":"COUNTIF(NazočnostZaStudeni[9],\"N\")+COUNTIF(NazočnostZaStudeni[9],\"O\")","v":0},{"$f":"COUNTIF(NazočnostZaStudeni[10],\"N\")+COUNTIF(NazočnostZaStudeni[10],\"O\")","v":0},{"$f":"COUNTIF(NazočnostZaStudeni[11],\"N\")+COUNTIF(NazočnostZaStudeni[11],\"O\")","v":0},{"$f":"COUNTIF(NazočnostZaStudeni[12],\"N\")+COUNTIF(NazočnostZaStudeni[12],\"O\")","v":0},{"$f":"COUNTIF(NazočnostZaStudeni[13],\"N\")+COUNTIF(NazočnostZaStudeni[13],\"O\")","v":0},{"$f":"COUNTIF(NazočnostZaStudeni[14],\"N\")+COUNTIF(NazočnostZaStudeni[14],\"O\")","v":0},{"$f":"COUNTIF(NazočnostZaStudeni[15],\"N\")+COUNTIF(NazočnostZaStudeni[15],\"O\")","v":0},{"$f":"COUNTIF(NazočnostZaStudeni[16],\"N\")+COUNTIF(NazočnostZaStudeni[16],\"O\")","v":0},{"$f":"COUNTIF(NazočnostZaStudeni[17],\"N\")+COUNTIF(NazočnostZaStudeni[17],\"O\")","v":0},{"$f":"COUNTIF(NazočnostZaStudeni[18],\"N\")+COUNTIF(NazočnostZaStudeni[18],\"O\")","v":0},{"$f":"COUNTIF(NazočnostZaStudeni[19],\"N\")+COUNTIF(NazočnostZaStudeni[19],\"O\")","v":0},{"$f":"COUNTIF(NazočnostZaStudeni[20],\"N\")+COUNTIF(NazočnostZaStudeni[20],\"O\")","v":0},{"$f":"COUNTIF(NazočnostZaStudeni[21],\"N\")+COUNTIF(NazočnostZaStudeni[21],\"O\")","v":0},{"$f":"COUNTIF(NazočnostZaStudeni[22],\"N\")+COUNTIF(NazočnostZaStudeni[22],\"O\")","v":0},{"$f":"COUNTIF(NazočnostZaStudeni[23],\"N\")+COUNTIF(NazočnostZaStudeni[23],\"O\")","v":0},{"$f":"COUNTIF(NazočnostZaStudeni[24],\"N\")+COUNTIF(NazočnostZaStudeni[24],\"O\")","v":0},{"$f":"COUNTIF(NazočnostZaStudeni[25],\"N\")+COUNTIF(NazočnostZaStudeni[25],\"O\")","v":0},{"$f":"COUNTIF(NazočnostZaStudeni[26],\"N\")+COUNTIF(NazočnostZaStudeni[26],\"O\")","v":0},{"$f":"COUNTIF(NazočnostZaStudeni[27],\"N\")+COUNTIF(NazočnostZaStudeni[27],\"O\")","v":0},{"$f":"COUNTIF(NazočnostZaStudeni[28],\"N\")+COUNTIF(NazočnostZaStudeni[28],\"O\")","v":0},{"$f":"COUNTIF(NazočnostZaStudeni[29],\"N\")+COUNTIF(NazočnostZaStudeni[29],\"O\")","v":0},{"$f":"COUNTIF(NazočnostZaStudeni[30],\"N\")+COUNTIF(NazočnostZaStudeni[30],\"O\")","v":0},{"$f":"COUNTIF(NazočnostZaStudeni[[ ]],\"N\")+COUNTIF(NazočnostZaStudeni[[ ]],\"O\")","v":0},{"$f":"SUBTOTAL(109,NazočnostZaStudeni[K])","v":0},{"$f":"SUBTOTAL(109,NazočnostZaStudeni[O])","v":0},{"$f":"SUBTOTAL(109,NazočnostZaStudeni[N])","v":0},{"$f":"SUBTOTAL(109,NazočnostZaStudeni[P])","v":0},{"$f":"SUBTOTAL(109,NazočnostZaStudeni[Dani izostanaka])","v":0}]

{"sheet":"Prosinac","index":6,"n_rows":12,"n_cols":39,"rows_kept":12,"merged":[[4,34,4,38]]}
["EVIDENCIJA NAZOČNOSTI UČENIKA",{"$nulls":36},"Početak školske godine:",{"$f":"KalendarskaGodina","v":2012}]
[]
[null,null,{"$f":"TekstOpisaBoja","v":"OPIS BOJA "},{"$f":"Šifra1","v":"K"},{"$f":"TekstŠifre1","v":"Kašnjenje"},null,null,{"$f":"Šifra2","v":"O"},{"$f":"TekstŠifre2","v":"Opravdani"},null,null,{"$f":"Šifra3","v":"N"},{"$f":"TekstŠifre3","v":"Neopravdani"},null,null,{"$f":"Šifra4","v":"P"},{"$f":"TekstŠifre4","v":"Prisutan"},null,null,{"$f":"Šifra5","v":"Ne"},{"$f":"TekstŠifre5","v":"Nema škole"}]
[]
[null,{"$f":"DATE(KalendarskaGodina,12,1)","v":"2012-12-01"},null,{"$f":"TEXT(WEEKDAY(DATE(KalendarskaGodina,12,1),1),\"aaa\")","v":"sub"},{"$f":"TEXT(WEEKDAY(DATE(KalendarskaGodina,12,2),1),\"aaa\")","v":"ned"},{"$f":"TEXT(WEEKDAY(DATE(KalendarskaGodina,12,3),1),\"aaa\")","v":"pon"},{"$f":"TEXT(WEEKDAY(DATE(KalendarskaGodina,12,4),1),\"aaa\")","v":"uto"},{"$f":"TEXT(WEEKDAY(DATE(KalendarskaGodina,12,5),1),\"aaa\")","v":"sri"},{"$f":"TEXT(WEEKDAY(DATE(KalendarskaGodina,12,6),1),\"aaa\")","v":"čet"},{"$f":"TEXT(WEEKDAY(DATE(KalendarskaGodina,12,7),1),\"aaa\")","v":"pet"},{"$f":"TEXT(WEEKDAY(DATE(KalendarskaGodina,12,8),1),\"aaa\")","v":"sub"},{"$f":"TEXT(WEEKDAY(DATE(KalendarskaGodina,12,9),1),\"aaa\")","v":"ned"},{"$f":"TEXT(WEEKDAY(DATE(KalendarskaGodina,12,10),1),\"aaa\")","v":"pon"},{"$f":"TEXT(WEEKDAY(DATE(KalendarskaGodina,12,11),1),\"aaa\")","v":"uto"},{"$f":"TEXT(WEEKDAY(DATE(KalendarskaGodina,12,12),1),\"aaa\")","v":"sri"},{"$f":"TEXT(WEEKDAY(DATE(KalendarskaGodina,12,13),1),\"aaa\")","v":"čet"},{"$f":"TEXT(WEEKDAY(DATE(KalendarskaGodina,12,14),1),\"aaa\")","v":"pet"},{"$f":"TEXT(WEEKDAY(DATE(KalendarskaGodina,12,15),1),\"aaa\")","v":"sub"},{"$f":"TEXT(WEEKDAY(DATE(KalendarskaGodina,12,16),1),\"aaa\")","v":"ned"},{"$f":"TEXT(WEEKDAY(DATE(KalendarskaGodina,12,17),1),\"aaa\")","v":"pon"},{"$f":"TEXT(WEEKDAY(DATE(KalendarskaGodina,12,18),1),\"aaa\")","v":"uto"},{"$f":"TEXT(WEEKDAY(DATE(KalendarskaGodina,12,19),1),\"aaa\")","v":"sri"},{"$f":"TEXT(WEEKDAY(DATE(KalendarskaGodina,12,20),1),\"aaa\")","v":"čet"},{"$f":"TEXT(WEEKDAY(DATE(KalendarskaGodina,12,21),1),\"aaa\")","v":"pet"},{"$f":"TEXT(WEEKDAY(DATE(KalendarskaGodina,12,22),1),\"aaa\")","v":"sub"},{"$f":"TEXT(WEEKDAY(DATE(KalendarskaGodina,12,23),1),\"aaa\")","v":"ned"},{"$f":"TEXT(WEEKDAY(DATE(KalendarskaGodina,12,24),1),\"aaa\")","v":"pon"},{"$f":"TEXT(WEEKDAY(DATE(KalendarskaGodina,12,25),1),\"aaa\")","v":"uto"},{"$f":"TEXT(WEEKDAY(DATE(KalendarskaGodina,12,26),1),\"aaa\")","v":"sri"},{"$f":"TEXT(WEEKDAY(DATE(KalendarskaGodina,12,27),1),\"aaa\")","v":"čet"},{"$f":"TEXT(WEEKDAY(DATE(KalendarskaGodina,12,28),1),\"aaa\")","v":"pet"},{"$f":"TEXT(WEEKDAY(DATE(KalendarskaGodina,12,29),1),\"aaa\")","v":"sub"},{"$f":"TEXT(WEEKDAY(DATE(KalendarskaGodina,12,30),1),\"aaa\")","v":"ned"},{"$f":"TEXT(WEEKDAY(DATE(KalendarskaGodina,12,31),1),\"aaa\")","v":"pon"},"Ukupno"]
[null,"Identifikacijski broj učenika","Ime učenika","1","2","3","4","5","6","7","8","9","10","11","12","13","14","15","16","17","18","19","20","21","22","23","24","25","26","27","28","29","30","31","K","O","N","P","Dani izostanaka"]
[null,null,{"$f":"IFERROR(VLOOKUP(NazočnostZaProsinac[[#This Row],[Identifikacijski broj učenika]],PopisUčenika[],18,FALSE),\"\")","v":""},{"$nulls":31},{"$f":"COUNTIF(NazočnostZaProsinac[[#This Row],[1]:[31]],Šifra1)","v":0},{"$f":"COUNTIF(NazočnostZaProsinac[[#This Row],[1]:[31]],Šifra2)","v":0},{"$f":"COUNTIF(NazočnostZaProsinac[[#This Row],[1]:[31]],Šifra3)","v":0},{"$f":"COUNTIF(NazočnostZaProsinac[[#This Row],[1]:[31]],Šifra4)","v":0},{"$f":"SUM(NazočnostZaRujan[[#This Row],[O]:[N]])","v":0}]
[null,null,{"$f":"IFERROR(VLOOKUP(NazočnostZaProsinac[[#This Row],[Identifikacijski broj učenika]],PopisUčenika[],18,FALSE),\"\")","v":""},{"$nulls":31},{"$f":"COUNTIF(NazočnostZaProsinac[[#This Row],[1]:[31]],Šifra1)","v":0},{"$f":"COUNTIF(NazočnostZaProsinac[[#This Row],[1]:[31]],Šifra2)","v":0},{"$f":"COUNTIF(NazočnostZaProsinac[[#This Row],[1]:[31]],Šifra3)","v":0},{"$f":"COUNTIF(NazočnostZaProsinac[[#This Row],[1]:[31]],Šifra4)","v":0},{"$f":"SUM(NazočnostZaRujan[[#This Row],[O]:[N]])","v":0}]
[null,null,{"$f":"IFERROR(VLOOKUP(NazočnostZaProsinac[[#This Row],[Identifikacijski broj učenika]],PopisUčenika[],18,FALSE),\"\")","v":""},{"$nulls":31},{"$f":"COUNTIF(NazočnostZaProsinac[[#This Row],[1]:[31]],Šifra1)","v":0},{"$f":"COUNTIF(NazočnostZaProsinac[[#This Row],[1]:[31]],Šifra2)","v":0},{"$f":"COUNTIF(NazočnostZaProsinac[[#This Row],[1]:[31]],Šifra3)","v":0},{"$f":"COUNTIF(NazočnostZaProsinac[[#This Row],[1]:[31]],Šifra4)","v":0},{"$f":"SUM(NazočnostZaRujan[[#This Row],[O]:[N]])","v":0}]
[null,null,{"$f":"IFERROR(VLOOKUP(NazočnostZaProsinac[[#This Row],[Identifikacijski broj učenika]],PopisUčenika[],18,FALSE),\"\")","v":""},{"$nulls":31},{"$f":"COUNTIF(NazočnostZaProsinac[[#This Row],[1]:[31]],Šifra1)","v":0},{"$f":"COUNTIF(NazočnostZaProsinac[[#This Row],[1]:[31]],Šifra2)","v":0},{"$f":"COUNTIF(NazočnostZaProsinac[[#This Row],[1]:[31]],Šifra3)","v":0},{"$f":"COUNTIF(NazočnostZaProsinac[[#This Row],[1]:[31]],Šifra4)","v":0},{"$f":"SUM(NazočnostZaRujan[[#This Row],[O]:[N]])","v":0}]
[null,null,{"$f":"IFERROR(VLOOKUP(NazočnostZaProsinac[[#This Row],[Identifikacijski broj učenika]],PopisUčenika[],18,FALSE),\"\")","v":""},{"$nulls":31},{"$f":"COUNTIF(NazočnostZaProsinac[[#This Row],[1]:[31]],Šifra1)","v":0},{"$f":"COUNTIF(NazočnostZaProsinac[[#This Row],[1]:[31]],Šifra2)","v":0},{"$f":"COUNTIF(NazočnostZaProsinac[[#This Row],[1]:[31]],Šifra3)","v":0},{"$f":"COUNTIF(NazočnostZaProsinac[[#This Row],[1]:[31]],Šifra4)","v":0},{"$f":"SUM(NazočnostZaRujan[[#This Row],[O]:[N]])","v":0}]
[null,null,"Ukupan broj dana izostanaka",{"$f":"COUNTIF(NazočnostZaProsinac[1],\"N\")+COUNTIF(NazočnostZaProsinac[1],\"O\")","v":0},{"$f":"COUNTIF(NazočnostZaProsinac[2],\"N\")+COUNTIF(NazočnostZaProsinac[2],\"O\")","v":0},{"$f":"COUNTIF(NazočnostZaProsinac[3],\"N\")+COUNTIF(NazočnostZaProsinac[3],\"O\")","v":0},{"$f":"COUNTIF(NazočnostZaProsinac[4],\"N\")+COUNTIF(NazočnostZaProsinac[4],\"O\")","v":0},{"$f":"COUNTIF(NazočnostZaProsinac[5],\"N\")+COUNTIF(NazočnostZaProsinac[5],\"O\")","v":0},{"$f":"COUNTIF(NazočnostZaProsinac[6],\"N\")+COUNTIF(NazočnostZaProsinac[6],\"O\")","v":0},{"$f":"COUNTIF(NazočnostZaProsinac[7],\"N\")+COUNTIF(NazočnostZaProsinac[7],\"O\")","v":0},{"$f":"COUNTIF(NazočnostZaProsinac[8],\"N\")+COUNTIF(NazočnostZaProsinac[8],\"O\")","v":0},{"$f":"COUNTIF(NazočnostZaProsinac[9],\"N\")+COUNTIF(NazočnostZaProsinac[9],\"O\")","v":0},{"$f":"COUNTIF(NazočnostZaProsinac[10],\"N\")+COUNTIF(NazočnostZaProsinac[10],\"O\")","v":0},{"$f":"COUNTIF(NazočnostZaProsinac[11],\"N\")+COUNTIF(NazočnostZaProsinac[11],\"O\")","v":0},{"$f":"COUNTIF(NazočnostZaProsinac[12],\"N\")+COUNTIF(NazočnostZaProsinac[12],\"O\")","v":0},{"$f":"COUNTIF(NazočnostZaProsinac[13],\"N\")+COUNTIF(NazočnostZaProsinac[13],\"O\")","v":0},{"$f":"COUNTIF(NazočnostZaProsinac[14],\"N\")+COUNTIF(NazočnostZaProsinac[14],\"O\")","v":0},{"$f":"COUNTIF(NazočnostZaProsinac[15],\"N\")+COUNTIF(NazočnostZaProsinac[15],\"O\")","v":0},{"$f":"COUNTIF(NazočnostZaProsinac[16],\"N\")+COUNTIF(NazočnostZaProsinac[16],\"O\")","v":0},{"$f":"COUNTIF(NazočnostZaProsinac[17],\"N\")+COUNTIF(NazočnostZaProsinac[17],\"O\")","v":0},{"$f":"COUNTIF(NazočnostZaProsinac[18],\"N\")+COUNTIF(NazočnostZaProsinac[18],\"O\")","v":0},{"$f":"COUNTIF(NazočnostZaProsinac[19],\"N\")+COUNTIF(NazočnostZaProsinac[19],\"O\")","v":0},{"$f":"COUNTIF(NazočnostZaProsinac[20],\"N\")+COUNTIF(NazočnostZaProsinac[20],\"O\")","v":0},{"$f":"COUNTIF(NazočnostZaProsinac[21],\"N\")+COUNTIF(NazočnostZaProsinac[21],\"O\")","v":0},{"$f":"COUNTIF(NazočnostZaProsinac[22],\"N\")+COUNTIF(NazočnostZaProsinac[22],\"O\")","v":0},{"$f":"COUNTIF(NazočnostZaProsinac[23],\"N\")+COUNTIF(NazočnostZaProsinac[23],\"O\")","v":0},{"$f":"COUNTIF(NazočnostZaProsinac[24],\"N\")+COUNTIF(NazočnostZaProsinac[24],\"O\")","v":0},{"$f":"COUNTIF(NazočnostZaProsinac[25],\"N\")+COUNTIF(NazočnostZaProsinac[25],\"O\")","v":0},{"$f":"COUNTIF(NazočnostZaProsinac[26],\"N\")+COUNTIF(NazočnostZaProsinac[26],\"O\")","v":0},{"$f":"COUNTIF(NazočnostZaProsinac[27],\"N\")+COUNTIF(NazočnostZaProsinac[27],\"O\")","v":0},{"$f":"COUNTIF(NazočnostZaProsinac[28],\"N\")+COUNTIF(NazočnostZaProsinac[28],\"O\")","v":0},{"$f":"COUNTIF(NazočnostZaProsinac[29],\"N\")+COUNTIF(NazočnostZaProsinac[29],\"O\")","v":0},{"$f":"COUNTIF(NazočnostZaProsinac[30],\"N\")+COUNTIF(NazočnostZaProsinac[30],\"O\")","v":0},{"$f":"COUNTIF(NazočnostZaProsinac[31],\"N\")+COUNTIF(NazočnostZaProsinac[31],\"O\")","v":0},{"$f":"SUBTOTAL(109,NazočnostZaProsinac[K])","v":0},{"$f":"SUBTOTAL(109,NazočnostZaProsinac[O])","v":0},{"$f":"SUBTOTAL(109,NazočnostZaProsinac[N])","v":0},{"$f":"SUBTOTAL(109,NazočnostZaProsinac[P])","v":0},{"$f":"SUBTOTAL(109,NazočnostZaProsinac[Dani izostanaka])","v":0}]

{"sheet":"Siječanj","index":7,"n_rows":12,"n_cols":39,"rows_kept":12,"merged":[[4,34,4,38]]}
["EVIDENCIJA NAZOČNOSTI UČENIKA",{"$nulls":36},"Početak školske godine:",{"$f":"KalendarskaGodina","v":2012}]
[]
[null,null,{"$f":"TekstOpisaBoja","v":"OPIS BOJA "},{"$f":"Šifra1","v":"K"},{"$f":"TekstŠifre1","v":"Kašnjenje"},null,null,{"$f":"Šifra2","v":"O"},{"$f":"TekstŠifre2","v":"Opravdani"},null,null,{"$f":"Šifra3","v":"N"},{"$f":"TekstŠifre3","v":"Neopravdani"},null,null,{"$f":"Šifra4","v":"P"},{"$f":"TekstŠifre4","v":"Prisutan"},null,null,{"$f":"Šifra5","v":"Ne"},{"$f":"TekstŠifre5","v":"Nema škole"}]
[]
[null,{"$f":"DATE(KalendarskaGodina+1,1,1)","v":"2013-01-01"},null,{"$f":"TEXT(WEEKDAY(DATE(KalendarskaGodina+1,1,1),1),\"aaa\")","v":"uto"},{"$f":"TEXT(WEEKDAY(DATE(KalendarskaGodina+1,1,2),1),\"aaa\")","v":"sri"},{"$f":"TEXT(WEEKDAY(DATE(KalendarskaGodina+1,1,3),1),\"aaa\")","v":"čet"},{"$f":"TEXT(WEEKDAY(DATE(KalendarskaGodina+1,1,4),1),\"aaa\")","v":"pet"},{"$f":"TEXT(WEEKDAY(DATE(KalendarskaGodina+1,1,5),1),\"aaa\")","v":"sub"},{"$f":"TEXT(WEEKDAY(DATE(KalendarskaGodina+1,1,6),1),\"aaa\")","v":"ned"},{"$f":"TEXT(WEEKDAY(DATE(KalendarskaGodina+1,1,7),1),\"aaa\")","v":"pon"},{"$f":"TEXT(WEEKDAY(DATE(KalendarskaGodina+1,1,8),1),\"aaa\")","v":"uto"},{"$f":"TEXT(WEEKDAY(DATE(KalendarskaGodina+1,1,9),1),\"aaa\")","v":"sri"},{"$f":"TEXT(WEEKDAY(DATE(KalendarskaGodina+1,1,10),1),\"aaa\")","v":"čet"},{"$f":"TEXT(WEEKDAY(DATE(KalendarskaGodina+1,1,11),1),\"aaa\")","v":"pet"},{"$f":"TEXT(WEEKDAY(DATE(KalendarskaGodina+1,1,12),1),\"aaa\")","v":"sub"},{"$f":"TEXT(WEEKDAY(DATE(KalendarskaGodina+1,1,13),1),\"aaa\")","v":"ned"},{"$f":"TEXT(WEEKDAY(DATE(KalendarskaGodina+1,1,14),1),\"aaa\")","v":"pon"},{"$f":"TEXT(WEEKDAY(DATE(KalendarskaGodina+1,1,15),1),\"aaa\")","v":"uto"},{"$f":"TEXT(WEEKDAY(DATE(KalendarskaGodina+1,1,16),1),\"aaa\")","v":"sri"},{"$f":"TEXT(WEEKDAY(DATE(KalendarskaGodina+1,1,17),1),\"aaa\")","v":"čet"},{"$f":"TEXT(WEEKDAY(DATE(KalendarskaGodina+1,1,18),1),\"aaa\")","v":"pet"},{"$f":"TEXT(WEEKDAY(DATE(KalendarskaGodina+1,1,19),1),\"aaa\")","v":"sub"},{"$f":"TEXT(WEEKDAY(DATE(KalendarskaGodina+1,1,20),1),\"aaa\")","v":"ned"},{"$f":"TEXT(WEEKDAY(DATE(KalendarskaGodina+1,1,21),1),\"aaa\")","v":"pon"},{"$f":"TEXT(WEEKDAY(DATE(KalendarskaGodina+1,1,22),1),\"aaa\")","v":"uto"},{"$f":"TEXT(WEEKDAY(DATE(KalendarskaGodina+1,1,23),1),\"aaa\")","v":"sri"},{"$f":"TEXT(WEEKDAY(DATE(KalendarskaGodina+1,1,24),1),\"aaa\")","v":"čet"},{"$f":"TEXT(WEEKDAY(DATE(KalendarskaGodina+1,1,25),1),\"aaa\")","v":"pet"},{"$f":"TEXT(WEEKDAY(DATE(KalendarskaGodina+1,1,26),1),\"aaa\")","v":"sub"},{"$f":"TEXT(WEEKDAY(DATE(KalendarskaGodina+1,1,27),1),\"aaa\")","v":"ned"},{"$f":"TEXT(WEEKDAY(DATE(KalendarskaGodina+1,1,28),1),\"aaa\")","v":"pon"},{"$f":"TEXT(WEEKDAY(DATE(KalendarskaGodina+1,1,29),1),\"aaa\")","v":"uto"},{"$f":"TEXT(WEEKDAY(DATE(KalendarskaGodina+1,1,30),1),\"aaa\")","v":"sri"},{"$f":"TEXT(WEEKDAY(DATE(KalendarskaGodina+1,1,31),1),\"aaa\")","v":"čet"},"Ukupno"]
[null,"Identifikacijski broj učenika","Ime učenika","1","2","3","4","5","6","7","8","9","10","11","12","13","14","15","16","17","18","19","20","21","22","23","24","25","26","27","28","29","30","31","K","O","N","P","Dani izostanaka"]
[null,null,{"$f":"IFERROR(VLOOKUP(NazočnostZaSiječanj[[#This Row],[Identifikacijski broj učenika]],PopisUčenika[],18,FALSE),\"\")","v":""},{"$nulls":31},{"$f":"COUNTIF(NazočnostZaSiječanj[[#This Row],[1]:[31]],Šifra1)","v":0},{"$f":"COUNTIF(NazočnostZaSiječanj[[#This Row],[1]:[31]],Šifra2)","v":0},{"$f":"COUNTIF(NazočnostZaSiječanj[[#This Row],[1]:[31]],Šifra3)","v":0},{"$f":"COUNTIF(NazočnostZaSiječanj[[#This Row],[1]:[31]],Šifra4)","v":0},{"$f":"SUM(NazočnostZaRujan[[#This Row],[O]:[N]])","v":0}]
[null,null,{"$f":"IFERROR(VLOOKUP(NazočnostZaSiječanj[[#This Row],[Identifikacijski broj učenika]],PopisUčenika[],18,FALSE),\"\")","v":""},{"$nulls":31},{"$f":"COUNTIF(NazočnostZaSiječanj[[#This Row],[1]:[31]],Šifra1)","v":0},{"$f":"COUNTIF(NazočnostZaSiječanj[[#This Row],[1]:[31]],Šifra2)","v":0},{"$f":"COUNTIF(NazočnostZaSiječanj[[#This Row],[1]:[31]],Šifra3)","v":0},{"$f":"COUNTIF(NazočnostZaSiječanj[[#This Row],[1]:[31]],Šifra4)","v":0},{"$f":"SUM(NazočnostZaRujan[[#This Row],[O]:[N]])","v":0}]
[null,null,{"$f":"IFERROR(VLOOKUP(NazočnostZaSiječanj[[#This Row],[Identifikacijski broj učenika]],PopisUčenika[],18,FALSE),\"\")","v":""},{"$nulls":31},{"$f":"COUNTIF(NazočnostZaSiječanj[[#This Row],[1]:[31]],Šifra1)","v":0},{"$f":"COUNTIF(NazočnostZaSiječanj[[#This Row],[1]:[31]],Šifra2)","v":0},{"$f":"COUNTIF(NazočnostZaSiječanj[[#This Row],[1]:[31]],Šifra3)","v":0},{"$f":"COUNTIF(NazočnostZaSiječanj[[#This Row],[1]:[31]],Šifra4)","v":0},{"$f":"SUM(NazočnostZaRujan[[#This Row],[O]:[N]])","v":0}]
[null,null,{"$f":"IFERROR(VLOOKUP(NazočnostZaSiječanj[[#This Row],[Identifikacijski broj učenika]],PopisUčenika[],18,FALSE),\"\")","v":""},{"$nulls":31},{"$f":"COUNTIF(NazočnostZaSiječanj[[#This Row],[1]:[31]],Šifra1)","v":0},{"$f":"COUNTIF(NazočnostZaSiječanj[[#This Row],[1]:[31]],Šifra2)","v":0},{"$f":"COUNTIF(NazočnostZaSiječanj[[#This Row],[1]:[31]],Šifra3)","v":0},{"$f":"COUNTIF(NazočnostZaSiječanj[[#This Row],[1]:[31]],Šifra4)","v":0},{"$f":"SUM(NazočnostZaRujan[[#This Row],[O]:[N]])","v":0}]
[null,null,{"$f":"IFERROR(VLOOKUP(NazočnostZaSiječanj[[#This Row],[Identifikacijski broj učenika]],PopisUčenika[],18,FALSE),\"\")","v":""},{"$nulls":31},{"$f":"COUNTIF(NazočnostZaSiječanj[[#This Row],[1]:[31]],Šifra1)","v":0},{"$f":"COUNTIF(NazočnostZaSiječanj[[#This Row],[1]:[31]],Šifra2)","v":0},{"$f":"COUNTIF(NazočnostZaSiječanj[[#This Row],[1]:[31]],Šifra3)","v":0},{"$f":"COUNTIF(NazočnostZaSiječanj[[#This Row],[1]:[31]],Šifra4)","v":0},{"$f":"SUM(NazočnostZaRujan[[#This Row],[O]:[N]])","v":0}]
[null,null,"Ukupan broj dana izostanaka",{"$f":"COUNTIF(NazočnostZaSiječanj[1],\"N\")+COUNTIF(NazočnostZaSiječanj[1],\"O\")","v":0},{"$f":"COUNTIF(NazočnostZaSiječanj[2],\"N\")+COUNTIF(NazočnostZaSiječanj[2],\"O\")","v":0},{"$f":"COUNTIF(NazočnostZaSiječanj[3],\"N\")+COUNTIF(NazočnostZaSiječanj[3],\"O\")","v":0},{"$f":"COUNTIF(NazočnostZaSiječanj[4],\"N\")+COUNTIF(NazočnostZaSiječanj[4],\"O\")","v":0},{"$f":"COUNTIF(NazočnostZaSiječanj[5],\"N\")+COUNTIF(NazočnostZaSiječanj[5],\"O\")","v":0},{"$f":"COUNTIF(NazočnostZaSiječanj[6],\"N\")+COUNTIF(NazočnostZaSiječanj[6],\"O\")","v":0},{"$f":"COUNTIF(NazočnostZaSiječanj[7],\"N\")+COUNTIF(NazočnostZaSiječanj[7],\"O\")","v":0},{"$f":"COUNTIF(NazočnostZaSiječanj[8],\"N\")+COUNTIF(NazočnostZaSiječanj[8],\"O\")","v":0},{"$f":"COUNTIF(NazočnostZaSiječanj[9],\"N\")+COUNTIF(NazočnostZaSiječanj[9],\"O\")","v":0},{"$f":"COUNTIF(NazočnostZaSiječanj[10],\"N\")+COUNTIF(NazočnostZaSiječanj[10],\"O\")","v":0},{"$f":"COUNTIF(NazočnostZaSiječanj[11],\"N\")+COUNTIF(NazočnostZaSiječanj[11],\"O\")","v":0},{"$f":"COUNTIF(NazočnostZaSiječanj[12],\"N\")+COUNTIF(NazočnostZaSiječanj[12],\"O\")","v":0},{"$f":"COUNTIF(NazočnostZaSiječanj[13],\"N\")+COUNTIF(NazočnostZaSiječanj[13],\"O\")","v":0},{"$f":"COUNTIF(NazočnostZaSiječanj[14],\"N\")+COUNTIF(NazočnostZaSiječanj[14],\"O\")","v":0},{"$f":"COUNTIF(NazočnostZaSiječanj[15],\"N\")+COUNTIF(NazočnostZaSiječanj[15],\"O\")","v":0},{"$f":"COUNTIF(NazočnostZaSiječanj[16],\"N\")+COUNTIF(NazočnostZaSiječanj[16],\"O\")","v":0},{"$f":"COUNTIF(NazočnostZaSiječanj[17],\"N\")+COUNTIF(NazočnostZaSiječanj[17],\"O\")","v":0},{"$f":"COUNTIF(NazočnostZaSiječanj[18],\"N\")+COUNTIF(NazočnostZaSiječanj[18],\"O\")","v":0},{"$f":"COUNTIF(NazočnostZaSiječanj[19],\"N\")+COUNTIF(NazočnostZaSiječanj[19],\"O\")","v":0},{"$f":"COUNTIF(NazočnostZaSiječanj[20],\"N\")+COUNTIF(NazočnostZaSiječanj[20],\"O\")","v":0},{"$f":"COUNTIF(NazočnostZaSiječanj[21],\"N\")+COUNTIF(NazočnostZaSiječanj[21],\"O\")","v":0},{"$f":"COUNTIF(NazočnostZaSiječanj[22],\"N\")+COUNTIF(NazočnostZaSiječanj[22],\"O\")","v":0},{"$f":"COUNTIF(NazočnostZaSiječanj[23],\"N\")+COUNTIF(NazočnostZaSiječanj[23],\"O\")","v":0},{"$f":"COUNTIF(NazočnostZaSiječanj[24],\"N\")+COUNTIF(NazočnostZaSiječanj[24],\"O\")","v":0},{"$f":"COUNTIF(NazočnostZaSiječanj[25],\"N\")+COUNTIF(NazočnostZaSiječanj[25],\"O\")","v":0},{"$f":"COUNTIF(NazočnostZaSiječanj[26],\"N\")+COUNTIF(NazočnostZaSiječanj[26],\"O\")","v":0},{"$f":"COUNTIF(NazočnostZaSiječanj[27],\"N\")+COUNTIF(NazočnostZaSiječanj[27],\"O\")","v":0},{"$f":"COUNTIF(NazočnostZaSiječanj[28],\"N\")+COUNTIF(NazočnostZaSiječanj[28],\"O\")","v":0},{"$f":"COUNTIF(NazočnostZaSiječanj[29],\"N\")+COUNTIF(NazočnostZaSiječanj[29],\"O\")","v":0},{"$f":"COUNTIF(NazočnostZaSiječanj[30],\"N\")+COUNTIF(NazočnostZaSiječanj[30],\"O\")","v":0},{"$f":"COUNTIF(NazočnostZaSiječanj[31],\"N\")+COUNTIF(NazočnostZaSiječanj[31],\"O\")","v":0},{"$f":"SUBTOTAL(109,NazočnostZaSiječanj[K])","v":0},{"$f":"SUBTOTAL(109,NazočnostZaSiječanj[O])","v":0},{"$f":"SUBTOTAL(109,NazočnostZaSiječanj[N])","v":0},{"$f":"SUBTOTAL(109,NazočnostZaSiječanj[P])","v":0},{"$f":"SUBTOTAL(109,NazočnostZaSiječanj[Dani izostanaka])","v":0}]

{"sheet":"Veljača","index":8,"n_rows":12,"n_cols":39,"rows_kept":12,"merged":[[4,34,4,38]]}
["EVIDENCIJA NAZOČNOSTI UČENIKA",{"$nulls":36},"Početak školske godine:",{"$f":"KalendarskaGodina","v":2012}]
[]
[null,null,{"$f":"TekstOpisaBoja","v":"OPIS BOJA "},{"$f":"Šifra1","v":"K"},{"$f":"TekstŠifre1","v":"Kašnjenje"},null,null,{"$f":"Šifra2","v":"O"},{"$f":"TekstŠifre2","v":"Opravdani"},null,null,{"$f":"Šifra3","v":"N"},{"$f":"TekstŠifre3","v":"Neopravdani"},null,null,{"$f":"Šifra4","v":"P"},{"$f":"TekstŠifre4","v":"Prisutan"},null,null,{"$f":"Šifra5","v":"Ne"},{"$f":"TekstŠifre5","v":"Nema škole"}]
[]
[null,{"$f":"DATE(KalendarskaGodina+1,2,1)","v":"2013-02-01"},null,{"$f":"TEXT(WEEKDAY(DATE(KalendarskaGodina+1,2,1),1),\"aaa\")","v":"pet"},{"$f":"TEXT(WEEKDAY(DATE(KalendarskaGodina+1,2,2),1),\"aaa\")","v":"sub"},{"$f":"TEXT(WEEKDAY(DATE(KalendarskaGodina+1,2,3),1),\"aaa\")","v":"ned"},{"$f":"TEXT(WEEKDAY(DATE(KalendarskaGodina+1,2,4),1),\"aaa\")","v":"pon"},{"$f":"TEXT(WEEKDAY(DATE(KalendarskaGodina+1,2,5),1),\"aaa\")","v":"uto"},{"$f":"TEXT(WEEKDAY(DATE(KalendarskaGodina+1,2,6),1),\"aaa\")","v":"sri"},{"$f":"TEXT(WEEKDAY(DATE(KalendarskaGodina+1,2,7),1),\"aaa\")","v":"čet"},{"$f":"TEXT(WEEKDAY(DATE(KalendarskaGodina+1,2,8),1),\"aaa\")","v":"pet"},{"$f":"TEXT(WEEKDAY(DATE(KalendarskaGodina+1,2,9),1),\"aaa\")","v":"sub"},{"$f":"TEXT(WEEKDAY(DATE(KalendarskaGodina+1,2,10),1),\"aaa\")","v":"ned"},{"$f":"TEXT(WEEKDAY(DATE(KalendarskaGodina+1,2,11),1),\"aaa\")","v":"pon"},{"$f":"TEXT(WEEKDAY(DATE(KalendarskaGodina+1,2,12),1),\"aaa\")","v":"uto"},{"$f":"TEXT(WEEKDAY(DATE(KalendarskaGodina+1,2,13),1),\"aaa\")","v":"sri"},{"$f":"TEXT(WEEKDAY(DATE(KalendarskaGodina+1,2,14),1),\"aaa\")","v":"čet"},{"$f":"TEXT(WEEKDAY(DATE(KalendarskaGodina+1,2,15),1),\"aaa\")","v":"pet"},{"$f":"TEXT(WEEKDAY(DATE(KalendarskaGodina+1,2,16),1),\"aaa\")","v":"sub"},{"$f":"TEXT(WEEKDAY(DATE(KalendarskaGodina+1,2,17),1),\"aaa\")","v":"ned"},{"$f":"TEXT(WEEKDAY(DATE(KalendarskaGodina+1,2,18),1),\"aaa\")","v":"pon"},{"$f":"TEXT(WEEKDAY(DATE(KalendarskaGodina+1,2,19),1),\"aaa\")","v":"uto"},{"$f":"TEXT(WEEKDAY(DATE(KalendarskaGodina+1,2,20),1),\"aaa\")","v":"sri"},{"$f":"TEXT(WEEKDAY(DATE(KalendarskaGodina+1,2,21),1),\"aaa\")","v":"čet"},{"$f":"TEXT(WEEKDAY(DATE(KalendarskaGodina+1,2,22),1),\"aaa\")","v":"pet"},{"$f":"TEXT(WEEKDAY(DATE(KalendarskaGodina+1,2,23),1),\"aaa\")","v":"sub"},{"$f":"TEXT(WEEKDAY(DATE(KalendarskaGodina+1,2,24),1),\"aaa\")","v":"ned"},{"$f":"TEXT(WEEKDAY(DATE(KalendarskaGodina+1,2,25),1),\"aaa\")","v":"pon"},{"$f":"TEXT(WEEKDAY(DATE(KalendarskaGodina+1,2,26),1),\"aaa\")","v":"uto"},{"$f":"TEXT(WEEKDAY(DATE(KalendarskaGodina+1,2,27),1),\"aaa\")","v":"sri"},{"$f":"TEXT(WEEKDAY(DATE(KalendarskaGodina+1,2,28),1),\"aaa\")","v":"čet"},{"$f":"TEXT(WEEKDAY(DATE(KalendarskaGodina+1,2,29),1),\"aaa\")","v":"pet"},null,null,"Ukupno"]
[null,"Identifikacijski broj učenika","Ime učenika","1","2","3","4","5","6","7","8","9","10","11","12","13","14","15","16","17","18","19","20","21","22","23","24","25","26","27","28","29","30","31","K","O","N","P","Dani izostanaka"]
[null,null,{"$f":"IFERROR(VLOOKUP(NazočnostZaVeljaču[[#This Row],[Identifikacijski broj učenika]],PopisUčenika[],18,FALSE),\"\")","v":""},{"$nulls":31},{"$f":"COUNTIF(NazočnostZaVeljaču[[#This Row],[1]:[31]],Šifra1)","v":0},{"$f":"COUNTIF(NazočnostZaVeljaču[[#This Row],[1]:[31]],Šifra2)","v":0},{"$f":"COUNTIF(NazočnostZaVeljaču[[#This Row],[1]:[31]],Šifra3)","v":0},{"$f":"COUNTIF(NazočnostZaVeljaču[[#This Row],[1]:[31]],Šifra4)","v":0},{"$f":"SUM(NazočnostZaRujan[[#This Row],[O]:[N]])","v":0}]
[null,null,{"$f":"IFERROR(VLOOKUP(NazočnostZaVeljaču[[#This Row],[Identifikacijski broj učenika]],PopisUčenika[],18,FALSE),\"\")","v":""},{"$nulls":31},{"$f":"COUNTIF(NazočnostZaVeljaču[[#This Row],[1]:[31]],Šifra1)","v":0},{"$f":"COUNTIF(NazočnostZaVeljaču[[#This Row],[1]:[31]],Šifra2)","v":0},{"$f":"COUNTIF(NazočnostZaVeljaču[[#This Row],[1]:[31]],Šifra3)","v":0},{"$f":"COUNTIF(NazočnostZaVeljaču[[#This Row],[1]:[31]],Šifra4)","v":0},{"$f":"SUM(NazočnostZaRujan[[#This Row],[O]:[N]])","v":0}]
[null,null,{"$f":"IFERROR(VLOOKUP(NazočnostZaVeljaču[[#This Row],[Identifikacijski broj učenika]],PopisUčenika[],18,FALSE),\"\")","v":""},{"$nulls":31},{"$f":"COUNTIF(NazočnostZaVeljaču[[#This Row],[1]:[31]],Šifra1)","v":0},{"$f":"COUNTIF(NazočnostZaVeljaču[[#This Row],[1]:[31]],Šifra2)","v":0},{"$f":"COUNTIF(NazočnostZaVeljaču[[#This Row],[1]:[31]],Šifra3)","v":0},{"$f":"COUNTIF(NazočnostZaVeljaču[[#This Row],[1]:[31]],Šifra4)","v":0},{"$f":"SUM(NazočnostZaRujan[[#This Row],[O]:[N]])","v":0}]
[null,null,{"$f":"IFERROR(VLOOKUP(NazočnostZaVeljaču[[#This Row],[Identifikacijski broj učenika]],PopisUčenika[],18,FALSE),\"\")","v":""},{"$nulls":31},{"$f":"COUNTIF(NazočnostZaVeljaču[[#This Row],[1]:[31]],Šifra1)","v":0},{"$f":"COUNTIF(NazočnostZaVeljaču[[#This Row],[1]:[31]],Šifra2)","v":0},{"$f":"COUNTIF(NazočnostZaVeljaču[[#This Row],[1]:[31]],Šifra3)","v":0},{"$f":"COUNTIF(NazočnostZaVeljaču[[#This Row],[1]:[31]],Šifra4)","v":0},{"$f":"SUM(NazočnostZaRujan[[#This Row],[O]:[N]])","v":0}]
[null,null,{"$f":"IFERROR(VLOOKUP(NazočnostZaVeljaču[[#This Row],[Identifikacijski broj učenika]],PopisUčenika[],18,FALSE),\"\")","v":""},{"$nulls":31},{"$f":"COUNTIF(NazočnostZaVeljaču[[#This Row],[1]:[31]],Šifra1)","v":0},{"$f":"COUNTIF(NazočnostZaVeljaču[[#This Row],[1]:[31]],Šifra2)","v":0},{"$f":"COUNTIF(NazočnostZaVeljaču[[#This Row],[1]:[31]],Šifra3)","v":0},{"$f":"COUNTIF(NazočnostZaVeljaču[[#This Row],[1]:[31]],Šifra4)","v":0},{"$f":"SUM(NazočnostZaRujan[[#This Row],[O]:[N]])","v":0}]
[null,null,"Ukupan broj dana izostanaka",{"$f":"COUNTIF(NazočnostZaVeljaču[1],\"N\")+COUNTIF(NazočnostZaVeljaču[1],\"O\")","v":0},{"$f":"COUNTIF(NazočnostZaVeljaču[2],\"N\")+COUNTIF(NazočnostZaVeljaču[2],\"O\")","v":0},{"$f":"COUNTIF(NazočnostZaVeljaču[3],\"N\")+COUNTIF(NazočnostZaVeljaču[3],\"O\")","v":0},{"$f":"COUNTIF(NazočnostZaVeljaču[4],\"N\")+COUNTIF(NazočnostZaVeljaču[4],\"O\")","v":0},{"$f":"COUNTIF(NazočnostZaVeljaču[5],\"N\")+COUNTIF(NazočnostZaVeljaču[5],\"O\")","v":0},{"$f":"COUNTIF(NazočnostZaVeljaču[6],\"N\")+COUNTIF(NazočnostZaVeljaču[6],\"O\")","v":0},{"$f":"COUNTIF(NazočnostZaVeljaču[7],\"N\")+COUNTIF(NazočnostZaVeljaču[7],\"O\")","v":0},{"$f":"COUNTIF(NazočnostZaVeljaču[8],\"N\")+COUNTIF(NazočnostZaVeljaču[8],\"O\")","v":0},{"$f":"COUNTIF(NazočnostZaVeljaču[9],\"N\")+COUNTIF(NazočnostZaVeljaču[9],\"O\")","v":0},{"$f":"COUNTIF(NazočnostZaVeljaču[10],\"N\")+COUNTIF(NazočnostZaVeljaču[10],\"O\")","v":0},{"$f":"COUNTIF(NazočnostZaVeljaču[11],\"N\")+COUNTIF(NazočnostZaVeljaču[11],\"O\")","v":0},{"$f":"COUNTIF(NazočnostZaVeljaču[12],\"N\")+COUNTIF(NazočnostZaVeljaču[12],\"O\")","v":0},{"$f":"COUNTIF(NazočnostZaVeljaču[13],\"N\")+COUNTIF(NazočnostZaVeljaču[13],\"O\")","v":0},{"$f":"COUNTIF(NazočnostZaVeljaču[14],\"N\")+COUNTIF(NazočnostZaVeljaču[14],\"O\")","v":0},{"$f":"COUNTIF(NazočnostZaVeljaču[15],\"N\")+COUNTIF(NazočnostZaVeljaču[15],\"O\")","v":0},{"$f":"COUNTIF(NazočnostZaVeljaču[16],\"N\")+COUNTIF(NazočnostZaVeljaču[16],\"O\")","v":0},{"$f":"COUNTIF(NazočnostZaVeljaču[17],\"N\")+COUNTIF(NazočnostZaVeljaču[17],\"O\")","v":0},{"$f":"COUNTIF(NazočnostZaVeljaču[18],\"N\")+COUNTIF(NazočnostZaVeljaču[18],\"O\")","v":0},{"$f":"COUNTIF(NazočnostZaVeljaču[19],\"N\")+COUNTIF(NazočnostZaVeljaču[19],\"O\")","v":0},{"$f":"COUNTIF(NazočnostZaVeljaču[20],\"N\")+COUNTIF(NazočnostZaVeljaču[20],\"O\")","v":0},{"$f":"COUNTIF(NazočnostZaVeljaču[21],\"N\")+COUNTIF(NazočnostZaVeljaču[21],\"O\")","v":0},{"$f":"COUNTIF(NazočnostZaVeljaču[22],\"N\")+COUNTIF(NazočnostZaVeljaču[22],\"O\")","v":0},{"$f":"COUNTIF(NazočnostZaVeljaču[23],\"N\")+COUNTIF(NazočnostZaVeljaču[23],\"O\")","v":0},{"$f":"COUNTIF(NazočnostZaVeljaču[24],\"N\")+COUNTIF(NazočnostZaVeljaču[24],\"O\")","v":0},{"$f":"COUNTIF(NazočnostZaVeljaču[25],\"N\")+COUNTIF(NazočnostZaVeljaču[25],\"O\")","v":0},{"$f":"COUNTIF(NazočnostZaVeljaču[26],\"N\")+COUNTIF(NazočnostZaVeljaču[26],\"O\")","v":0},{"$f":"COUNTIF(NazočnostZaVeljaču[27],\"N\")+COUNTIF(NazočnostZaVeljaču[27],\"O\")","v":0},{"$f":"COUNTIF(NazočnostZaVeljaču[28],\"N\")+COUNTIF(NazočnostZaVeljaču[28],\"O\")","v":0},{"$f":"COUNTIF(NazočnostZaVeljaču[29],\"N\")+COUNTIF(NazočnostZaVeljaču[29],\"O\")","v":0},{"$f":"COUNTIF(NazočnostZaVeljaču[30],\"N\")+COUNTIF(NazočnostZaVeljaču[30],\"O\")","v":0},{"$f":"COUNTIF(NazočnostZaVeljaču[31],\"N\")+COUNTIF(NazočnostZaVeljaču[31],\"O\")","v":0},{"$f":"SUBTOTAL(109,NazočnostZaVeljaču[K])","v":0},{"$f":"SUBTOTAL(109,NazočnostZaVeljaču[O])","v":0},{"$f":"SUBTOTAL(109,NazočnostZaVeljaču[N])","v":0},{"$f":"SUBTOTAL(109,NazočnostZaVeljaču[P])","v":0},{"$f":"SUBTOTAL(109,NazočnostZaVeljaču[Dani izostanaka])","v":0}]

{"sheet":"Ožujak","index":9,"n_rows":12,"n_cols":39,"rows_kept":12,"merged":[[4,34,4,38]]}
["EVIDENCIJA NAZOČNOSTI UČENIKA",{"$nulls":36},"Početak školske godine:",{"$f":"KalendarskaGodina","v":2012}]
[]
[null,null,{"$f":"TekstOpisaBoja","v":"OPIS BOJA "},{"$f":"Šifra1","v":"K"},{"$f":"TekstŠifre1","v":"Kašnjenje"},null,null,{"$f":"Šifra2","v":"O"},{"$f":"TekstŠifre2","v":"Opravdani"},null,null,{"$f":"Šifra3","v":"N"},{"$f":"TekstŠifre3","v":"Neopravdani"},null,null,{"$f":"Šifra4","v":"P"},{"$f":"TekstŠifre4","v":"Prisutan"},null,null,{"$f":"Šifra5","v":"Ne"},{"$f":"TekstŠifre5","v":"Nema škole"}]
[]
[null,{"$f":"DATE(KalendarskaGodina+1,3,1)","v":"2013-03-01"},null,{"$f":"TEXT(WEEKDAY(DATE(KalendarskaGodina+1,3,1),1),\"aaa\")","v":"pet"},{"$f":"TEXT(WEEKDAY(DATE(KalendarskaGodina+1,3,2),1),\"aaa\")","v":"sub"},{"$f":"TEXT(WEEKDAY(DATE(KalendarskaGodina+1,3,3),1),\"aaa\")","v":"ned"},{"$f":"TEXT(WEEKDAY(DATE(KalendarskaGodina+1,3,4),1),\"aaa\")","v":"pon"},{"$f":"TEXT(WEEKDAY(DATE(KalendarskaGodina+1,3,5),1),\"aaa\")","v":"uto"},{"$f":"TEXT(WEEKDAY(DATE(KalendarskaGodina+1,3,6),1),\"aaa\")","v":"sri"},{"$f":"TEXT(WEEKDAY(DATE(KalendarskaGodina+1,3,7),1),\"aaa\")","v":"čet"},{"$f":"TEXT(WEEKDAY(DATE(KalendarskaGodina+1,3,8),1),\"aaa\")","v":"pet"},{"$f":"TEXT(WEEKDAY(DATE(KalendarskaGodina+1,3,9),1),\"aaa\")","v":"sub"},{"$f":"TEXT(WEEKDAY(DATE(KalendarskaGodina+1,3,10),1),\"aaa\")","v":"ned"},{"$f":"TEXT(WEEKDAY(DATE(KalendarskaGodina+1,3,11),1),\"aaa\")","v":"pon"},{"$f":"TEXT(WEEKDAY(DATE(KalendarskaGodina+1,3,12),1),\"aaa\")","v":"uto"},{"$f":"TEXT(WEEKDAY(DATE(KalendarskaGodina+1,3,13),1),\"aaa\")","v":"sri"},{"$f":"TEXT(WEEKDAY(DATE(KalendarskaGodina+1,3,14),1),\"aaa\")","v":"čet"},{"$f":"TEXT(WEEKDAY(DATE(KalendarskaGodina+1,3,15),1),\"aaa\")","v":"pet"},{"$f":"TEXT(WEEKDAY(DATE(KalendarskaGodina+1,3,16),1),\"aaa\")","v":"sub"},{"$f":"TEXT(WEEKDAY(DATE(KalendarskaGodina+1,3,17),1),\"aaa\")","v":"ned"},{"$f":"TEXT(WEEKDAY(DATE(KalendarskaGodina+1,3,18),1),\"aaa\")","v":"pon"},{"$f":"TEXT(WEEKDAY(DATE(KalendarskaGodina+1,3,19),1),\"aaa\")","v":"uto"},{"$f":"TEXT(WEEKDAY(DATE(KalendarskaGodina+1,3,20),1),\"aaa\")","v":"sri"},{"$f":"TEXT(WEEKDAY(DATE(KalendarskaGodina+1,3,21),1),\"aaa\")","v":"čet"},{"$f":"TEXT(WEEKDAY(DATE(KalendarskaGodina+1,3,22),1),\"aaa\")","v":"pet"},{"$f":"TEXT(WEEKDAY(DATE(KalendarskaGodina+1,3,23),1),\"aaa\")","v":"sub"},{"$f":"TEXT(WEEKDAY(DATE(KalendarskaGodina+1,3,24),1),\"aaa\")","v":"ned"},{"$f":"TEXT(WEEKDAY(DATE(KalendarskaGodina+1,3,25),1),\"aaa\")","v":"pon"},{"$f":"TEXT(WEEKDAY(DATE(KalendarskaGodina+1,3,26),1),\"aaa\")","v":"uto"},{"$f":"TEXT(WEEKDAY(DATE(KalendarskaGodina+1,3,27),1),\"aaa\")","v":"sri"},{"$f":"TEXT(WEEKDAY(DATE(KalendarskaGodina+1,3,28),1),\"aaa\")","v":"čet"},{"$f":"TEXT(WEEKDAY(DATE(KalendarskaGodina+1,3,29),1),\"aaa\")","v":"pet"},{"$f":"TEXT(WEEKDAY(DATE(KalendarskaGodina+1,3,30),1),\"aaa\")","v":"sub"},{"$f":"TEXT(WEEKDAY(DATE(KalendarskaGodina+1,3,31),1),\"aaa\")","v":"ned"},"Ukupno"]
[null,"Identifikacijski broj učenika","Ime učenika","1","2","3","4","5","6","7","8","9","10","11","12","13","14","15","16","17","18","19","20","21","22","23","24","25","26","27","28","29","30","31","K","O","N","P","Dani izostanaka"]
[null,null,{"$f":"IFERROR(VLOOKUP(NazočnostZaOžujak[[#This Row],[Identifikacijski broj učenika]],PopisUčenika[],18,FALSE),\"\")","v":""},{"$nulls":31},{"$f":"COUNTIF(NazočnostZaOžujak[[#This Row],[1]:[31]],Šifra1)","v":0},{"$f":"COUNTIF(NazočnostZaOžujak[[#This Row],[1]:[31]],Šifra2)","v":0},{"$f":"COUNTIF(NazočnostZaOžujak[[#This Row],[1]:[31]],Šifra3)","v":0},{"$f":"COUNTIF(NazočnostZaOžujak[[#This Row],[1]:[31]],Šifra4)","v":0},{"$f":"SUM(NazočnostZaRujan[[#This Row],[O]:[N]])","v":0}]
[null,null,{"$f":"IFERROR(VLOOKUP(NazočnostZaOžujak[[#This Row],[Identifikacijski broj učenika]],PopisUčenika[],18,FALSE),\"\")","v":""},{"$nulls":31},{"$f":"COUNTIF(NazočnostZaOžujak[[#This Row],[1]:[31]],Šifra1)","v":0},{"$f":"COUNTIF(NazočnostZaOžujak[[#This Row],[1]:[31]],Šifra2)","v":0},{"$f":"COUNTIF(NazočnostZaOžujak[[#This Row],[1]:[31]],Šifra3)","v":0},{"$f":"COUNTIF(NazočnostZaOžujak[[#This Row],[1]:[31]],Šifra4)","v":0},{"$f":"SUM(NazočnostZaRujan[[#This Row],[O]:[N]])","v":0}]
[null,null,{"$f":"IFERROR(VLOOKUP(NazočnostZaOžujak[[#This Row],[Identifikacijski broj učenika]],PopisUčenika[],18,FALSE),\"\")","v":""},{"$nulls":31},{"$f":"COUNTIF(NazočnostZaOžujak[[#This Row],[1]:[31]],Šifra1)","v":0},{"$f":"COUNTIF(NazočnostZaOžujak[[#This Row],[1]:[31]],Šifra2)","v":0},{"$f":"COUNTIF(NazočnostZaOžujak[[#This Row],[1]:[31]],Šifra3)","v":0},{"$f":"COUNTIF(NazočnostZaOžujak[[#This Row],[1]:[31]],Šifra4)","v":0},{"$f":"SUM(NazočnostZaRujan[[#This Row],[O]:[N]])","v":0}]
[null,null,{"$f":"IFERROR(VLOOKUP(NazočnostZaOžujak[[#This Row],[Identifikacijski broj učenika]],PopisUčenika[],18,FALSE),\"\")","v":""},{"$nulls":31},{"$f":"COUNTIF(NazočnostZaOžujak[[#This Row],[1]:[31]],Šifra1)","v":0},{"$f":"COUNTIF(NazočnostZaOžujak[[#This Row],[1]:[31]],Šifra2)","v":0},{"$f":"COUNTIF(NazočnostZaOžujak[[#This Row],[1]:[31]],Šifra3)","v":0},{"$f":"COUNTIF(NazočnostZaOžujak[[#This Row],[1]:[31]],Šifra4)","v":0},{"$f":"SUM(NazočnostZaRujan[[#This Row],[O]:[N]])","v":0}]
[null,null,{"$f":"IFERROR(VLOOKUP(NazočnostZaOžujak[[#This Row],[Identifikacijski broj učenika]],PopisUčenika[],18,FALSE),\"\")","v":""},{"$nulls":31},{"$f":"COUNTIF(NazočnostZaOžujak[[#This Row],[1]:[31]],Šifra1)","v":0},{"$f":"COUNTIF(NazočnostZaOžujak[[#This Row],[1]:[31]],Šifra2)","v":0},{"$f":"COUNTIF(NazočnostZaOžujak[[#This Row],[1]:[31]],Šifra3)","v":0},{"$f":"COUNTIF(NazočnostZaOžujak[[#This Row],[1]:[31]],Šifra4)","v":0},{"$f":"SUM(NazočnostZaRujan[[#This Row],[O]:[N]])","v":0}]
[null,null,"Ukupan broj dana izostanaka",{"$f":"COUNTIF(NazočnostZaOžujak[1],\"N\")+COUNTIF(NazočnostZaOžujak[1],\"O\")","v":0},{"$f":"COUNTIF(NazočnostZaOžujak[2],\"N\")+COUNTIF(NazočnostZaOžujak[2],\"O\")","v":0},{"$f":"COUNTIF(NazočnostZaOžujak[3],\"N\")+COUNTIF(NazočnostZaOžujak[3],\"O\")","v":0},{"$f":"COUNTIF(NazočnostZaOžujak[4],\"N\")+COUNTIF(NazočnostZaOžujak[4],\"O\")","v":0},{"$f":"COUNTIF(NazočnostZaOžujak[5],\"N\")+COUNTIF(NazočnostZaOžujak[5],\"O\")","v":0},{"$f":"COUNTIF(NazočnostZaOžujak[6],\"N\")+COUNTIF(NazočnostZaOžujak[6],\"O\")","v":0},{"$f":"COUNTIF(NazočnostZaOžujak[7],\"N\")+COUNTIF(NazočnostZaOžujak[7],\"O\")","v":0},{"$f":"COUNTIF(NazočnostZaOžujak[8],\"N\")+COUNTIF(NazočnostZaOžujak[8],\"O\")","v":0},{"$f":"COUNTIF(NazočnostZaOžujak[9],\"N\")+COUNTIF(NazočnostZaOžujak[9],\"O\")","v":0},{"$f":"COUNTIF(NazočnostZaOžujak[10],\"N\")+COUNTIF(NazočnostZaOžujak[10],\"O\")","v":0},{"$f":"COUNTIF(NazočnostZaOžujak[11],\"N\")+COUNTIF(NazočnostZaOžujak[11],\"O\")","v":0},{"$f":"COUNTIF(NazočnostZaOžujak[12],\"N\")+COUNTIF(NazočnostZaOžujak[12],\"O\")","v":0},{"$f":"COUNTIF(NazočnostZaOžujak[13],\"N\")+COUNTIF(NazočnostZaOžujak[13],\"O\")","v":0},{"$f":"COUNTIF(NazočnostZaOžujak[14],\"N\")+COUNTIF(NazočnostZaOžujak[14],\"O\")","v":0},{"$f":"COUNTIF(NazočnostZaOžujak[15],\"N\")+COUNTIF(NazočnostZaOžujak[15],\"O\")","v":0},{"$f":"COUNTIF(NazočnostZaOžujak[16],\"N\")+COUNTIF(NazočnostZaOžujak[16],\"O\")","v":0},{"$f":"COUNTIF(NazočnostZaOžujak[17],\"N\")+COUNTIF(NazočnostZaOžujak[17],\"O\")","v":0},{"$f":"COUNTIF(NazočnostZaOžujak[18],\"N\")+COUNTIF(NazočnostZaOžujak[18],\"O\")","v":0},{"$f":"COUNTIF(NazočnostZaOžujak[19],\"N\")+COUNTIF(NazočnostZaOžujak[19],\"O\")","v":0},{"$f":"COUNTIF(NazočnostZaOžujak[20],\"N\")+COUNTIF(NazočnostZaOžujak[20],\"O\")","v":0},{"$f":"COUNTIF(NazočnostZaOžujak[21],\"N\")+COUNTIF(NazočnostZaOžujak[21],\"O\")","v":0},{"$f":"COUNTIF(NazočnostZaOžujak[22],\"N\")+COUNTIF(NazočnostZaOžujak[22],\"O\")","v":0},{"$f":"COUNTIF(NazočnostZaOžujak[23],\"N\")+COUNTIF(NazočnostZaOžujak[23],\"O\")","v":0},{"$f":"COUNTIF(NazočnostZaOžujak[24],\"N\")+COUNTIF(NazočnostZaOžujak[24],\"O\")","v":0},{"$f":"COUNTIF(NazočnostZaOžujak[25],\"N\")+COUNTIF(NazočnostZaOžujak[25],\"O\")","v":0},{"$f":"COUNTIF(NazočnostZaOžujak[26],\"N\")+COUNTIF(NazočnostZaOžujak[26],\"O\")","v":0},{"$f":"COUNTIF(NazočnostZaOžujak[27],\"N\")+COUNTIF(NazočnostZaOžujak[27],\"O\")","v":0},{"$f":"COUNTIF(NazočnostZaOžujak[28],\"N\")+COUNTIF(NazočnostZaOžujak[28],\"O\")","v":0},{"$f":"COUNTIF(NazočnostZaOžujak[29],\"N\")+COUNTIF(NazočnostZaOžujak[29],\"O\")","v":0},{"$f":"COUNTIF(NazočnostZaOžujak[30],\"N\")+COUNTIF(NazočnostZaOžujak[30],\"O\")","v":0},{"$f":"COUNTIF(NazočnostZaOžujak[31],\"N\")+COUNTIF(NazočnostZaOžujak[31],\"O\")","v":0},{"$f":"SUBTOTAL(109,NazočnostZaOžujak[K])","v":0},{"$f":"SUBTOTAL(109,NazočnostZaOžujak[O])","v":0},{"$f":"SUBTOTAL(109,NazočnostZaOžujak[N])","v":0},{"$f":"SUBTOTAL(109,NazočnostZaOžujak[P])","v":0},{"$f":"SUBTOTAL(109,NazočnostZaOžujak[Dani izostanaka])","v":0}]

{"sheet":"Travanj","index":10,"n_rows":12,"n_cols":39,"rows_kept":12,"merged":[[4,34,4,38]]}
["EVIDENCIJA NAZOČNOSTI UČENIKA",{"$nulls":36},"Početak školske godine:",{"$f":"KalendarskaGodina","v":2012}]
[]
[null,null,{"$f":"TekstOpisaBoja","v":"OPIS BOJA "},{"$f":"Šifra1","v":"K"},{"$f":"TekstŠifre1","v":"Kašnjenje"},null,null,{"$f":"Šifra2","v":"O"},{"$f":"TekstŠifre2","v":"Opravdani"},null,null,{"$f":"Šifra3","v":"N"},{"$f":"TekstŠifre3","v":"Neopravdani"},null,null,{"$f":"Šifra4","v":"P"},{"$f":"TekstŠifre4","v":"Prisutan"},null,null,{"$f":"Šifra5","v":"Ne"},{"$f":"TekstŠifre5","v":"Nema škole"}]
[]
[null,{"$f":"DATE(KalendarskaGodina+1,4,1)","v":"2013-04-01"},null,{"$f":"TEXT(WEEKDAY(DATE(KalendarskaGodina+1,4,1),1),\"aaa\")","v":"pon"},{"$f":"TEXT(WEEKDAY(DATE(KalendarskaGodina+1,4,2),1),\"aaa\")","v":"uto"},{"$f":"TEXT(WEEKDAY(DATE(KalendarskaGodina+1,4,3),1),\"aaa\")","v":"sri"},{"$f":"TEXT(WEEKDAY(DATE(KalendarskaGodina+1,4,4),1),\"aaa\")","v":"čet"},{"$f":"TEXT(WEEKDAY(DATE(KalendarskaGodina+1,4,5),1),\"aaa\")","v":"pet"},{"$f":"TEXT(WEEKDAY(DATE(KalendarskaGodina+1,4,6),1),\"aaa\")","v":"sub"},{"$f":"TEXT(WEEKDAY(DATE(KalendarskaGodina+1,4,7),1),\"aaa\")","v":"ned"},{"$f":"TEXT(WEEKDAY(DATE(KalendarskaGodina+1,4,8),1),\"aaa\")","v":"pon"},{"$f":"TEXT(WEEKDAY(DATE(KalendarskaGodina+1,4,9),1),\"aaa\")","v":"uto"},{"$f":"TEXT(WEEKDAY(DATE(KalendarskaGodina+1,4,10),1),\"aaa\")","v":"sri"},{"$f":"TEXT(WEEKDAY(DATE(KalendarskaGodina+1,4,11),1),\"aaa\")","v":"čet"},{"$f":"TEXT(WEEKDAY(DATE(KalendarskaGodina+1,4,12),1),\"aaa\")","v":"pet"},{"$f":"TEXT(WEEKDAY(DATE(KalendarskaGodina+1,4,13),1),\"aaa\")","v":"sub"},{"$f":"TEXT(WEEKDAY(DATE(KalendarskaGodina+1,4,14),1),\"aaa\")","v":"ned"},{"$f":"TEXT(WEEKDAY(DATE(KalendarskaGodina+1,4,15),1),\"aaa\")","v":"pon"},{"$f":"TEXT(WEEKDAY(DATE(KalendarskaGodina+1,4,16),1),\"aaa\")","v":"uto"},{"$f":"TEXT(WEEKDAY(DATE(KalendarskaGodina+1,4,17),1),\"aaa\")","v":"sri"},{"$f":"TEXT(WEEKDAY(DATE(KalendarskaGodina+1,4,18),1),\"aaa\")","v":"čet"},{"$f":"TEXT(WEEKDAY(DATE(KalendarskaGodina+1,4,19),1),\"aaa\")","v":"pet"},{"$f":"TEXT(WEEKDAY(DATE(KalendarskaGodina+1,4,20),1),\"aaa\")","v":"sub"},{"$f":"TEXT(WEEKDAY(DATE(KalendarskaGodina+1,4,21),1),\"aaa\")","v":"ned"},{"$f":"TEXT(WEEKDAY(DATE(KalendarskaGodina+1,4,22),1),\"aaa\")","v":"pon"},{"$f":"TEXT(WEEKDAY(DATE(KalendarskaGodina+1,4,23),1),\"aaa\")","v":"uto"},{"$f":"TEXT(WEEKDAY(DATE(KalendarskaGodina+1,4,24),1),\"aaa\")","v":"sri"},{"$f":"TEXT(WEEKDAY(DATE(KalendarskaGodina+1,4,25),1),\"aaa\")","v":"čet"},{"$f":"TEXT(WEEKDAY(DATE(KalendarskaGodina+1,4,26),1),\"aaa\")","v":"pet"},{"$f":"TEXT(WEEKDAY(DATE(KalendarskaGodina+1,4,27),1),\"aaa\")","v":"sub"},{"$f":"TEXT(WEEKDAY(DATE(KalendarskaGodina+1,4,28),1),\"aaa\")","v":"ned"},{"$f":"TEXT(WEEKDAY(DATE(KalendarskaGodina+1,4,29),1),\"aaa\")","v":"pon"},{"$f":"TEXT(WEEKDAY(DATE(KalendarskaGodina+1,4,30),1),\"aaa\")","v":"uto"},null,"Ukupno"]
[null,"Identifikacijski broj učenika","Ime učenika","1","2","3","4","5","6","7","8","9","10","11","12","13","14","15","16","17","18","19","20","21","22","23","24","25","26","27","28","29","30"," ","K","O","N","P","Dani izostanaka"]
[null,null,{"$f":"IFERROR(VLOOKUP(NazočnostZaTravanj[[#This Row],[Identifikacijski broj učenika]],PopisUčenika[],18,FALSE),\"\")","v":""},{"$nulls":31},{"$f":"COUNTIF(NazočnostZaTravanj[[#This Row],[1]:[ ]],Šifra1)","v":0},{"$f":"COUNTIF(NazočnostZaTravanj[[#This Row],[1]:[ ]],Šifra2)","v":0},{"$f":"COUNTIF(NazočnostZaTravanj[[#This Row],[1]:[ ]],Šifra3)","v":0},{"$f":"COUNTIF(NazočnostZaTravanj[[#This Row],[1]:[ ]],Šifra4)","v":0},{"$f":"SUM(NazočnostZaRujan[[#This Row],[O]:[N]])","v":0}]
[null,null,{"$f":"IFERROR(VLOOKUP(NazočnostZaTravanj[[#This Row],[Identifikacijski broj učenika]],PopisUčenika[],18,FALSE),\"\")","v":""},{"$nulls":31},{"$f":"COUNTIF(NazočnostZaTravanj[[#This Row],[1]:[ ]],Šifra1)","v":0},{"$f":"COUNTIF(NazočnostZaTravanj[[#This Row],[1]:[ ]],Šifra2)","v":0},{"$f":"COUNTIF(NazočnostZaTravanj[[#This Row],[1]:[ ]],Šifra3)","v":0},{"$f":"COUNTIF(NazočnostZaTravanj[[#This Row],[1]:[ ]],Šifra4)","v":0},{"$f":"SUM(NazočnostZaRujan[[#This Row],[O]:[N]])","v":0}]
[null,null,{"$f":"IFERROR(VLOOKUP(NazočnostZaTravanj[[#This Row],[Identifikacijski broj učenika]],PopisUčenika[],18,FALSE),\"\")","v":""},{"$nulls":31},{"$f":"COUNTIF(NazočnostZaTravanj[[#This Row],[1]:[ ]],Šifra1)","v":0},{"$f":"COUNTIF(NazočnostZaTravanj[[#This Row],[1]:[ ]],Šifra2)","v":0},{"$f":"COUNTIF(NazočnostZaTravanj[[#This Row],[1]:[ ]],Šifra3)","v":0},{"$f":"COUNTIF(NazočnostZaTravanj[[#This Row],[1]:[ ]],Šifra4)","v":0},{"$f":"SUM(NazočnostZaRujan[[#This Row],[O]:[N]])","v":0}]
[null,null,{"$f":"IFERROR(VLOOKUP(NazočnostZaTravanj[[#This Row],[Identifikacijski broj učenika]],PopisUčenika[],18,FALSE),\"\")","v":""},{"$nulls":31},{"$f":"COUNTIF(NazočnostZaTravanj[[#This Row],[1]:[ ]],Šifra1)","v":0},{"$f":"COUNTIF(NazočnostZaTravanj[[#This Row],[1]:[ ]],Šifra2)","v":0},{"$f":"COUNTIF(NazočnostZaTravanj[[#This Row],[1]:[ ]],Šifra3)","v":0},{"$f":"COUNTIF(NazočnostZaTravanj[[#This Row],[1]:[ ]],Šifra4)","v":0},{"$f":"SUM(NazočnostZaRujan[[#This Row],[O]:[N]])","v":0}]
[null,null,{"$f":"IFERROR(VLOOKUP(NazočnostZaTravanj[[#This Row],[Identifikacijski broj učenika]],PopisUčenika[],18,FALSE),\"\")","v":""},{"$nulls":31},{"$f":"COUNTIF(NazočnostZaTravanj[[#This Row],[1]:[ ]],Šifra1)","v":0},{"$f":"COUNTIF(NazočnostZaTravanj[[#This Row],[1]:[ ]],Šifra2)","v":0},{"$f":"COUNTIF(NazočnostZaTravanj[[#This Row],[1]:[ ]],Šifra3)","v":0},{"$f":"COUNTIF(NazočnostZaTravanj[[#This Row],[1]:[ ]],Šifra4)","v":0},{"$f":"SUM(NazočnostZaRujan[[#This Row],[O]:[N]])","v":0}]
[null,null,"Ukupan broj dana izostanaka",{"$f":"COUNTIF(NazočnostZaTravanj[1],\"N\")+COUNTIF(NazočnostZaTravanj[1],\"O\")","v":0},{"$f":"COUNTIF(NazočnostZaTravanj[2],\"N\")+COUNTIF(NazočnostZaTravanj[2],\"O\")","v":0},{"$f":"COUNTIF(NazočnostZaTravanj[3],\"N\")+COUNTIF(NazočnostZaTravanj[3],\"O\")","v":0},{"$f":"COUNTIF(NazočnostZaTravanj[4],\"N\")+COUNTIF(NazočnostZaTravanj[4],\"O\")","v":0},{"$f":"COUNTIF(NazočnostZaTravanj[5],\"N\")+COUNTIF(NazočnostZaTravanj[5],\"O\")","v":0},{"$f":"COUNTIF(NazočnostZaTravanj[6],\"N\")+COUNTIF(NazočnostZaTravanj[6],\"O\")","v":0},{"$f":"COUNTIF(NazočnostZaTravanj[7],\"N\")+COUNTIF(NazočnostZaTravanj[7],\"O\")","v":0},{"$f":"COUNTIF(NazočnostZaTravanj[8],\"N\")+COUNTIF(NazočnostZaTravanj[8],\"O\")","v":0},{"$f":"COUNTIF(NazočnostZaTravanj[9],\"N\")+COUNTIF(NazočnostZaTravanj[9],\"O\")","v":0},{"$f":"COUNTIF(NazočnostZaTravanj[10],\"N\")+COUNTIF(NazočnostZaTravanj[10],\"O\")","v":0},{"$f":"COUNTIF(NazočnostZaTravanj[11],\"N\")+COUNTIF(NazočnostZaTravanj[11],\"O\")","v":0},{"$f":"COUNTIF(NazočnostZaTravanj[12],\"N\")+COUNTIF(NazočnostZaTravanj[12],\"O\")","v":0},{"$f":"COUNTIF(NazočnostZaTravanj[13],\"N\")+COUNTIF(NazočnostZaTravanj[13],\"O\")","v":0},{"$f":"COUNTIF(NazočnostZaTravanj[14],\"N\")+COUNTIF(NazočnostZaTravanj[14],\"O\")","v":0},{"$f":"COUNTIF(NazočnostZaTravanj[15],\"N\")+COUNTIF(NazočnostZaTravanj[15],\"O\")","v":0},{"$f":"COUNTIF(NazočnostZaTravanj[16],\"N\")+COUNTIF(NazočnostZaTravanj[16],\"O\")","v":0},{"$f":"COUNTIF(NazočnostZaTravanj[17],\"N\")+COUNTIF(NazočnostZaTravanj[17],\"O\")","v":0},{"$f":"COUNTIF(NazočnostZaTravanj[18],\"N\")+COUNTIF(NazočnostZaTravanj[18],\"O\")","v":0},{"$f":"COUNTIF(NazočnostZaTravanj[19],\"N\")+COUNTIF(NazočnostZaTravanj[19],\"O\")","v":0},{"$f":"COUNTIF(NazočnostZaTravanj[20],\"N\")+COUNTIF(NazočnostZaTravanj[20],\"O\")","v":0},{"$f":"COUNTIF(NazočnostZaTravanj[21],\"N\")+COUNTIF(NazočnostZaTravanj[21],\"O\")","v":0},{"$f":"COUNTIF(NazočnostZaTravanj[22],\"N\")+COUNTIF(NazočnostZaTravanj[22],\"O\")","v":0},{"$f":"COUNTIF(NazočnostZaTravanj[23],\"N\")+COUNTIF(NazočnostZaTravanj[23],\"O\")","v":0},{"$f":"COUNTIF(NazočnostZaTravanj[24],\"N\")+COUNTIF(NazočnostZaTravanj[24],\"O\")","v":0},{"$f":"COUNTIF(NazočnostZaTravanj[25],\"N\")+COUNTIF(NazočnostZaTravanj[25],\"O\")","v":0},{"$f":"COUNTIF(NazočnostZaTravanj[26],\"N\")+COUNTIF(NazočnostZaTravanj[26],\"O\")","v":0},{"$f":"COUNTIF(NazočnostZaTravanj[27],\"N\")+COUNTIF(NazočnostZaTravanj[27],\"O\")","v":0},{"$f":"COUNTIF(NazočnostZaTravanj[28],\"N\")+COUNTIF(NazočnostZaTravanj[28],\"O\")","v":0},{"$f":"COUNTIF(NazočnostZaTravanj[29],\"N\")+COUNTIF(NazočnostZaTravanj[29],\"O\")","v":0},{"$f":"COUNTIF(NazočnostZaTravanj[30],\"N\")+COUNTIF(NazočnostZaTravanj[30],\"O\")","v":0},{"$f":"COUNTIF(NazočnostZaTravanj[[ ]],\"N\")+COUNTIF(NazočnostZaTravanj[[ ]],\"O\")","v":0},{"$f":"SUBTOTAL(109,NazočnostZaTravanj[K])","v":0},{"$f":"SUBTOTAL(109,NazočnostZaTravanj[O])","v":0},{"$f":"SUBTOTAL(109,NazočnostZaTravanj[N])","v":0},{"$f":"SUBTOTAL(109,NazočnostZaTravanj[P])","v":0},{"$f":"SUBTOTAL(109,NazočnostZaTravanj[Dani izostanaka])","v":0}]

{"sheet":"Svibanj","index":11,"n_rows":12,"n_cols":39,"rows_kept":12,"merged":[[4,34,4,38]]}
["EVIDENCIJA NAZOČNOSTI UČENIKA",{"$nulls":36},"Početak školske godine:",{"$f":"KalendarskaGodina","v":2012}]
[]
[null,null,{"$f":"TekstOpisaBoja","v":"OPIS BOJA "},{"$f":"Šifra1","v":"K"},{"$f":"TekstŠifre1","v":"Kašnjenje"},null,null,{"$f":"Šifra2","v":"O"},{"$f":"TekstŠifre2","v":"Opravdani"},null,null,{"$f":"Šifra3","v":"N"},{"$f":"TekstŠifre3","v":"Neopravdani"},null,null,{"$f":"Šifra4","v":"P"},{"$f":"TekstŠifre4","v":"Prisutan"},null,null,{"$f":"Šifra5","v":"Ne"},{"$f":"TekstŠifre5","v":"Nema škole"}]
[]
[null,{"$f":"DATE(KalendarskaGodina+1,5,1)","v":"2013-05-01"},null,{"$f":"TEXT(WEEKDAY(DATE(KalendarskaGodina+1,5,1),1),\"aaa\")","v":"sri"},{"$f":"TEXT(WEEKDAY(DATE(KalendarskaGodina+1,5,2),1),\"aaa\")","v":"čet"},{"$f":"TEXT(WEEKDAY(DATE(KalendarskaGodina+1,5,3),1),\"aaa\")","v":"pet"},{"$f":"TEXT(WEEKDAY(DATE(KalendarskaGodina+1,5,4),1),\"aaa\")","v":"sub"},{"$f":"TEXT(WEEKDAY(DATE(KalendarskaGodina+1,5,5),1),\"aaa\")","v":"ned"},{"$f":"TEXT(WEEKDAY(DATE(KalendarskaGodina+1,5,6),1),\"aaa\")","v":"pon"},{"$f":"TEXT(WEEKDAY(DATE(KalendarskaGodina+1,5,7),1),\"aaa\")","v":"uto"},{"$f":"TEXT(WEEKDAY(DATE(KalendarskaGodina+1,5,8),1),\"aaa\")","v":"sri"},{"$f":"TEXT(WEEKDAY(DATE(KalendarskaGodina+1,5,9),1),\"aaa\")","v":"čet"},{"$f":"TEXT(WEEKDAY(DATE(KalendarskaGodina+1,5,10),1),\"aaa\")","v":"pet"},{"$f":"TEXT(WEEKDAY(DATE(KalendarskaGodina+1,5,11),1),\"aaa\")","v":"sub"},{"$f":"TEXT(WEEKDAY(DATE(KalendarskaGodina+1,5,12),1),\"aaa\")","v":"ned"},{"$f":"TEXT(WEEKDAY(DATE(KalendarskaGodina+1,5,13),1),\"aaa\")","v":"pon"},{"$f":"TEXT(WEEKDAY(DATE(KalendarskaGodina+1,5,14),1),\"aaa\")","v":"uto"},{"$f":"TEXT(WEEKDAY(DATE(KalendarskaGodina+1,5,15),1),\"aaa\")","v":"sri"},{"$f":"TEXT(WEEKDAY(DATE(KalendarskaGodina+1,5,16),1),\"aaa\")","v":"čet"},{"$f":"TEXT(WEEKDAY(DATE(KalendarskaGodina+1,5,17),1),\"aaa\")","v":"pet"},{"$f":"TEXT(WEEKDAY(DATE(KalendarskaGodina+1,5,18),1),\"aaa\")","v":"sub"},{"$f":"TEXT(WEEKDAY(DATE(KalendarskaGodina+1,5,19),1),\"aaa\")","v":"ned"},{"$f":"TEXT(WEEKDAY(DATE(KalendarskaGodina+1,5,20),1),\"aaa\")","v":"pon"},{"$f":"TEXT(WEEKDAY(DATE(KalendarskaGodina+1,5,21),1),\"aaa\")","v":"uto"},{"$f":"TEXT(WEEKDAY(DATE(KalendarskaGodina+1,5,22),1),\"aaa\")","v":"sri"},{"$f":"TEXT(WEEKDAY(DATE(KalendarskaGodina+1,5,23),1),\"aaa\")","v":"čet"},{"$f":"TEXT(WEEKDAY(DATE(KalendarskaGodina+1,5,24),1),\"aaa\")","v":"pet"},{"$f":"TEXT(WEEKDAY(DATE(KalendarskaGodina+1,5,25),1),\"aaa\")","v":"sub"},{"$f":"TEXT(WEEKDAY(DATE(KalendarskaGodina+1,5,26),1),\"aaa\")","v":"ned"},{"$f":"TEXT(WEEKDAY(DATE(KalendarskaGodina+1,5,27),1),\"aaa\")","v":"pon"},{"$f":"TEXT(WEEKDAY(DATE(KalendarskaGodina+1,5,28),1),\"aaa\")","v":"uto"},{"$f":"TEXT(WEEKDAY(DATE(KalendarskaGodina+1,5,29),1),\"aaa\")","v":"sri"},{"$f":"TEXT(WEEKDAY(DATE(KalendarskaGodina+1,5,30),1),\"aaa\")","v":"čet"},{"$f":"TEXT(WEEKDAY(DATE(KalendarskaGodina+1,5,31),1),\"aaa\")","v":"pet"},"Ukupno"]
[null,"Identifikacijski broj učenika","Ime učenika","1","2","3","4","5","6","7","8","9","10","11","12","13","14","15","16","17","18","19","20","21","22","23","24","25","26","27","28","29","30","31","K","O","N","P","Dani izostanaka"]
[null,null,{"$f":"IFERROR(VLOOKUP(NazočnostZaSvibanj[[#This Row],[Identifikacijski broj učenika]],PopisUčenika[],18,FALSE),\"\")","v":""},{"$nulls":31},{"$f":"COUNTIF(NazočnostZaSvibanj[[#This Row],[1]:[31]],Šifra1)","v":0},{"$f":"COUNTIF(NazočnostZaSvibanj[[#This Row],[1]:[31]],Šifra2)","v":0},{"$f":"COUNTIF(NazočnostZaSvibanj[[#This Row],[1]:[31]],Šifra3)","v":0},{"$f":"COUNTIF(NazočnostZaSvibanj[[#This Row],[1]:[31]],Šifra4)","v":0},{"$f":"SUM(NazočnostZaRujan[[#This Row],[O]:[N]])","v":0}]
[null,null,{"$f":"IFERROR(VLOOKUP(NazočnostZaSvibanj[[#This Row],[Identifikacijski broj učenika]],PopisUčenika[],18,FALSE),\"\")","v":""},{"$nulls":31},{"$f":"COUNTIF(NazočnostZaSvibanj[[#This Row],[1]:[31]],Šifra1)","v":0},{"$f":"COUNTIF(NazočnostZaSvibanj[[#This Row],[1]:[31]],Šifra2)","v":0},{"$f":"COUNTIF(NazočnostZaSvibanj[[#This Row],[1]:[31]],Šifra3)","v":0},{"$f":"COUNTIF(NazočnostZaSvibanj[[#This Row],[1]:[31]],Šifra4)","v":0},{"$f":"SUM(NazočnostZaRujan[[#This Row],[O]:[N]])","v":0}]
[null,null,{"$f":"IFERROR(VLOOKUP(NazočnostZaSvibanj[[#This Row],[Identifikacijski broj učenika]],PopisUčenika[],18,FALSE),\"\")","v":""},{"$nulls":31},{"$f":"COUNTIF(NazočnostZaSvibanj[[#This Row],[1]:[31]],Šifra1)","v":0},{"$f":"COUNTIF(NazočnostZaSvibanj[[#This Row],[1]:[31]],Šifra2)","v":0},{"$f":"COUNTIF(NazočnostZaSvibanj[[#This Row],[1]:[31]],Šifra3)","v":0},{"$f":"COUNTIF(NazočnostZaSvibanj[[#This Row],[1]:[31]],Šifra4)","v":0},{"$f":"SUM(NazočnostZaRujan[[#This Row],[O]:[N]])","v":0}]
[null,null,{"$f":"IFERROR(VLOOKUP(NazočnostZaSvibanj[[#This Row],[Identifikacijski broj učenika]],PopisUčenika[],18,FALSE),\"\")","v":""},{"$nulls":31},{"$f":"COUNTIF(NazočnostZaSvibanj[[#This Row],[1]:[31]],Šifra1)","v":0},{"$f":"COUNTIF(NazočnostZaSvibanj[[#This Row],[1]:[31]],Šifra2)","v":0},{"$f":"COUNTIF(NazočnostZaSvibanj[[#This Row],[1]:[31]],Šifra3)","v":0},{"$f":"COUNTIF(NazočnostZaSvibanj[[#This Row],[1]:[31]],Šifra4)","v":0},{"$f":"SUM(NazočnostZaRujan[[#This Row],[O]:[N]])","v":0}]
[null,null,{"$f":"IFERROR(VLOOKUP(NazočnostZaSvibanj[[#This Row],[Identifikacijski broj učenika]],PopisUčenika[],18,FALSE),\"\")","v":""},{"$nulls":31},{"$f":"COUNTIF(NazočnostZaSvibanj[[#This Row],[1]:[31]],Šifra1)","v":0},{"$f":"COUNTIF(NazočnostZaSvibanj[[#This Row],[1]:[31]],Šifra2)","v":0},{"$f":"COUNTIF(NazočnostZaSvibanj[[#This Row],[1]:[31]],Šifra3)","v":0},{"$f":"COUNTIF(NazočnostZaSvibanj[[#This Row],[1]:[31]],Šifra4)","v":0},{"$f":"SUM(NazočnostZaRujan[[#This Row],[O]:[N]])","v":0}]
[null,null,"Ukupan broj dana izostanaka",{"$f":"COUNTIF(NazočnostZaSvibanj[1],\"N\")+COUNTIF(NazočnostZaSvibanj[1],\"O\")","v":0},{"$f":"COUNTIF(NazočnostZaSvibanj[2],\"N\")+COUNTIF(NazočnostZaSvibanj[2],\"O\")","v":0},{"$f":"COUNTIF(NazočnostZaSvibanj[3],\"N\")+COUNTIF(NazočnostZaSvibanj[3],\"O\")","v":0},{"$f":"COUNTIF(NazočnostZaSvibanj[4],\"N\")+COUNTIF(NazočnostZaSvibanj[4],\"O\")","v":0},{"$f":"COUNTIF(NazočnostZaSvibanj[5],\"N\")+COUNTIF(NazočnostZaSvibanj[5],\"O\")","v":0},{"$f":"COUNTIF(NazočnostZaSvibanj[6],\"N\")+COUNTIF(NazočnostZaSvibanj[6],\"O\")","v":0},{"$f":"COUNTIF(NazočnostZaSvibanj[7],\"N\")+COUNTIF(NazočnostZaSvibanj[7],\"O\")","v":0},{"$f":"COUNTIF(NazočnostZaSvibanj[8],\"N\")+COUNTIF(NazočnostZaSvibanj[8],\"O\")","v":0},{"$f":"COUNTIF(NazočnostZaSvibanj[9],\"N\")+COUNTIF(NazočnostZaSvibanj[9],\"O\")","v":0},{"$f":"COUNTIF(NazočnostZaSvibanj[10],\"N\")+COUNTIF(NazočnostZaSvibanj[10],\"O\")","v":0},{"$f":"COUNTIF(NazočnostZaSvibanj[11],\"N\")+COUNTIF(NazočnostZaSvibanj[11],\"O\")","v":0},{"$f":"COUNTIF(NazočnostZaSvibanj[12],\"N\")+COUNTIF(NazočnostZaSvibanj[12],\"O\")","v":0},{"$f":"COUNTIF(NazočnostZaSvibanj[13],\"N\")+COUNTIF(NazočnostZaSvibanj[13],\"O\")","v":0},{"$f":"COUNTIF(NazočnostZaSvibanj[14],\"N\")+COUNTIF(NazočnostZaSvibanj[14],\"O\")","v":0},{"$f":"COUNTIF(NazočnostZaSvibanj[15],\"N\")+COUNTIF(NazočnostZaSvibanj[15],\"O\")","v":0},{"$f":"COUNTIF(NazočnostZaSvibanj[16],\"N\")+COUNTIF(NazočnostZaSvibanj[16],\"O\")","v":0},{"$f":"COUNTIF(NazočnostZaSvibanj[17],\"N\")+COUNTIF(NazočnostZaSvibanj[17],\"O\")","v":0},{"$f":"COUNTIF(NazočnostZaSvibanj[18],\"N\")+COUNTIF(NazočnostZaSvibanj[18],\"O\")","v":0},{"$f":"COUNTIF(NazočnostZaSvibanj[19],\"N\")+COUNTIF(NazočnostZaSvibanj[19],\"O\")","v":0},{"$f":"COUNTIF(NazočnostZaSvibanj[20],\"N\")+COUNTIF(NazočnostZaSvibanj[20],\"O\")","v":0},{"$f":"COUNTIF(NazočnostZaSvibanj[21],\"N\")+COUNTIF(NazočnostZaSvibanj[21],\"O\")","v":0},{"$f":"COUNTIF(NazočnostZaSvibanj[22],\"N\")+COUNTIF(NazočnostZaSvibanj[22],\"O\")","v":0},{"$f":"COUNTIF(NazočnostZaSvibanj[23],\"N\")+COUNTIF(NazočnostZaSvibanj[23],\"O\")","v":0},{"$f":"COUNTIF(NazočnostZaSvibanj[24],\"N\")+COUNTIF(NazočnostZaSvibanj[24],\"O\")","v":0},{"$f":"COUNTIF(NazočnostZaSvibanj[25],\"N\")+COUNTIF(NazočnostZaSvibanj[25],\"O\")","v":0},{"$f":"COUNTIF(NazočnostZaSvibanj[26],\"N\")+COUNTIF(NazočnostZaSvibanj[26],\"O\")","v":0},{"$f":"COUNTIF(NazočnostZaSvibanj[27],\"N\")+COUNTIF(NazočnostZaSvibanj[27],\"O\")","v":0},{"$f":"COUNTIF(NazočnostZaSvibanj[28],\"N\")+COUNTIF(NazočnostZaSvibanj[28],\"O\")","v":0},{"$f":"COUNTIF(NazočnostZaSvibanj[29],\"N\")+COUNTIF(NazočnostZaSvibanj[29],\"O\")","v":0},{"$f":"COUNTIF(NazočnostZaSvibanj[30],\"N\")+COUNTIF(NazočnostZaSvibanj[30],\"O\")","v":0},{"$f":"COUNTIF(NazočnostZaSvibanj[31],\"N\")+COUNTIF(NazočnostZaSvibanj[31],\"O\")","v":0},{"$f":"SUBTOTAL(109,NazočnostZaSvibanj[K])","v":0},{"$f":"SUBTOTAL(109,NazočnostZaSvibanj[O])","v":0},{"$f":"SUBTOTAL(109,NazočnostZaSvibanj[N])","v":0},{"$f":"SUBTOTAL(109,NazočnostZaSvibanj[P])","v":0},{"$f":"SUBTOTAL(109,NazočnostZaSvibanj[Dani izostanaka])","v":0}]

{"sheet":"Lipanj","index":12,"n_rows":12,"n_cols":39,"rows_kept":12,"merged":[[4,34,4,38]]}
["EVIDENCIJA NAZOČNOSTI UČENIKA",{"$nulls":36},"Početak školske godine:",{"$f":"KalendarskaGodina","v":2012}]
[]
[null,null,{"$f":"TekstOpisaBoja","v":"OPIS BOJA "},{"$f":"Šifra1","v":"K"},{"$f":"TekstŠifre1","v":"Kašnjenje"},null,null,{"$f":"Šifra2","v":"O"},{"$f":"TekstŠifre2","v":"Opravdani"},null,null,{"$f":"Šifra3","v":"N"},{"$f":"TekstŠifre3","v":"Neopravdani"},null,null,{"$f":"Šifra4","v":"P"},{"$f":"TekstŠifre4","v":"Prisutan"},null,null,{"$f":"Šifra5","v":"Ne"},{"$f":"TekstŠifre5","v":"Nema škole"}]
[]
[null,{"$f":"DATE(KalendarskaGodina+1,6,1)","v":"2013-06-01"},null,{"$f":"TEXT(WEEKDAY(DATE(KalendarskaGodina+1,6,1),1),\"aaa\")","v":"sub"},{"$f":"TEXT(WEEKDAY(DATE(KalendarskaGodina+1,6,2),1),\"aaa\")","v":"ned"},{"$f":"TEXT(WEEKDAY(DATE(KalendarskaGodina+1,6,3),1),\"aaa\")","v":"pon"},{"$f":"TEXT(WEEKDAY(DATE(KalendarskaGodina+1,6,4),1),\"aaa\")","v":"uto"},{"$f":"TEXT(WEEKDAY(DATE(KalendarskaGodina+1,6,5),1),\"aaa\")","v":"sri"},{"$f":"TEXT(WEEKDAY(DATE(KalendarskaGodina+1,6,6),1),\"aaa\")","v":"čet"},{"$f":"TEXT(WEEKDAY(DATE(KalendarskaGodina+1,6,7),1),\"aaa\")","v":"pet"},{"$f":"TEXT(WEEKDAY(DATE(KalendarskaGodina+1,6,8),1),\"aaa\")","v":"sub"},{"$f":"TEXT(WEEKDAY(DATE(KalendarskaGodina+1,6,9),1),\"aaa\")","v":"ned"},{"$f":"TEXT(WEEKDAY(DATE(KalendarskaGodina+1,6,10),1),\"aaa\")","v":"pon"},{"$f":"TEXT(WEEKDAY(DATE(KalendarskaGodina+1,6,11),1),\"aaa\")","v":"uto"},{"$f":"TEXT(WEEKDAY(DATE(KalendarskaGodina+1,6,12),1),\"aaa\")","v":"sri"},{"$f":"TEXT(WEEKDAY(DATE(KalendarskaGodina+1,6,13),1),\"aaa\")","v":"čet"},{"$f":"TEXT(WEEKDAY(DATE(KalendarskaGodina+1,6,14),1),\"aaa\")","v":"pet"},{"$f":"TEXT(WEEKDAY(DATE(KalendarskaGodina+1,6,15),1),\"aaa\")","v":"sub"},{"$f":"TEXT(WEEKDAY(DATE(KalendarskaGodina+1,6,16),1),\"aaa\")","v":"ned"},{"$f":"TEXT(WEEKDAY(DATE(KalendarskaGodina+1,6,17),1),\"aaa\")","v":"pon"},{"$f":"TEXT(WEEKDAY(DATE(KalendarskaGodina+1,6,18),1),\"aaa\")","v":"uto"},{"$f":"TEXT(WEEKDAY(DATE(KalendarskaGodina+1,6,19),1),\"aaa\")","v":"sri"},{"$f":"TEXT(WEEKDAY(DATE(KalendarskaGodina+1,6,20),1),\"aaa\")","v":"čet"},{"$f":"TEXT(WEEKDAY(DATE(KalendarskaGodina+1,6,21),1),\"aaa\")","v":"pet"},{"$f":"TEXT(WEEKDAY(DATE(KalendarskaGodina+1,6,22),1),\"aaa\")","v":"sub"},{"$f":"TEXT(WEEKDAY(DATE(KalendarskaGodina+1,6,23),1),\"aaa\")","v":"ned"},{"$f":"TEXT(WEEKDAY(DATE(KalendarskaGodina+1,6,24),1),\"aaa\")","v":"pon"},{"$f":"TEXT(WEEKDAY(DATE(KalendarskaGodina+1,6,25),1),\"aaa\")","v":"uto"},{"$f":"TEXT(WEEKDAY(DATE(KalendarskaGodina+1,6,26),1),\"aaa\")","v":"sri"},{"$f":"TEXT(WEEKDAY(DATE(KalendarskaGodina+1,6,27),1),\"aaa\")","v":"čet"},{"$f":"TEXT(WEEKDAY(DATE(KalendarskaGodina+1,6,28),1),\"aaa\")","v":"pet"},{"$f":"TEXT(WEEKDAY(DATE(KalendarskaGodina+1,6,29),1),\"aaa\")","v":"sub"},{"$f":"TEXT(WEEKDAY(DATE(KalendarskaGodina+1,6,30),1),\"aaa\")","v":"ned"},null,"Ukupno"]
[null,"Identifikacijski broj učenika","Ime učenika","1","2","3","4","5","6","7","8","9","10","11","12","13","14","15","16","17","18","19","20","21","22","23","24","25","26","27","28","29","30"," ","K","O","N","P","Dani izostanaka"]
[null,null,{"$f":"IFERROR(VLOOKUP(NazočnostZaLipanj[[#This Row],[Identifikacijski broj učenika]],PopisUčenika[],18,FALSE),\"\")","v":""},{"$nulls":31},{"$f":"COUNTIF(NazočnostZaLipanj[[#This Row],[1]:[ ]],Šifra1)","v":0},{"$f":"COUNTIF(NazočnostZaLipanj[[#This Row],[1]:[ ]],Šifra2)","v":0},{"$f":"COUNTIF(NazočnostZaLipanj[[#This Row],[1]:[ ]],Šifra3)","v":0},{"$f":"COUNTIF(NazočnostZaLipanj[[#This Row],[1]:[ ]],Šifra4)","v":0},{"$f":"SUM(NazočnostZaRujan[[#This Row],[O]:[N]])","v":0}]
[null,null,{"$f":"IFERROR(VLOOKUP(NazočnostZaLipanj[[#This Row],[Identifikacijski broj učenika]],PopisUčenika[],18,FALSE),\"\")","v":""},{"$nulls":31},{"$f":"COUNTIF(NazočnostZaLipanj[[#This Row],[1]:[ ]],Šifra1)","v":0},{"$f":"COUNTIF(NazočnostZaLipanj[[#This Row],[1]:[ ]],Šifra2)","v":0},{"$f":"COUNTIF(NazočnostZaLipanj[[#This Row],[1]:[ ]],Šifra3)","v":0},{"$f":"COUNTIF(NazočnostZaLipanj[[#This Row],[1]:[ ]],Šifra4)","v":0},{"$f":"SUM(NazočnostZaRujan[[#This Row],[O]:[N]])","v":0}]
[null,null,{"$f":"IFERROR(VLOOKUP(NazočnostZaLipanj[[#This Row],[Identifikacijski broj učenika]],PopisUčenika[],18,FALSE),\"\")","v":""},{"$nulls":31},{"$f":"COUNTIF(NazočnostZaLipanj[[#This Row],[1]:[ ]],Šifra1)","v":0},{"$f":"COUNTIF(NazočnostZaLipanj[[#This Row],[1]:[ ]],Šifra2)","v":0},{"$f":"COUNTIF(NazočnostZaLipanj[[#This Row],[1]:[ ]],Šifra3)","v":0},{"$f":"COUNTIF(NazočnostZaLipanj[[#This Row],[1]:[ ]],Šifra4)","v":0},{"$f":"SUM(NazočnostZaRujan[[#This Row],[O]:[N]])","v":0}]
[null,null,{"$f":"IFERROR(VLOOKUP(NazočnostZaLipanj[[#This Row],[Identifikacijski broj učenika]],PopisUčenika[],18,FALSE),\"\")","v":""},{"$nulls":31},{"$f":"COUNTIF(NazočnostZaLipanj[[#This Row],[1]:[ ]],Šifra1)","v":0},{"$f":"COUNTIF(NazočnostZaLipanj[[#This Row],[1]:[ ]],Šifra2)","v":0},{"$f":"COUNTIF(NazočnostZaLipanj[[#This Row],[1]:[ ]],Šifra3)","v":0},{"$f":"COUNTIF(NazočnostZaLipanj[[#This Row],[1]:[ ]],Šifra4)","v":0},{"$f":"SUM(NazočnostZaRujan[[#This Row],[O]:[N]])","v":0}]
[null,null,{"$f":"IFERROR(VLOOKUP(NazočnostZaLipanj[[#This Row],[Identifikacijski broj učenika]],PopisUčenika[],18,FALSE),\"\")","v":""},{"$nulls":31},{"$f":"COUNTIF(NazočnostZaLipanj[[#This Row],[1]:[ ]],Šifra1)","v":0},{"$f":"COUNTIF(NazočnostZaLipanj[[#This Row],[1]:[ ]],Šifra2)","v":0},{"$f":"COUNTIF(NazočnostZaLipanj[[#This Row],[1]:[ ]],Šifra3)","v":0},{"$f":"COUNTIF(NazočnostZaLipanj[[#This Row],[1]:[ ]],Šifra4)","v":0},{"$f":"SUM(NazočnostZaRujan[[#This Row],[O]:[N]])","v":0}]
[null,null,"Ukupan broj dana izostanaka",{"$f":"COUNTIF(NazočnostZaLipanj[1],\"N\")+COUNTIF(NazočnostZaLipanj[1],\"O\")","v":0},{"$f":"COUNTIF(NazočnostZaLipanj[2],\"N\")+COUNTIF(NazočnostZaLipanj[2],\"O\")","v":0},{"$f":"COUNTIF(NazočnostZaLipanj[3],\"N\")+COUNTIF(NazočnostZaLipanj[3],\"O\")","v":0},{"$f":"COUNTIF(NazočnostZaLipanj[4],\"N\")+COUNTIF(NazočnostZaLipanj[4],\"O\")","v":0},{"$f":"COUNTIF(NazočnostZaLipanj[5],\"N\")+COUNTIF(NazočnostZaLipanj[5],\"O\")","v":0},{"$f":"COUNTIF(NazočnostZaLipanj[6],\"N\")+COUNTIF(NazočnostZaLipanj[6],\"O\")","v":0},{"$f":"COUNTIF(NazočnostZaLipanj[7],\"N\")+COUNTIF(NazočnostZaLipanj[7],\"O\")","v":0},{"$f":"COUNTIF(NazočnostZaLipanj[8],\"N\")+COUNTIF(NazočnostZaLipanj[8],\"O\")","v":0},{"$f":"COUNTIF(NazočnostZaLipanj[9],\"N\")+COUNTIF(NazočnostZaLipanj[9],\"O\")","v":0},{"$f":"COUNTIF(NazočnostZaLipanj[10],\"N\")+COUNTIF(NazočnostZaLipanj[10],\"O\")","v":0},{"$f":"COUNTIF(NazočnostZaLipanj[11],\"N\")+COUNTIF(NazočnostZaLipanj[11],\"O\")","v":0},{"$f":"COUNTIF(NazočnostZaLipanj[12],\"N\")+COUNTIF(NazočnostZaLipanj[12],\"O\")","v":0},{"$f":"COUNTIF(NazočnostZaLipanj[13],\"N\")+COUNTIF(NazočnostZaLipanj[13],\"O\")","v":0},{"$f":"COUNTIF(NazočnostZaLipanj[14],\"N\")+COUNTIF(NazočnostZaLipanj[14],\"O\")","v":0},{"$f":"COUNTIF(NazočnostZaLipanj[15],\"N\")+COUNTIF(NazočnostZaLipanj[15],\"O\")","v":0},{"$f":"COUNTIF(NazočnostZaLipanj[16],\"N\")+COUNTIF(NazočnostZaLipanj[16],\"O\")","v":0},{"$f":"COUNTIF(NazočnostZaLipanj[17],\"N\")+COUNTIF(NazočnostZaLipanj[17],\"O\")","v":0},{"$f":"COUNTIF(NazočnostZaLipanj[18],\"N\")+COUNTIF(NazočnostZaLipanj[18],\"O\")","v":0},{"$f":"COUNTIF(NazočnostZaLipanj[19],\"N\")+COUNTIF(NazočnostZaLipanj[19],\"O\")","v":0},{"$f":"COUNTIF(NazočnostZaLipanj[20],\"N\")+COUNTIF(NazočnostZaLipanj[20],\"O\")","v":0},{"$f":"COUNTIF(NazočnostZaLipanj[21],\"N\")+COUNTIF(NazočnostZaLipanj[21],\"O\")","v":0},{"$f":"COUNTIF(NazočnostZaLipanj[22],\"N\")+COUNTIF(NazočnostZaLipanj[22],\"O\")","v":0},{"$f":"COUNTIF(NazočnostZaLipanj[23],\"N\")+COUNTIF(NazočnostZaLipanj[23],\"O\")","v":0},{"$f":"COUNTIF(NazočnostZaLipanj[24],\"N\")+COUNTIF(NazočnostZaLipanj[24],\"O\")","v":0},{"$f":"COUNTIF(NazočnostZaLipanj[25],\"N\")+COUNTIF(NazočnostZaLipanj[25],\"O\")","v":0},{"$f":"COUNTIF(NazočnostZaLipanj[26],\"N\")+COUNTIF(NazočnostZaLipanj[26],\"O\")","v":0},{"$f":"COUNTIF(NazočnostZaLipanj[27],\"N\")+COUNTIF(NazočnostZaLipanj[27],\"O\")","v":0},{"$f":"COUNTIF(NazočnostZaLipanj[28],\"N\")+COUNTIF(NazočnostZaLipanj[28],\"O\")","v":0},{"$f":"COUNTIF(NazočnostZaLipanj[29],\"N\")+COUNTIF(NazočnostZaLipanj[29],\"O\")","v":0},{"$f":"COUNTIF(NazočnostZaLipanj[30],\"N\")+COUNTIF(NazočnostZaLipanj[30],\"O\")","v":0},{"$f":"COUNTIF(NazočnostZaLipanj[[ ]],\"N\")+COUNTIF(NazočnostZaLipanj[[ ]],\"O\")","v":0},{"$f":"SUBTOTAL(109,NazočnostZaLipanj[K])","v":0},{"$f":"SUBTOTAL(109,NazočnostZaLipanj[O])","v":0},{"$f":"SUBTOTAL(109,NazočnostZaLipanj[N])","v":0},{"$f":"SUBTOTAL(109,NazočnostZaLipanj[P])","v":0},{"$f":"SUBTOTAL(109,NazočnostZaLipanj[Dani izostanaka])","v":0}]

{"sheet":"Srpanj","index":13,"n_rows":12,"n_cols":39,"rows_kept":12,"merged":[[4,34,4,38]]}
["EVIDENCIJA NAZOČNOSTI UČENIKA",{"$nulls":36},"Početak školske godine:",{"$f":"KalendarskaGodina","v":2012}]
[]
[null,null,{"$f":"TekstOpisaBoja","v":"OPIS BOJA "},{"$f":"Šifra1","v":"K"},{"$f":"TekstŠifre1","v":"Kašnjenje"},null,null,{"$f":"Šifra2","v":"O"},{"$f":"TekstŠifre2","v":"Opravdani"},null,null,{"$f":"Šifra3","v":"N"},{"$f":"TekstŠifre3","v":"Neopravdani"},null,null,{"$f":"Šifra4","v":"P"},{"$f":"TekstŠifre4","v":"Prisutan"},null,null,{"$f":"Šifra5","v":"Ne"},{"$f":"TekstŠifre5","v":"Nema škole"}]
[]
[null,{"$f":"DATE(KalendarskaGodina+1,7,1)","v":"2013-07-01"},null,{"$f":"TEXT(WEEKDAY(DATE(KalendarskaGodina+1,7,1),1),\"aaa\")","v":"pon"},{"$f":"TEXT(WEEKDAY(DATE(KalendarskaGodina+1,7,2),1),\"aaa\")","v":"uto"},{"$f":"TEXT(WEEKDAY(DATE(KalendarskaGodina+1,7,3),1),\"aaa\")","v":"sri"},{"$f":"TEXT(WEEKDAY(DATE(KalendarskaGodina+1,7,4),1),\"aaa\")","v":"čet"},{"$f":"TEXT(WEEKDAY(DATE(KalendarskaGodina+1,7,5),1),\"aaa\")","v":"pet"},{"$f":"TEXT(WEEKDAY(DATE(KalendarskaGodina+1,7,6),1),\"aaa\")","v":"sub"},{"$f":"TEXT(WEEKDAY(DATE(KalendarskaGodina+1,7,7),1),\"aaa\")","v":"ned"},{"$f":"TEXT(WEEKDAY(DATE(KalendarskaGodina+1,7,8),1),\"aaa\")","v":"pon"},{"$f":"TEXT(WEEKDAY(DATE(KalendarskaGodina+1,7,9),1),\"aaa\")","v":"uto"},{"$f":"TEXT(WEEKDAY(DATE(KalendarskaGodina+1,7,10),1),\"aaa\")","v":"sri"},{"$f":"TEXT(WEEKDAY(DATE(KalendarskaGodina+1,7,11),1),\"aaa\")","v":"čet"},{"$f":"TEXT(WEEKDAY(DATE(KalendarskaGodina+1,7,12),1),\"aaa\")","v":"pet"},{"$f":"TEXT(WEEKDAY(DATE(KalendarskaGodina+1,7,13),1),\"aaa\")","v":"sub"},{"$f":"TEXT(WEEKDAY(DATE(KalendarskaGodina+1,7,14),1),\"aaa\")","v":"ned"},{"$f":"TEXT(WEEKDAY(DATE(KalendarskaGodina+1,7,15),1),\"aaa\")","v":"pon"},{"$f":"TEXT(WEEKDAY(DATE(KalendarskaGodina+1,7,16),1),\"aaa\")","v":"uto"},{"$f":"TEXT(WEEKDAY(DATE(KalendarskaGodina+1,7,17),1),\"aaa\")","v":"sri"},{"$f":"TEXT(WEEKDAY(DATE(KalendarskaGodina+1,7,18),1),\"aaa\")","v":"čet"},{"$f":"TEXT(WEEKDAY(DATE(KalendarskaGodina+1,7,19),1),\"aaa\")","v":"pet"},{"$f":"TEXT(WEEKDAY(DATE(KalendarskaGodina+1,7,20),1),\"aaa\")","v":"sub"},{"$f":"TEXT(WEEKDAY(DATE(KalendarskaGodina+1,7,21),1),\"aaa\")","v":"ned"},{"$f":"TEXT(WEEKDAY(DATE(KalendarskaGodina+1,7,22),1),\"aaa\")","v":"pon"},{"$f":"TEXT(WEEKDAY(DATE(KalendarskaGodina+1,7,23),1),\"aaa\")","v":"uto"},{"$f":"TEXT(WEEKDAY(DATE(KalendarskaGodina+1,7,24),1),\"aaa\")","v":"sri"},{"$f":"TEXT(WEEKDAY(DATE(KalendarskaGodina+1,7,25),1),\"aaa\")","v":"čet"},{"$f":"TEXT(WEEKDAY(DATE(KalendarskaGodina+1,7,26),1),\"aaa\")","v":"pet"},{"$f":"TEXT(WEEKDAY(DATE(KalendarskaGodina+1,7,27),1),\"aaa\")","v":"sub"},{"$f":"TEXT(WEEKDAY(DATE(KalendarskaGodina+1,7,28),1),\"aaa\")","v":"ned"},{"$f":"TEXT(WEEKDAY(DATE(KalendarskaGodina+1,7,29),1),\"aaa\")","v":"pon"},{"$f":"TEXT(WEEKDAY(DATE(KalendarskaGodina+1,7,30),1),\"aaa\")","v":"uto"},{"$f":"TEXT(WEEKDAY(DATE(KalendarskaGodina+1,7,31),1),\"aaa\")","v":"sri"},"Ukupno"]
[null,"Identifikacijski broj učenika","Ime učenika","1","2","3","4","5","6","7","8","9","10","11","12","13","14","15","16","17","18","19","20","21","22","23","24","25","26","27","28","29","30","31","K","O","N","P","Dani izostanaka"]
[null,null,{"$f":"IFERROR(VLOOKUP(NazočnostZaSrpanj[[#This Row],[Identifikacijski broj učenika]],PopisUčenika[],18,FALSE),\"\")","v":""},{"$nulls":31},{"$f":"COUNTIF(NazočnostZaSrpanj[[#This Row],[1]:[31]],Šifra1)","v":0},{"$f":"COUNTIF(NazočnostZaSrpanj[[#This Row],[1]:[31]],Šifra2)","v":0},{"$f":"COUNTIF(NazočnostZaSrpanj[[#This Row],[1]:[31]],Šifra3)","v":0},{"$f":"COUNTIF(NazočnostZaSrpanj[[#This Row],[1]:[31]],Šifra4)","v":0},{"$f":"SUM(NazočnostZaRujan[[#This Row],[O]:[N]])","v":0}]
[null,null,{"$f":"IFERROR(VLOOKUP(NazočnostZaSrpanj[[#This Row],[Identifikacijski broj učenika]],PopisUčenika[],18,FALSE),\"\")","v":""},{"$nulls":31},{"$f":"COUNTIF(NazočnostZaSrpanj[[#This Row],[1]:[31]],Šifra1)","v":0},{"$f":"COUNTIF(NazočnostZaSrpanj[[#This Row],[1]:[31]],Šifra2)","v":0},{"$f":"COUNTIF(NazočnostZaSrpanj[[#This Row],[1]:[31]],Šifra3)","v":0},{"$f":"COUNTIF(NazočnostZaSrpanj[[#This Row],[1]:[31]],Šifra4)","v":0},{"$f":"SUM(NazočnostZaRujan[[#This Row],[O]:[N]])","v":0}]
[null,null,{"$f":"IFERROR(VLOOKUP(NazočnostZaSrpanj[[#This Row],[Identifikacijski broj učenika]],PopisUčenika[],18,FALSE),\"\")","v":""},{"$nulls":31},{"$f":"COUNTIF(NazočnostZaSrpanj[[#This Row],[1]:[31]],Šifra1)","v":0},{"$f":"COUNTIF(NazočnostZaSrpanj[[#This Row],[1]:[31]],Šifra2)","v":0},{"$f":"COUNTIF(NazočnostZaSrpanj[[#This Row],[1]:[31]],Šifra3)","v":0},{"$f":"COUNTIF(NazočnostZaSrpanj[[#This Row],[1]:[31]],Šifra4)","v":0},{"$f":"SUM(NazočnostZaRujan[[#This Row],[O]:[N]])","v":0}]
[null,null,{"$f":"IFERROR(VLOOKUP(NazočnostZaSrpanj[[#This Row],[Identifikacijski broj učenika]],PopisUčenika[],18,FALSE),\"\")","v":""},{"$nulls":31},{"$f":"COUNTIF(NazočnostZaSrpanj[[#This Row],[1]:[31]],Šifra1)","v":0},{"$f":"COUNTIF(NazočnostZaSrpanj[[#This Row],[1]:[31]],Šifra2)","v":0},{"$f":"COUNTIF(NazočnostZaSrpanj[[#This Row],[1]:[31]],Šifra3)","v":0},{"$f":"COUNTIF(NazočnostZaSrpanj[[#This Row],[1]:[31]],Šifra4)","v":0},{"$f":"SUM(NazočnostZaRujan[[#This Row],[O]:[N]])","v":0}]
[null,null,{"$f":"IFERROR(VLOOKUP(NazočnostZaSrpanj[[#This Row],[Identifikacijski broj učenika]],PopisUčenika[],18,FALSE),\"\")","v":""},{"$nulls":31},{"$f":"COUNTIF(NazočnostZaSrpanj[[#This Row],[1]:[31]],Šifra1)","v":0},{"$f":"COUNTIF(NazočnostZaSrpanj[[#This Row],[1]:[31]],Šifra2)","v":0},{"$f":"COUNTIF(NazočnostZaSrpanj[[#This Row],[1]:[31]],Šifra3)","v":0},{"$f":"COUNTIF(NazočnostZaSrpanj[[#This Row],[1]:[31]],Šifra4)","v":0},{"$f":"SUM(NazočnostZaRujan[[#This Row],[O]:[N]])","v":0}]
[null,null,"Ukupan broj dana izostanaka",{"$f":"COUNTIF(NazočnostZaSrpanj[1],\"N\")+COUNTIF(NazočnostZaSrpanj[1],\"O\")","v":0},{"$f":"COUNTIF(NazočnostZaSrpanj[2],\"N\")+COUNTIF(NazočnostZaSrpanj[2],\"O\")","v":0},{"$f":"COUNTIF(NazočnostZaSrpanj[3],\"N\")+COUNTIF(NazočnostZaSrpanj[3],\"O\")","v":0},{"$f":"COUNTIF(NazočnostZaSrpanj[4],\"N\")+COUNTIF(NazočnostZaSrpanj[4],\"O\")","v":0},{"$f":"COUNTIF(NazočnostZaSrpanj[5],\"N\")+COUNTIF(NazočnostZaSrpanj[5],\"O\")","v":0},{"$f":"COUNTIF(NazočnostZaSrpanj[6],\"N\")+COUNTIF(NazočnostZaSrpanj[6],\"O\")","v":0},{"$f":"COUNTIF(NazočnostZaSrpanj[7],\"N\")+COUNTIF(NazočnostZaSrpanj[7],\"O\")","v":0},{"$f":"COUNTIF(NazočnostZaSrpanj[8],\"N\")+COUNTIF(NazočnostZaSrpanj[8],\"O\")","v":0},{"$f":"COUNTIF(NazočnostZaSrpanj[9],\"N\")+COUNTIF(NazočnostZaSrpanj[9],\"O\")","v":0},{"$f":"COUNTIF(NazočnostZaSrpanj[10],\"N\")+COUNTIF(NazočnostZaSrpanj[10],\"O\")","v":0},{"$f":"COUNTIF(NazočnostZaSrpanj[11],\"N\")+COUNTIF(NazočnostZaSrpanj[11],\"O\")","v":0},{"$f":"COUNTIF(NazočnostZaSrpanj[12],\"N\")+COUNTIF(NazočnostZaSrpanj[12],\"O\")","v":0},{"$f":"COUNTIF(NazočnostZaSrpanj[13],\"N\")+COUNTIF(NazočnostZaSrpanj[13],\"O\")","v":0},{"$f":"COUNTIF(NazočnostZaSrpanj[14],\"N\")+COUNTIF(NazočnostZaSrpanj[14],\"O\")","v":0},{"$f":"COUNTIF(NazočnostZaSrpanj[15],\"N\")+COUNTIF(NazočnostZaSrpanj[15],\"O\")","v":0},{"$f":"COUNTIF(NazočnostZaSrpanj[16],\"N\")+COUNTIF(NazočnostZaSrpanj[16],\"O\")","v":0},{"$f":"COUNTIF(NazočnostZaSrpanj[17],\"N\")+COUNTIF(NazočnostZaSrpanj[17],\"O\")","v":0},{"$f":"COUNTIF(NazočnostZaSrpanj[18],\"N\")+COUNTIF(NazočnostZaSrpanj[18],\"O\")","v":0},{"$f":"COUNTIF(NazočnostZaSrpanj[19],\"N\")+COUNTIF(NazočnostZaSrpanj[19],\"O\")","v":0},{"$f":"COUNTIF(NazočnostZaSrpanj[20],\"N\")+COUNTIF(NazočnostZaSrpanj[20],\"O\")","v":0},{"$f":"COUNTIF(NazočnostZaSrpanj[21],\"N\")+COUNTIF(NazočnostZaSrpanj[21],\"O\")","v":0},{"$f":"COUNTIF(NazočnostZaSrpanj[22],\"N\")+COUNTIF(NazočnostZaSrpanj[22],\"O\")","v":0},{"$f":"COUNTIF(NazočnostZaSrpanj[23],\"N\")+COUNTIF(NazočnostZaSrpanj[23],\"O\")","v":0},{"$f":"COUNTIF(NazočnostZaSrpanj[24],\"N\")+COUNTIF(NazočnostZaSrpanj[24],\"O\")","v":0},{"$f":"COUNTIF(NazočnostZaSrpanj[25],\"N\")+COUNTIF(NazočnostZaSrpanj[25],\"O\")","v":0},{"$f":"COUNTIF(NazočnostZaSrpanj[26],\"N\")+COUNTIF(NazočnostZaSrpanj[26],\"O\")","v":0},{"$f":"COUNTIF(NazočnostZaSrpanj[27],\"N\")+COUNTIF(NazočnostZaSrpanj[27],\"O\")","v":0},{"$f":"COUNTIF(NazočnostZaSrpanj[28],\"N\")+COUNTIF(NazočnostZaSrpanj[28],\"O\")","v":0},{"$f":"COUNTIF(NazočnostZaSrpanj[29],\"N\")+COUNTIF(NazočnostZaSrpanj[29],\"O\")","v":0},{"$f":"COUNTIF(NazočnostZaSrpanj[30],\"N\")+COUNTIF(NazočnostZaSrpanj[30],\"O\")","v":0},{"$f":"COUNTIF(NazočnostZaSrpanj[31],\"N\")+COUNTIF(NazočnostZaSrpanj[31],\"O\")","v":0},{"$f":"SUBTOTAL(109,NazočnostZaSrpanj[K])","v":0},{"$f":"SUBTOTAL(109,NazočnostZaSrpanj[O])","v":0},{"$f":"SUBTOTAL(109,NazočnostZaSrpanj[N])","v":0},{"$f":"SUBTOTAL(109,NazočnostZaSrpanj[P])","v":0},{"$f":"SUBTOTAL(109,NazočnostZaSrpanj[Dani izostanaka])","v":0}]

{"sheet":"Izvješće o nazočnosti učenika","index":14,"n_rows":40,"n_cols":37,"rows_kept":40,"merged":[[2,3,2,14],[2,15,2,17],[2,18,2,21],[2,22,2,29],[2,30,2,31],[2,32,2,35],[3,1,3,2],[3,3,3,14],[3,15,3,17],[3,18,3,21],[3,22,3,29],[3,30,3,31],[3,32,3,35],[4,1,4,9],[4,10,4,21],[4,22,4,29],[4,30,4,36],[5,1,5,9],[5,10,5,21],[5,22,5,29],[5,30,5,36],[6,1,6,9],[6,10,6,21],[6,22,6,29],[6,30,6,36],[7,1,7,9],[7,10,7,21],[7,22,7,29],[7,30,7,36],[8,1,8,9],[8,10,8,21],[8,22,8,29],[8,30,8,36],[9,1,9,9],[9,10,9,21],[9,22,9,29],[9,30,9,36],[13,1,14,32],[13,33,13,36],[15,1,16,1],[15,33,16,33],[15,34,16,34],[15,35,16,35],[15,36,16,36],[17,1,18,1],[17,33,18,33],[17,34,18,34],[17,35,18,35],[17,36,18,36],[19,1,20,1],[19,33,20,33],[19,34,20,34],[19,35,20,35],[19,36,20,36],[21,1,22,1],[21,33,22,33],[21,34,22,34],[21,35,22,35],[21,36,22,36],[23,1,24,1],[23,33,24,33],[23,34,24,34],[23,35,24,35],[23,36,24,36],[25,1,26,1],[25,33,26,33],[25,34,26,34],[25,35,26,35],[25,36,26,36],[27,1,28,1],[27,33,28,33],[27,34,28,34],[27,35,28,35],[27,36,28,36],[29,1,30,1],[29,33,30,33],[29,34,30,34],[29,35,30,35],[29,36,30,36],[31,1,32,1],[31,33,32,33],[31,34,32,34],[31,35,32,35],[31,36,32,36],[33,1,34,1],[33,33,34,33],[33,34,34,34],[33,35,34,35],[33,36,34,36],[35,1,36,1],[35,33,36,33],[35,34,36,34],[35,35,36,35],[35,36,36,36],[37,1,38,1],[37,33,38,33],[37,34,38,34],[37,35,38,35],[37,36,38,36],[39,30,39,32]]}
[{"$f":"\"Evidencija nazočnosti za učenika \"","v":"Evidencija nazočnosti za učenika "},{"$nulls":9},{"$f":"D4","v":"Neven Tomić"}]
[]
[null,"Identifikacijski broj učenika",null,"Ime učenika",{"$nulls":11},"Spol",null,null,"Datum rođenja",{"$nulls":3},"Škola",{"$nulls":7},"Razred",null,"Učitelj",{"$nulls":3},"Soba"]
[null,"S001",null,{"$f":"IFERROR(VLOOKUP(TraženjeUčenika,PopisUčenika[],18,FALSE),\"\")","v":"Neven Tomić"},{"$nulls":11},{"$f":"IFERROR(VLOOKUP(TraženjeUčenika,PopisUčenika[],4,FALSE),\"\")","v":"M"},null,null,{"$f":"IFERROR(VLOOKUP(TraženjeUčenika,PopisUčenika[],5,FALSE),\"\")","v":"1997-03-28"},{"$nulls":3},"School of Fine Art ",{"$nulls":7},7,null,"Luka Abrus",{"$nulls":3},123]
[null,"Ime roditelja ili skrbnika 1",{"$nulls":8},"Odnos",{"$nulls":11},"Službeni broj",{"$nulls":7},"Kućni broj"]
[null,{"$f":"IFERROR(VLOOKUP(TraženjeUčenika,PopisUčenika[],6,FALSE),\"\")","v":"Dragan"},{"$nulls":8},{"$f":"IFERROR(VLOOKUP(TraženjeUčenika,PopisUčenika[],7,FALSE),\"\")","v":"Tomić"},{"$nulls":11},{"$f":"IFERROR(VLOOKUP(TraženjeUčenika,PopisUčenika[],8,FALSE),\"\")","v":1235550134},{"$nulls":7},{"$f":"IFERROR(VLOOKUP(TraženjeUčenika,PopisUčenika[],9,FALSE),\"\")","v":2345550134}]
[null,"Ime roditelja ili skrbnika 2",{"$nulls":8},"Odnos",{"$nulls":11},"Službeni broj",{"$nulls":7},"Kućni broj"]
[null,{"$f":"IFERROR(VLOOKUP(TraženjeUčenika,PopisUčenika[],10,FALSE),\"\")","v":"Dragan Tomić"},{"$nulls":8},{"$f":"IFERROR(VLOOKUP(TraženjeUčenika,PopisUčenika[],11,FALSE),\"\")","v":"Otac"},{"$nulls":11},{"$f":"IFERROR(VLOOKUP(TraženjeUčenika,PopisUčenika[],12,FALSE),\"\")","v":1235550134},{"$nulls":7},{"$f":"IFERROR(VLOOKUP(TraženjeUčenika,PopisUčenika[],13,FALSE),\"\")","v":2345550134}]
[null,"Kontakt za hitne slučajeve",{"$nulls":8},"Odnos",{"$nulls":11},"Službeni broj",{"$nulls":7},"Kućni broj"]
[null,{"$f":"IFERROR(VLOOKUP(TraženjeUčenika,PopisUčenika[],14,FALSE),\"\")","v":"Tihomir Sasić"},{"$nulls":8},{"$f":"IFERROR(VLOOKUP(TraženjeUčenika,PopisUčenika[],15,FALSE),\"\")","v":"Djed"},{"$nulls":11},{"$f":"IFERROR(VLOOKUP(TraženjeUčenika,PopisUčenika[],16,FALSE),\"\")","v":7895550189},{"$nulls":7},{"$f":"IFERROR(VLOOKUP(TraženjeUčenika,PopisUčenika[],17,FALSE),\"\")","v":7895550134}]
[]
[null,{"$f":"Kolovoz!C3","v":"OPIS BOJA "},{"$f":"Kolovoz!D3","v":"K"},{"$f":"Kolovoz!E3","v":"Kašnjenje"},null,null,{"$f":"Kolovoz!H3","v":"O"},{"$f":"Kolovoz!I3","v":"Opravdani"},{"$nulls":3},{"$f":"Kolovoz!L3","v":"N"},{"$f":"Kolovoz!M3","v":"Neopravdani"},{"$nulls":3},{"$f":"Kolovoz!P3","v":"P"},{"$f":"Kolovoz!Q3","v":"Prisutan"},null,null,{"$f":"Kolovoz!T3","v":"Ne"},{"$f":"Kolovoz!U3","v":"Nema škole"}]
[]
[null,"Nazočnost",{"$nulls":31},"Ukupna nazočnost"]
[{"$nulls":33},"K","O","N","P"]
[null,"Kolovoz",1,2,3,4,5,6,7,8,9,10,11,12,13,14,15,16,17,18,19,20,21,22,23,24,25,26,27,28,29,30,31,{"$f":"COUNTIF($D17:$AH17,Šifra1)","v":2},{"$f":"COUNTIF($D17:$AH17,Šifra2)","v":1},{"$f":"COUNTIF($D17:$AH17,Šifra3)","v":0},{"$f":"COUNTIF($D17:$AH17,Šifra4)","v":19}]
[null,null,{"$f":"IFERROR(VLOOKUP(TraženjeUčenika,NazočnostZaKolovoz[],3,FALSE),\"\")","v":"P"},{"$f":"IFERROR(VLOOKUP(TraženjeUčenika,NazočnostZaKolovoz[],4,FALSE),\"\")","v":"P"},{"$f":"IFERROR(VLOOKUP(TraženjeUčenika,NazočnostZaKolovoz[],5,FALSE),\"\")","v":"K"},{"$f":"IFERROR(VLOOKUP(TraženjeUčenika,NazočnostZaKolovoz[],6,FALSE),\"\")","v":"K"},{"$f":"IFERROR(VLOOKUP(TraženjeUčenika,NazočnostZaKolovoz[],7,FALSE),\"\")","v":"P"},{"$f":"IFERROR(VLOOKUP(TraženjeUčenika,NazočnostZaKolovoz[],8,FALSE),\"\")","v":"Ne"},{"$f":"IFERROR(VLOOKUP(TraženjeUčenika,NazočnostZaKolovoz[],9,FALSE),\"\")","v":"Ne"},{"$f":"IFERROR(VLOOKUP(TraženjeUčenika,NazočnostZaKolovoz[],10,FALSE),\"\")","v":"P"},{"$f":"IFERROR(VLOOKUP(TraženjeUčenika,NazočnostZaKolovoz[],11,FALSE),\"\")","v":"P"},{"$f":"IFERROR(VLOOKUP(TraženjeUčenika,NazočnostZaKolovoz[],12,FALSE),\"\")","v":"O"},{"$f":"IFERROR(VLOOKUP(TraženjeUčenika,NazočnostZaKolovoz[],13,FALSE),\"\")","v":"P"},{"$f":"IFERROR(VLOOKUP(TraženjeUčenika,NazočnostZaKolovoz[],14,FALSE),\"\")","v":"P"},{"$f":"IFERROR(VLOOKUP(TraženjeUčenika,NazočnostZaKolovoz[],15,FALSE),\"\")","v":"Ne"},{"$f":"IFERROR(VLOOKUP(TraženjeUčenika,NazočnostZaKolovoz[],16,FALSE),\"\")","v":"Ne"},{"$f":"IFERROR(VLOOKUP(TraženjeUčenika,NazočnostZaKolovoz[],17,FALSE),\"\")","v":"P"},{"$f":"IFERROR(VLOOKUP(TraženjeUčenika,NazočnostZaKolovoz[],18,FALSE),\"\")","v":"P"},{"$f":"IFERROR(VLOOKUP(TraženjeUčenika,NazočnostZaKolovoz[],19,FALSE),\"\")","v":"P"},{"$f":"IFERROR(VLOOKUP(TraženjeUčenika,NazočnostZaKolovoz[],20,FALSE),\"\")","v":"P"},{"$f":"IFERROR(VLOOKUP(TraženjeUčenika,NazočnostZaKolovoz[],21,FALSE),\"\")","v":"P"},{"$f":"IFERROR(VLOOKUP(TraženjeUčenika,NazočnostZaKolovoz[],22,FALSE),\"\")","v":"Ne"},{"$f":"IFERROR(VLOOKUP(TraženjeUčenika,NazočnostZaKolovoz[],23,FALSE),\"\")","v":"Ne"},{"$f":"IFERROR(VLOOKUP(TraženjeUčenika,NazočnostZaKolovoz[],24,FALSE),\"\")","v":"P"},{"$f":"IFERROR(VLOOKUP(TraženjeUčenika,NazočnostZaKolovoz[],25,FALSE),\"\")","v":"P"},{"$f":"IFERROR(VLOOKUP(TraženjeUčenika,NazočnostZaKolovoz[],26,FALSE),\"\")","v":"P"},{"$f":"IFERROR(VLOOKUP(TraženjeUčenika,NazočnostZaKolovoz[],27,FALSE),\"\")","v":"P"},{"$f":"IFERROR(VLOOKUP(TraženjeUčenika,NazočnostZaKolovoz[],28,FALSE),\"\")","v":"P"},{"$f":"IFERROR(VLOOKUP(TraženjeUčenika,NazočnostZaKolovoz[],29,FALSE),\"\")","v":"Ne"},{"$f":"IFERROR(VLOOKUP(TraženjeUčenika,NazočnostZaKolovoz[],30,FALSE),\"\")","v":"Ne"},{"$f":"IFERROR(VLOOKUP(TraženjeUčenika,NazočnostZaKolovoz[],31,FALSE),\"\")","v":"P"},{"$f":"IFERROR(VLOOKUP(TraženjeUčenika,NazočnostZaKolovoz[],32,FALSE),\"\")","v":"P"},{"$f":"IFERROR(VLOOKUP(TraženjeUčenika,NazočnostZaKolovoz[],33,FALSE),\"\")","v":"P"}]
[null,"Rujan",1,2,3,4,5,6,7,8,9,10,11,12,13,14,15,16,17,18,19,20,21,22,23,24,25,26,27,28,29,30,null,{"$f":"COUNTIF($D19:$AH19,Šifra1)","v":0},{"$f":"COUNTIF($D19:$AH19,Šifra2)","v":0},{"$f":"COUNTIF($D19:$AH19,Šifra3)","v":0},{"$f":"COUNTIF($D19:$AH19,Šifra4)","v":0}]
[null,null,{"$f":"IFERROR(VLOOKUP(TraženjeUčenika,NazočnostZaRujan[],3,FALSE),\"\")","v":""},{"$f":"IFERROR(VLOOKUP(TraženjeUčenika,NazočnostZaRujan[],4,FALSE),\"\")","v":""},{"$f":"IFERROR(VLOOKUP(TraženjeUčenika,NazočnostZaRujan[],5,FALSE),\"\")","v":""},{"$f":"IFERROR(VLOOKUP(TraženjeUčenika,NazočnostZaRujan[],6,FALSE),\"\")","v":""},{"$f":"IFERROR(VLOOKUP(TraženjeUčenika,NazočnostZaRujan[],7,FALSE),\"\")","v":""},{"$f":"IFERROR(VLOOKUP(TraženjeUčenika,NazočnostZaRujan[],8,FALSE),\"\")","v":""},{"$f":"IFERROR(VLOOKUP(TraženjeUčenika,NazočnostZaRujan[],9,FALSE),\"\")","v":""},{"$f":"IFERROR(VLOOKUP(TraženjeUčenika,NazočnostZaRujan[],10,FALSE),\"\")","v":""},{"$f":"IFERROR(VLOOKUP(TraženjeUčenika,NazočnostZaRujan[],11,FALSE),\"\")","v":""},{"$f":"IFERROR(VLOOKUP(TraženjeUčenika,NazočnostZaRujan[],12,FALSE),\"\")","v":""},{"$f":"IFERROR(VLOOKUP(TraženjeUčenika,NazočnostZaRujan[],13,FALSE),\"\")","v":""},{"$f":"IFERROR(VLOOKUP(TraženjeUčenika,NazočnostZaRujan[],14,FALSE),\"\")","v":""},{"$f":"IFERROR(VLOOKUP(TraženjeUčenika,NazočnostZaRujan[],15,FALSE),\"\")","v":""},{"$f":"IFERROR(VLOOKUP(TraženjeUčenika,NazočnostZaRujan[],16,FALSE),\"\")","v":""},{"$f":"IFERROR(VLOOKUP(TraženjeUčenika,NazočnostZaRujan[],17,FALSE),\"\")","v":""},{"$f":"IFERROR(VLOOKUP(TraženjeUčenika,NazočnostZaRujan[],18,FALSE),\"\")","v":""},{"$f":"IFERROR(VLOOKUP(TraženjeUčenika,NazočnostZaRujan[],19,FALSE),\"\")","v":""},{"$f":"IFERROR(VLOOKUP(TraženjeUčenika,NazočnostZaRujan[],20,FALSE),\"\")","v":""},{"$f":"IFERROR(VLOOKUP(TraženjeUčenika,NazočnostZaRujan[],21,FALSE),\"\")","v":""},{"$f":"IFERROR(VLOOKUP(TraženjeUčenika,NazočnostZaRujan[],22,FALSE),\"\")","v":""},{"$f":"IFERROR(VLOOKUP(TraženjeUčenika,NazočnostZaRujan[],23,FALSE),\"\")","v":""},{"$f":"IFERROR(VLOOKUP(TraženjeUčenika,NazočnostZaRujan[],24,FALSE),\"\")","v":""},{"$f":"IFERROR(VLOOKUP(TraženjeUčenika,NazočnostZaRujan[],25,FALSE),\"\")","v":""},{"$f":"IFERROR(VLOOKUP(TraženjeUčenika,NazočnostZaRujan[],26,FALSE),\"\")","v":""},{"$f":"IFERROR(VLOOKUP(TraženjeUčenika,NazočnostZaRujan[],27,FALSE),\"\")","v":""},{"$f":"IFERROR(VLOOKUP(TraženjeUčenika,NazočnostZaRujan[],28,FALSE),\"\")","v":""},{"$f":"IFERROR(VLOOKUP(TraženjeUčenika,NazočnostZaRujan[],29,FALSE),\"\")","v":""},{"$f":"IFERROR(VLOOKUP(TraženjeUčenika,NazočnostZaRujan[],30,FALSE),\"\")","v":""},{"$f":"IFERROR(VLOOKUP(TraženjeUčenika,NazočnostZaRujan[],31,FALSE),\"\")","v":""},{"$f":"IFERROR(VLOOKUP(TraženjeUčenika,NazočnostZaRujan[],32,FALSE),\"\")","v":""}]
[null,"Listopad",1,2,3,4,5,6,7,8,9,10,11,12,13,14,15,16,17,18,19,20,21,22,23,24,25,26,27,28,29,30,31,{"$f":"COUNTIF($D21:$AH21,Šifra1)","v":0},{"$f":"COUNTIF($D21:$AH21,Šifra2)","v":0},{"$f":"COUNTIF($D21:$AH21,Šifra3)","v":0},{"$f":"COUNTIF($D21:$AH21,Šifra4)","v":0}]
[null,null,{"$f":"IFERROR(VLOOKUP(TraženjeUčenika,NazočnostZaListopad[],3,FALSE),\"\")","v":""},{"$f":"IFERROR(VLOOKUP(TraženjeUčenika,NazočnostZaListopad[],4,FALSE),\"\")","v":""},{"$f":"IFERROR(VLOOKUP(TraženjeUčenika,NazočnostZaListopad[],5,FALSE),\"\")","v":""},{"$f":"IFERROR(VLOOKUP(TraženjeUčenika,NazočnostZaListopad[],6,FALSE),\"\")","v":""},{"$f":"IFERROR(VLOOKUP(TraženjeUčenika,NazočnostZaListopad[],7,FALSE),\"\")","v":""},{"$f":"IFERROR(VLOOKUP(TraženjeUčenika,NazočnostZaListopad[],8,FALSE),\"\")","v":""},{"$f":"IFERROR(VLOOKUP(TraženjeUčenika,NazočnostZaListopad[],9,FALSE),\"\")","v":""},{"$f":"IFERROR(VLOOKUP(TraženjeUčenika,NazočnostZaListopad[],10,FALSE),\"\")","v":""},{"$f":"IFERROR(VLOOKUP(TraženjeUčenika,NazočnostZaListopad[],11,FALSE),\"\")","v":""},{"$f":"IFERROR(VLOOKUP(TraženjeUčenika,NazočnostZaListopad[],12,FALSE),\"\")","v":""},{"$f":"IFERROR(VLOOKUP(TraženjeUčenika,NazočnostZaListopad[],13,FALSE),\"\")","v":""},{"$f":"IFERROR(VLOOKUP(TraženjeUčenika,NazočnostZaListopad[],14,FALSE),\"\")","v":""},{"$f":"IFERROR(VLOOKUP(TraženjeUčenika,NazočnostZaListopad[],15,FALSE),\"\")","v":""},{"$f":"IFERROR(VLOOKUP(TraženjeUčenika,NazočnostZaListopad[],16,FALSE),\"\")","v":""},{"$f":"IFERROR(VLOOKUP(TraženjeUčenika,NazočnostZaListopad[],17,FALSE),\"\")","v":""},{"$f":"IFERROR(VLOOKUP(TraženjeUčenika,NazočnostZaListopad[],18,FALSE),\"\")","v":""},{"$f":"IFERROR(VLOOKUP(TraženjeUčenika,NazočnostZaListopad[],19,FALSE),\"\")","v":""},{"$f":"IFERROR(VLOOKUP(TraženjeUčenika,NazočnostZaListopad[],20,FALSE),\"\")","v":""},{"$f":"IFERROR(VLOOKUP(TraženjeUčenika,NazočnostZaListopad[],21,FALSE),\"\")","v":""},{"$f":"IFERROR(VLOOKUP(TraženjeUčenika,NazočnostZaListopad[],22,FALSE),\"\")","v":""},{"$f":"IFERROR(VLOOKUP(TraženjeUčenika,NazočnostZaListopad[],23,FALSE),\"\")","v":""},{"$f":"IFERROR(VLOOKUP(TraženjeUčenika,NazočnostZaListopad[],24,FALSE),\"\")","v":""},{"$f":"IFERROR(VLOOKUP(TraženjeUčenika,NazočnostZaListopad[],25,FALSE),\"\")","v":""},{"$f":"IFERROR(VLOOKUP(TraženjeUčenika,NazočnostZaListopad[],26,FALSE),\"\")","v":""},{"$f":"IFERROR(VLOOKUP(TraženjeUčenika,NazočnostZaListopad[],27,FALSE),\"\")","v":""},{"$f":"IFERROR(VLOOKUP(TraženjeUčenika,NazočnostZaListopad[],28,FALSE),\"\")","v":""},{"$f":"IFERROR(VLOOKUP(TraženjeUčenika,NazočnostZaListopad[],29,FALSE),\"\")","v":""},{"$f":"IFERROR(VLOOKUP(TraženjeUčenika,NazočnostZaListopad[],30,FALSE),\"\")","v":""},{"$f":"IFERROR(VLOOKUP(TraženjeUčenika,NazočnostZaListopad[],31,FALSE),\"\")","v":""},{"$f":"IFERROR(VLOOKUP(TraženjeUčenika,NazočnostZaListopad[],32,FALSE),\"\")","v":""},{"$f":"IFERROR(VLOOKUP(TraženjeUčenika,NazočnostZaListopad[],33,FALSE),\"\")","v":""}]
[null,"Studeni",1,2,3,4,5,6,7,8,9,10,11,12,13,14,15,16,17,18,19,20,21,22,23,24,25,26,27,28,29,30,null,{"$f":"COUNTIF($D23:$AH23,Šifra1)","v":0},{"$f":"COUNTIF($D23:$AH23,Šifra2)","v":0},{"$f":"COUNTIF($D23:$AH23,Šifra3)","v":0},{"$f":"COUNTIF($D23:$AH23,Šifra4)","v":0}]
[null,null,{"$f":"IFERROR(VLOOKUP(TraženjeUčenika,NazočnostZaStudeni[],3,FALSE),\"\")","v":""},{"$f":"IFERROR(VLOOKUP(TraženjeUčenika,NazočnostZaStudeni[],4,FALSE),\"\")","v":""},{"$f":"IFERROR(VLOOKUP(TraženjeUčenika,NazočnostZaStudeni[],5,FALSE),\"\")","v":""},{"$f":"IFERROR(VLOOKUP(TraženjeUčenika,NazočnostZaStudeni[],6,FALSE),\"\")","v":""},{"$f":"IFERROR(VLOOKUP(TraženjeUčenika,NazočnostZaStudeni[],7,FALSE),\"\")","v":""},{"$f":"IFERROR(VLOOKUP(TraženjeUčenika,NazočnostZaStudeni[],8,FALSE),\"\")","v":""},{"$f":"IFERROR(VLOOKUP(TraženjeUčenika,NazočnostZaStudeni[],9,FALSE),\"\")","v":""},{"$f":"IFERROR(VLOOKUP(TraženjeUčenika,NazočnostZaStudeni[],10,FALSE),\"\")","v":""},{"$f":"IFERROR(VLOOKUP(TraženjeUčenika,NazočnostZaStudeni[],11,FALSE),\"\")","v":""},{"$f":"IFERROR(VLOOKUP(TraženjeUčenika,NazočnostZaStudeni[],12,FALSE),\"\")","v":""},{"$f":"IFERROR(VLOOKUP(TraženjeUčenika,NazočnostZaStudeni[],13,FALSE),\"\")","v":""},{"$f":"IFERROR(VLOOKUP(TraženjeUčenika,NazočnostZaStudeni[],14,FALSE),\"\")","v":""},{"$f":"IFERROR(VLOOKUP(TraženjeUčenika,NazočnostZaStudeni[],15,FALSE),\"\")","v":""},{"$f":"IFERROR(VLOOKUP(TraženjeUčenika,NazočnostZaStudeni[],16,FALSE),\"\")","v":""},{"$f":"IFERROR(VLOOKUP(TraženjeUčenika,NazočnostZaStudeni[],17,FALSE),\"\")","v":""},{"$f":"IFERROR(VLOOKUP(TraženjeUčenika,NazočnostZaStudeni[],18,FALSE),\"\")","v":""},{"$f":"IFERROR(VLOOKUP(TraženjeUčenika,NazočnostZaStudeni[],19,FALSE),\"\")","v":""},{"$f":"IFERROR(VLOOKUP(TraženjeUčenika,NazočnostZaStudeni[],20,FALSE),\"\")","v":""},{"$f":"IFERROR(VLOOKUP(TraženjeUčenika,NazočnostZaStudeni[],21,FALSE),\"\")","v":""},{"$f":"IFERROR(VLOOKUP(TraženjeUčenika,NazočnostZaStudeni[],22,FALSE),\"\")","v":""},{"$f":"IFERROR(VLOOKUP(TraženjeUčenika,NazočnostZaStudeni[],23,FALSE),\"\")","v":""},{"$f":"IFERROR(VLOOKUP(TraženjeUčenika,NazočnostZaStudeni[],24,FALSE),\"\")","v":""},{"$f":"IFERROR(VLOOKUP(TraženjeUčenika,NazočnostZaStudeni[],25,FALSE),\"\")","v":""},{"$f":"IFERROR(VLOOKUP(TraženjeUčenika,NazočnostZaStudeni[],26,FALSE),\"\")","v":""},{"$f":"IFERROR(VLOOKUP(TraženjeUčenika,NazočnostZaStudeni[],27,FALSE),\"\")","v":""},{"$f":"IFERROR(VLOOKUP(TraženjeUčenika,NazočnostZaStudeni[],28,FALSE),\"\")","v":""},{"$f":"IFERROR(VLOOKUP(TraženjeUčenika,NazočnostZaStudeni[],29,FALSE),\"\")","v":""},{"$f":"IFERROR(VLOOKUP(TraženjeUčenika,NazočnostZaStudeni[],30,FALSE),\"\")","v":""},{"$f":"IFERROR(VLOOKUP(TraženjeUčenika,NazočnostZaStudeni[],31,FALSE),\"\")","v":""},{"$f":"IFERROR(VLOOKUP(TraženjeUčenika,NazočnostZaStudeni[],32,FALSE),\"\")","v":""}]
[null,"Prosinac",1,2,3,4,5,6,7,8,9,10,11,12,13,14,15,16,17,18,19,20,21,22,23,24,25,26,27,28,29,30,31,{"$f":"COUNTIF($D25:$AH25,Šifra1)","v":0},{"$f":"COUNTIF($D25:$AH25,Šifra2)","v":0},{"$f":"COUNTIF($D25:$AH25,Šifra3)","v":0},{"$f":"COUNTIF($D25:$AH25,Šifra4)","v":0}]
[null,null,{"$f":"IFERROR(VLOOKUP(TraženjeUčenika,NazočnostZaProsinac[],3,FALSE),\"\")","v":""},{"$f":"IFERROR(VLOOKUP(TraženjeUčenika,NazočnostZaProsinac[],4,FALSE),\"\")","v":""},{"$f":"IFERROR(VLOOKUP(TraženjeUčenika,NazočnostZaProsinac[],5,FALSE),\"\")","v":""},{"$f":"IFERROR(VLOOKUP(TraženjeUčenika,NazočnostZaProsinac[],6,FALSE),\"\")","v":""},{"$f":"IFERROR(VLOOKUP(TraženjeUčenika,NazočnostZaProsinac[],7,FALSE),\"\")","v":""},{"$f":"IFERROR(VLOOKUP(TraženjeUčenika,NazočnostZaProsinac[],8,FALSE),\"\")","v":""},{"$f":"IFERROR(VLOOKUP(TraženjeUčenika,NazočnostZaProsinac[],9,FALSE),\"\")","v":""},{"$f":"IFERROR(VLOOKUP(TraženjeUčenika,NazočnostZaProsinac[],10,FALSE),\"\")","v":""},{"$f":"IFERROR(VLOOKUP(TraženjeUčenika,NazočnostZaProsinac[],11,FALSE),\"\")","v":""},{"$f":"IFERROR(VLOOKUP(TraženjeUčenika,NazočnostZaProsinac[],12,FALSE),\"\")","v":""},{"$f":"IFERROR(VLOOKUP(TraženjeUčenika,NazočnostZaProsinac[],13,FALSE),\"\")","v":""},{"$f":"IFERROR(VLOOKUP(TraženjeUčenika,NazočnostZaProsinac[],14,FALSE),\"\")","v":""},{"$f":"IFERROR(VLOOKUP(TraženjeUčenika,NazočnostZaProsinac[],15,FALSE),\"\")","v":""},{"$f":"IFERROR(VLOOKUP(TraženjeUčenika,NazočnostZaProsinac[],16,FALSE),\"\")","v":""},{"$f":"IFERROR(VLOOKUP(TraženjeUčenika,NazočnostZaProsinac[],17,FALSE),\"\")","v":""},{"$f":"IFERROR(VLOOKUP(TraženjeUčenika,NazočnostZaProsinac[],18,FALSE),\"\")","v":""},{"$f":"IFERROR(VLOOKUP(TraženjeUčenika,NazočnostZaProsinac[],19,FALSE),\"\")","v":""},{"$f":"IFERROR(VLOOKUP(TraženjeUčenika,NazočnostZaProsinac[],20,FALSE),\"\")","v":""},{"$f":"IFERROR(VLOOKUP(TraženjeUčenika,NazočnostZaProsinac[],21,FALSE),\"\")","v":""},{"$f":"IFERROR(VLOOKUP(TraženjeUčenika,NazočnostZaProsinac[],22,FALSE),\"\")","v":""},{"$f":"IFERROR(VLOOKUP(TraženjeUčenika,NazočnostZaProsinac[],23,FALSE),\"\")","v":""},{"$f":"IFERROR(VLOOKUP(TraženjeUčenika,NazočnostZaProsinac[],24,FALSE),\"\")","v":""},{"$f":"IFERROR(VLOOKUP(TraženjeUčenika,NazočnostZaProsinac[],25,FALSE),\"\")","v":""},{"$f":"IFERROR(VLOOKUP(TraženjeUčenika,NazočnostZaProsinac[],26,FALSE),\"\")","v":""},{"$f":"IFERROR(VLOOKUP(TraženjeUčenika,NazočnostZaProsinac[],27,FALSE),\"\")","v":""},{"$f":"IFERROR(VLOOKUP(TraženjeUčenika,NazočnostZaProsinac[],28,FALSE),\"\")","v":""},{"$f":"IFERROR(VLOOKUP(TraženjeUčenika,NazočnostZaProsinac[],29,FALSE),\"\")","v":""},{"$f":"IFERROR(VLOOKUP(TraženjeUčenika,NazočnostZaProsinac[],30,FALSE),\"\")","v":""},{"$f":"IFERROR(VLOOKUP(TraženjeUčenika,NazočnostZaProsinac[],31,FALSE),\"\")","v":""},{"$f":"IFERROR(VLOOKUP(TraženjeUčenika,NazočnostZaProsinac[],32,FALSE),\"\")","v":""},{"$f":"IFERROR(VLOOKUP(TraženjeUčenika,NazočnostZaProsinac[],33,FALSE),\"\")","v":""}]
[null,"Siječanj",1,2,3,4,5,6,7,8,9,10,11,12,13,14,15,16,17,18,19,20,21,22,23,24,25,26,27,28,29,30,31,{"$f":"COUNTIF($D27:$AH27,Šifra1)","v":0},{"$f":"COUNTIF($D27:$AH27,Šifra2)","v":0},{"$f":"COUNTIF($D27:$AH27,Šifra3)","v":0},{"$f":"COUNTIF($D27:$AH27,Šifra4)","v":0}]
[null,null,{"$f":"IFERROR(VLOOKUP(TraženjeUčenika,NazočnostZaSiječanj[],3,FALSE),\"\")","v":""},{"$f":"IFERROR(VLOOKUP(TraženjeUčenika,NazočnostZaSiječanj[],4,FALSE),\"\")","v":""},{"$f":"IFERROR(VLOOKUP(TraženjeUčenika,NazočnostZaSiječanj[],5,FALSE),\"\")","v":""},{"$f":"IFERROR(VLOOKUP(TraženjeUčenika,NazočnostZaSiječanj[],6,FALSE),\"\")","v":""},{"$f":"IFERROR(VLOOKUP(TraženjeUčenika,NazočnostZaSiječanj[],7,FALSE),\"\")","v":""},{"$f":"IFERROR(VLOOKUP(TraženjeUčenika,NazočnostZaSiječanj[],8,FALSE),\"\")","v":""},{"$f":"IFERROR(VLOOKUP(TraženjeUčenika,NazočnostZaSiječanj[],9,FALSE),\"\")","v":""},{"$f":"IFERROR(VLOOKUP(TraženjeUčenika,NazočnostZaSiječanj[],10,FALSE),\"\")","v":""},{"$f":"IFERROR(VLOOKUP(TraženjeUčenika,NazočnostZaSiječanj[],11,FALSE),\"\")","v":""},{"$f":"IFERROR(VLOOKUP(TraženjeUčenika,NazočnostZaSiječanj[],12,FALSE),\"\")","v":""},{"$f":"IFERROR(VLOOKUP(TraženjeUčenika,NazočnostZaSiječanj[],13,FALSE),\"\")","v":""},{"$f":"IFERROR(VLOOKUP(TraženjeUčenika,NazočnostZaSiječanj[],14,FALSE),\"\")","v":""},{"$f":"IFERROR(VLOOKUP(TraženjeUčenika,NazočnostZaSiječanj[],15,FALSE),\"\")","v":""},{"$f":"IFERROR(VLOOKUP(TraženjeUčenika,NazočnostZaSiječanj[],16,FALSE),\"\")","v":""},{"$f":"IFERROR(VLOOKUP(TraženjeUčenika,NazočnostZaSiječanj[],17,FALSE),\"\")","v":""},{"$f":"IFERROR(VLOOKUP(TraženjeUčenika,NazočnostZaSiječanj[],18,FALSE),\"\")","v":""},{"$f":"IFERROR(VLOOKUP(TraženjeUčenika,NazočnostZaSiječanj[],19,FALSE),\"\")","v":""},{"$f":"IFERROR(VLOOKUP(TraženjeUčenika,NazočnostZaSiječanj[],20,FALSE),\"\")","v":""},{"$f":"IFERROR(VLOOKUP(TraženjeUčenika,NazočnostZaSiječanj[],21,FALSE),\"\")","v":""},{"$f":"IFERROR(VLOOKUP(TraženjeUčenika,NazočnostZaSiječanj[],22,FALSE),\"\")","v":""},{"$f":"IFERROR(VLOOKUP(TraženjeUčenika,NazočnostZaSiječanj[],23,FALSE),\"\")","v":""},{"$f":"IFERROR(VLOOKUP(TraženjeUčenika,NazočnostZaSiječanj[],24,FALSE),\"\")","v":""},{"$f":"IFERROR(VLOOKUP(TraženjeUčenika,NazočnostZaSiječanj[],25,FALSE),\"\")","v":""},{"$f":"IFERROR(VLOOKUP(TraženjeUčenika,NazočnostZaSiječanj[],26,FALSE),\"\")","v":""},{"$f":"IFERROR(VLOOKUP(TraženjeUčenika,NazočnostZaSiječanj[],27,FALSE),\"\")","v":""},{"$f":"IFERROR(VLOOKUP(TraženjeUčenika,NazočnostZaSiječanj[],28,FALSE),\"\")","v":""},{"$f":"IFERROR(VLOOKUP(TraženjeUčenika,NazočnostZaSiječanj[],29,FALSE),\"\")","v":""},{"$f":"IFERROR(VLOOKUP(TraženjeUčenika,NazočnostZaSiječanj[],30,FALSE),\"\")","v":""},{"$f":"IFERROR(VLOOKUP(TraženjeUčenika,NazočnostZaSiječanj[],31,FALSE),\"\")","v":""},{"$f":"IFERROR(VLOOKUP(TraženjeUčenika,NazočnostZaSiječanj[],32,FALSE),\"\")","v":""},{"$f":"IFERROR(VLOOKUP(TraženjeUčenika,NazočnostZaSiječanj[],33,FALSE),\"\")","v":""}]
[null,"Veljača",1,2,3,4,5,6,7,8,9,10,11,12,13,14,15,16,17,18,19,20,21,22,23,24,25,26,27,28,29,null,null,{"$f":"COUNTIF($D29:$AH29,Šifra1)","v":0},{"$f":"COUNTIF($D29:$AH29,Šifra2)","v":0},{"$f":"COUNTIF($D29:$AH29,Šifra3)","v":0},{"$f":"COUNTIF($D29:$AH29,Šifra4)","v":0}]
[null,null,{"$f":"IFERROR(VLOOKUP(TraženjeUčenika,NazočnostZaVeljaču[],3,FALSE),\"\")","v":""},{"$f":"IFERROR(VLOOKUP(TraženjeUčenika,NazočnostZaVeljaču[],4,FALSE),\"\")","v":""},{"$f":"IFERROR(VLOOKUP(TraženjeUčenika,NazočnostZaVeljaču[],5,FALSE),\"\")","v":""},{"$f":"IFERROR(VLOOKUP(TraženjeUčenika,NazočnostZaVeljaču[],6,FALSE),\"\")","v":""},{"$f":"IFERROR(VLOOKUP(TraženjeUčenika,NazočnostZaVeljaču[],7,FALSE),\"\")","v":""},{"$f":"IFERROR(VLOOKUP(TraženjeUčenika,NazočnostZaVeljaču[],8,FALSE),\"\")","v":""},{"$f":"IFERROR(VLOOKUP(TraženjeUčenika,NazočnostZaVeljaču[],9,FALSE),\"\")","v":""},{"$f":"IFERROR(VLOOKUP(TraženjeUčenika,NazočnostZaVeljaču[],10,FALSE),\"\")","v":""},{"$f":"IFERROR(VLOOKUP(TraženjeUčenika,NazočnostZaVeljaču[],11,FALSE),\"\")","v":""},{"$f":"IFERROR(VLOOKUP(TraženjeUčenika,NazočnostZaVeljaču[],12,FALSE),\"\")","v":""},{"$f":"IFERROR(VLOOKUP(TraženjeUčenika,NazočnostZaVeljaču[],13,FALSE),\"\")","v":""},{"$f":"IFERROR(VLOOKUP(TraženjeUčenika,NazočnostZaVeljaču[],14,FALSE),\"\")","v":""},{"$f":"IFERROR(VLOOKUP(TraženjeUčenika,NazočnostZaVeljaču[],15,FALSE),\"\")","v":""},{"$f":"IFERROR(VLOOKUP(TraženjeUčenika,NazočnostZaVeljaču[],16,FALSE),\"\")","v":""},{"$f":"IFERROR(VLOOKUP(TraženjeUčenika,NazočnostZaVeljaču[],17,FALSE),\"\")","v":""},{"$f":"IFERROR(VLOOKUP(TraženjeUčenika,NazočnostZaVeljaču[],18,FALSE),\"\")","v":""},{"$f":"IFERROR(VLOOKUP(TraženjeUčenika,NazočnostZaVeljaču[],19,FALSE),\"\")","v":""},{"$f":"IFERROR(VLOOKUP(TraženjeUčenika,NazočnostZaVeljaču[],20,FALSE),\"\")","v":""},{"$f":"IFERROR(VLOOKUP(TraženjeUčenika,NazočnostZaVeljaču[],21,FALSE),\"\")","v":""},{"$f":"IFERROR(VLOOKUP(TraženjeUčenika,NazočnostZaVeljaču[],22,FALSE),\"\")","v":""},{"$f":"IFERROR(VLOOKUP(TraženjeUčenika,NazočnostZaVeljaču[],23,FALSE),\"\")","v":""},{"$f":"IFERROR(VLOOKUP(TraženjeUčenika,NazočnostZaVeljaču[],24,FALSE),\"\")","v":""},{"$f":"IFERROR(VLOOKUP(TraženjeUčenika,NazočnostZaVeljaču[],25,FALSE),\"\")","v":""},{"$f":"IFERROR(VLOOKUP(TraženjeUčenika,NazočnostZaVeljaču[],26,FALSE),\"\")","v":""},{"$f":"IFERROR(VLOOKUP(TraženjeUčenika,NazočnostZaVeljaču[],27,FALSE),\"\")","v":""},{"$f":"IFERROR(VLOOKUP(TraženjeUčenika,NazočnostZaVeljaču[],28,FALSE),\"\")","v":""},{"$f":"IFERROR(VLOOKUP(TraženjeUčenika,NazočnostZaVeljaču[],29,FALSE),\"\")","v":""},{"$f":"IFERROR(VLOOKUP(TraženjeUčenika,NazočnostZaVeljaču[],30,FALSE),\"\")","v":""},{"$f":"IFERROR(VLOOKUP(TraženjeUčenika,NazočnostZaVeljaču[],31,FALSE),\"\")","v":""}]
[null,"Ožujak",1,2,3,4,5,6,7,8,9,10,11,12,13,14,15,16,17,18,19,20,21,22,23,24,25,26,27,28,29,30,31,{"$f":"COUNTIF($D31:$AH31,Šifra1)","v":0},{"$f":"COUNTIF($D31:$AH31,Šifra2)","v":0},{"$f":"COUNTIF($D31:$AH31,Šifra3)","v":0},{"$f":"COUNTIF($D31:$AH31,Šifra4)","v":0}]
[null,null,{"$f":"IFERROR(VLOOKUP(TraženjeUčenika,NazočnostZaOžujak[],3,FALSE),\"\")","v":""},{"$f":"IFERROR(VLOOKUP(TraženjeUčenika,NazočnostZaOžujak[],4,FALSE),\"\")","v":""},{"$f":"IFERROR(VLOOKUP(TraženjeUčenika,NazočnostZaOžujak[],5,FALSE),\"\")","v":""},{"$f":"IFERROR(VLOOKUP(TraženjeUčenika,NazočnostZaOžujak[],6,FALSE),\"\")","v":""},{"$f":"IFERROR(VLOOKUP(TraženjeUčenika,NazočnostZaOžujak[],7,FALSE),\"\")","v":""},{"$f":"IFERROR(VLOOKUP(TraženjeUčenika,NazočnostZaOžujak[],8,FALSE),\"\")","v":""},{"$f":"IFERROR(VLOOKUP(TraženjeUčenika,NazočnostZaOžujak[],9,FALSE),\"\")","v":""},{"$f":"IFERROR(VLOOKUP(TraženjeUčenika,NazočnostZaOžujak[],10,FALSE),\"\")","v":""},{"$f":"IFERROR(VLOOKUP(TraženjeUčenika,NazočnostZaOžujak[],11,FALSE),\"\")","v":""},{"$f":"IFERROR(VLOOKUP(TraženjeUčenika,NazočnostZaOžujak[],12,FALSE),\"\")","v":""},{"$f":"IFERROR(VLOOKUP(TraženjeUčenika,NazočnostZaOžujak[],13,FALSE),\"\")","v":""},{"$f":"IFERROR(VLOOKUP(TraženjeUčenika,NazočnostZaOžujak[],14,FALSE),\"\")","v":""},{"$f":"IFERROR(VLOOKUP(TraženjeUčenika,NazočnostZaOžujak[],15,FALSE),\"\")","v":""},{"$f":"IFERROR(VLOOKUP(TraženjeUčenika,NazočnostZaOžujak[],16,FALSE),\"\")","v":""},{"$f":"IFERROR(VLOOKUP(TraženjeUčenika,NazočnostZaOžujak[],17,FALSE),\"\")","v":""},{"$f":"IFERROR(VLOOKUP(TraženjeUčenika,NazočnostZaOžujak[],18,FALSE),\"\")","v":""},{"$f":"IFERROR(VLOOKUP(TraženjeUčenika,NazočnostZaOžujak[],19,FALSE),\"\")","v":""},{"$f":"IFERROR(VLOOKUP(TraženjeUčenika,NazočnostZaOžujak[],20,FALSE),\"\")","v":""},{"$f":"IFERROR(VLOOKUP(TraženjeUčenika,NazočnostZaOžujak[],21,FALSE),\"\")","v":""},{"$f":"IFERROR(VLOOKUP(TraženjeUčenika,NazočnostZaOžujak[],22,FALSE),\"\")","v":""},{"$f":"IFERROR(VLOOKUP(TraženjeUčenika,NazočnostZaOžujak[],23,FALSE),\"\")","v":""},{"$f":"IFERROR(VLOOKUP(TraženjeUčenika,NazočnostZaOžujak[],24,FALSE),\"\")","v":""},{"$f":"IFERROR(VLOOKUP(TraženjeUčenika,NazočnostZaOžujak[],25,FALSE),\"\")","v":""},{"$f":"IFERROR(VLOOKUP(TraženjeUčenika,NazočnostZaOžujak[],26,FALSE),\"\")","v":""},{"$f":"IFERROR(VLOOKUP(TraženjeUčenika,NazočnostZaOžujak[],27,FALSE),\"\")","v":""},{"$f":"IFERROR(VLOOKUP(TraženjeUčenika,NazočnostZaOžujak[],28,FALSE),\"\")","v":""},{"$f":"IFERROR(VLOOKUP(TraženjeUčenika,NazočnostZaOžujak[],29,FALSE),\"\")","v":""},{"$f":"IFERROR(VLOOKUP(TraženjeUčenika,NazočnostZaOžujak[],30,FALSE),\"\")","v":""},{"$f":"IFERROR(VLOOKUP(TraženjeUčenika,NazočnostZaOžujak[],31,FALSE),\"\")","v":""},{"$f":"IFERROR(VLOOKUP(TraženjeUčenika,NazočnostZaOžujak[],32,FALSE),\"\")","v":""},{"$f":"IFERROR(VLOOKUP(TraženjeUčenika,NazočnostZaOžujak[],33,FALSE),\"\")","v":""}]
[null,"Travanj",1,2,3,4,5,6,7,8,9,10,11,12,13,14,15,16,17,18,19,20,21,22,23,24,25,26,27,28,29,30,null,{"$f":"COUNTIF($D33:$AH33,Šifra1)","v":0},{"$f":"COUNTIF($D33:$AH33,Šifra2)","v":0},{"$f":"COUNTIF($D33:$AH33,Šifra3)","v":0},{"$f":"COUNTIF($D33:$AH33,Šifra4)","v":0}]
[null,null,{"$f":"IFERROR(VLOOKUP(TraženjeUčenika,NazočnostZaTravanj[],3,FALSE),\"\")","v":""},{"$f":"IFERROR(VLOOKUP(TraženjeUčenika,NazočnostZaTravanj[],4,FALSE),\"\")","v":""},{"$f":"IFERROR(VLOOKUP(TraženjeUčenika,NazočnostZaTravanj[],5,FALSE),\"\")","v":""},{"$f":"IFERROR(VLOOKUP(TraženjeUčenika,NazočnostZaTravanj[],6,FALSE),\"\")","v":""},{"$f":"IFERROR(VLOOKUP(TraženjeUčenika,NazočnostZaTravanj[],7,FALSE),\"\")","v":""},{"$f":"IFERROR(VLOOKUP(TraženjeUčenika,NazočnostZaTravanj[],8,FALSE),\"\")","v":""},{"$f":"IFERROR(VLOOKUP(TraženjeUčenika,NazočnostZaTravanj[],9,FALSE),\"\")","v":""},{"$f":"IFERROR(VLOOKUP(TraženjeUčenika,NazočnostZaTravanj[],10,FALSE),\"\")","v":""},{"$f":"IFERROR(VLOOKUP(TraženjeUčenika,NazočnostZaTravanj[],11,FALSE),\"\")","v":""},{"$f":"IFERROR(VLOOKUP(TraženjeUčenika,NazočnostZaTravanj[],12,FALSE),\"\")","v":""},{"$f":"IFERROR(VLOOKUP(TraženjeUčenika,NazočnostZaTravanj[],13,FALSE),\"\")","v":""},{"$f":"IFERROR(VLOOKUP(TraženjeUčenika,NazočnostZaTravanj[],14,FALSE),\"\")","v":""},{"$f":"IFERROR(VLOOKUP(TraženjeUčenika,NazočnostZaTravanj[],15,FALSE),\"\")","v":""},{"$f":"IFERROR(VLOOKUP(TraženjeUčenika,NazočnostZaTravanj[],16,FALSE),\"\")","v":""},{"$f":"IFERROR(VLOOKUP(TraženjeUčenika,NazočnostZaTravanj[],17,FALSE),\"\")","v":""},{"$f":"IFERROR(VLOOKUP(TraženjeUčenika,NazočnostZaTravanj[],18,FALSE),\"\")","v":""},{"$f":"IFERROR(VLOOKUP(TraženjeUčenika,NazočnostZaTravanj[],19,FALSE),\"\")","v":""},{"$f":"IFERROR(VLOOKUP(TraženjeUčenika,NazočnostZaTravanj[],20,FALSE),\"\")","v":""},{"$f":"IFERROR(VLOOKUP(TraženjeUčenika,NazočnostZaTravanj[],21,FALSE),\"\")","v":""},{"$f":"IFERROR(VLOOKUP(TraženjeUčenika,NazočnostZaTravanj[],22,FALSE),\"\")","v":""},{"$f":"IFERROR(VLOOKUP(TraženjeUčenika,NazočnostZaTravanj[],23,FALSE),\"\")","v":""},{"$f":"IFERROR(VLOOKUP(TraženjeUčenika,NazočnostZaTravanj[],24,FALSE),\"\")","v":""},{"$f":"IFERROR(VLOOKUP(TraženjeUčenika,NazočnostZaTravanj[],25,FALSE),\"\")","v":""},{"$f":"IFERROR(VLOOKUP(TraženjeUčenika,NazočnostZaTravanj[],26,FALSE),\"\")","v":""},{"$f":"IFERROR(VLOOKUP(TraženjeUčenika,NazočnostZaTravanj[],27,FALSE),\"\")","v":""},{"$f":"IFERROR(VLOOKUP(TraženjeUčenika,NazočnostZaTravanj[],28,FALSE),\"\")","v":""},{"$f":"IFERROR(VLOOKUP(TraženjeUčenika,NazočnostZaTravanj[],29,FALSE),\"\")","v":""},{"$f":"IFERROR(VLOOKUP(TraženjeUčenika,NazočnostZaTravanj[],30,FALSE),\"\")","v":""},{"$f":"IFERROR(VLOOKUP(TraženjeUčenika,NazočnostZaTravanj[],31,FALSE),\"\")","v":""},{"$f":"IFERROR(VLOOKUP(TraženjeUčenika,NazočnostZaTravanj[],32,FALSE),\"\")","v":""}]
[null,"Svi.",1,2,3,4,5,6,7,8,9,10,11,12,13,14,15,16,17,18,19,20,21,22,23,24,25,26,27,28,29,30,31,{"$f":"COUNTIF($D35:$AH35,Šifra1)","v":0},{"$f":"COUNTIF($D35:$AH35,Šifra2)","v":0},{"$f":"COUNTIF($D35:$AH35,Šifra3)","v":0},{"$f":"COUNTIF($D35:$AH35,Šifra4)","v":0}]
[null,null,{"$f":"IFERROR(VLOOKUP(TraženjeUčenika,NazočnostZaSvibanj[],3,FALSE),\"\")","v":""},{"$f":"IFERROR(VLOOKUP(TraženjeUčenika,NazočnostZaSvibanj[],4,FALSE),\"\")","v":""},{"$f":"IFERROR(VLOOKUP(TraženjeUčenika,NazočnostZaSvibanj[],5,FALSE),\"\")","v":""},{"$f":"IFERROR(VLOOKUP(TraženjeUčenika,NazočnostZaSvibanj[],6,FALSE),\"\")","v":""},{"$f":"IFERROR(VLOOKUP(TraženjeUčenika,NazočnostZaSvibanj[],7,FALSE),\"\")","v":""},{"$f":"IFERROR(VLOOKUP(TraženjeUčenika,NazočnostZaSvibanj[],8,FALSE),\"\")","v":""},{"$f":"IFERROR(VLOOKUP(TraženjeUčenika,NazočnostZaSvibanj[],9,FALSE),\"\")","v":""},{"$f":"IFERROR(VLOOKUP(TraženjeUčenika,NazočnostZaSvibanj[],10,FALSE),\"\")","v":""},{"$f":"IFERROR(VLOOKUP(TraženjeUčenika,NazočnostZaSvibanj[],11,FALSE),\"\")","v":""},{"$f":"IFERROR(VLOOKUP(TraženjeUčenika,NazočnostZaSvibanj[],12,FALSE),\"\")","v":""},{"$f":"IFERROR(VLOOKUP(TraženjeUčenika,NazočnostZaSvibanj[],13,FALSE),\"\")","v":""},{"$f":"IFERROR(VLOOKUP(TraženjeUčenika,NazočnostZaSvibanj[],14,FALSE),\"\")","v":""},{"$f":"IFERROR(VLOOKUP(TraženjeUčenika,NazočnostZaSvibanj[],15,FALSE),\"\")","v":""},{"$f":"IFERROR(VLOOKUP(TraženjeUčenika,NazočnostZaSvibanj[],16,FALSE),\"\")","v":""},{"$f":"IFERROR(VLOOKUP(TraženjeUčenika,NazočnostZaSvibanj[],17,FALSE),\"\")","v":""},{"$f":"IFERROR(VLOOKUP(TraženjeUčenika,NazočnostZaSvibanj[],18,FALSE),\"\")","v":""},{"$f":"IFERROR(VLOOKUP(TraženjeUčenika,NazočnostZaSvibanj[],19,FALSE),\"\")","v":""},{"$f":"IFERROR(VLOOKUP(TraženjeUčenika,NazočnostZaSvibanj[],20,FALSE),\"\")","v":""},{"$f":"IFERROR(VLOOKUP(TraženjeUčenika,NazočnostZaSvibanj[],21,FALSE),\"\")","v":""},{"$f":"IFERROR(VLOOKUP(TraženjeUčenika,NazočnostZaSvibanj[],22,FALSE),\"\")","v":""},{"$f":"IFERROR(VLOOKUP(TraženjeUčenika,NazočnostZaSvibanj[],23,FALSE),\"\")","v":""},{"$f":"IFERROR(VLOOKUP(TraženjeUčenika,NazočnostZaSvibanj[],24,FALSE),\"\")","v":""},{"$f":"IFERROR(VLOOKUP(TraženjeUčenika,NazočnostZaSvibanj[],25,FALSE),\"\")","v":""},{"$f":"IFERROR(VLOOKUP(TraženjeUčenika,NazočnostZaSvibanj[],26,FALSE),\"\")","v":""},{"$f":"IFERROR(VLOOKUP(TraženjeUčenika,NazočnostZaSvibanj[],27,FALSE),\"\")","v":""},{"$f":"IFERROR(VLOOKUP(TraženjeUčenika,NazočnostZaSvibanj[],28,FALSE),\"\")","v":""},{"$f":"IFERROR(VLOOKUP(TraženjeUčenika,NazočnostZaSvibanj[],29,FALSE),\"\")","v":""},{"$f":"IFERROR(VLOOKUP(TraženjeUčenika,NazočnostZaSvibanj[],30,FALSE),\"\")","v":""},{"$f":"IFERROR(VLOOKUP(TraženjeUčenika,NazočnostZaSvibanj[],31,FALSE),\"\")","v":""},{"$f":"IFERROR(VLOOKUP(TraženjeUčenika,NazočnostZaSvibanj[],32,FALSE),\"\")","v":""},{"$f":"IFERROR(VLOOKUP(TraženjeUčenika,NazočnostZaSvibanj[],33,FALSE),\"\")","v":""}]
[null,"Lipanj",1,2,3,4,5,6,7,8,9,10,11,12,13,14,15,16,17,18,19,20,21,22,23,24,25,26,27,28,29,30,null,{"$f":"COUNTIF($D37:$AH37,Šifra1)","v":0},{"$f":"COUNTIF($D37:$AH37,Šifra2)","v":0},{"$f":"COUNTIF($D37:$AH37,Šifra3)","v":0},{"$f":"COUNTIF($D37:$AH37,Šifra4)","v":0}]
[null,null,{"$f":"IFERROR(VLOOKUP(TraženjeUčenika,NazočnostZaLipanj[],3,FALSE),\"\")","v":""},{"$f":"IFERROR(VLOOKUP(TraženjeUčenika,NazočnostZaLipanj[],4,FALSE),\"\")","v":""},{"$f":"IFERROR(VLOOKUP(TraženjeUčenika,NazočnostZaLipanj[],5,FALSE),\"\")","v":""},{"$f":"IFERROR(VLOOKUP(TraženjeUčenika,NazočnostZaLipanj[],6,FALSE),\"\")","v":""},{"$f":"IFERROR(VLOOKUP(TraženjeUčenika,NazočnostZaLipanj[],7,FALSE),\"\")","v":""},{"$f":"IFERROR(VLOOKUP(TraženjeUčenika,NazočnostZaLipanj[],8,FALSE),\"\")","v":""},{"$f":"IFERROR(VLOOKUP(TraženjeUčenika,NazočnostZaLipanj[],9,FALSE),\"\")","v":""},{"$f":"IFERROR(VLOOKUP(TraženjeUčenika,NazočnostZaLipanj[],10,FALSE),\"\")","v":""},{"$f":"IFERROR(VLOOKUP(TraženjeUčenika,NazočnostZaLipanj[],11,FALSE),\"\")","v":""},{"$f":"IFERROR(VLOOKUP(TraženjeUčenika,NazočnostZaLipanj[],12,FALSE),\"\")","v":""},{"$f":"IFERROR(VLOOKUP(TraženjeUčenika,NazočnostZaLipanj[],13,FALSE),\"\")","v":""},{"$f":"IFERROR(VLOOKUP(TraženjeUčenika,NazočnostZaLipanj[],14,FALSE),\"\")","v":""},{"$f":"IFERROR(VLOOKUP(TraženjeUčenika,NazočnostZaLipanj[],15,FALSE),\"\")","v":""},{"$f":"IFERROR(VLOOKUP(TraženjeUčenika,NazočnostZaLipanj[],16,FALSE),\"\")","v":""},{"$f":"IFERROR(VLOOKUP(TraženjeUčenika,NazočnostZaLipanj[],17,FALSE),\"\")","v":""},{"$f":"IFERROR(VLOOKUP(TraženjeUčenika,NazočnostZaLipanj[],18,FALSE),\"\")","v":""},{"$f":"IFERROR(VLOOKUP(TraženjeUčenika,NazočnostZaLipanj[],19,FALSE),\"\")","v":""},{"$f":"IFERROR(VLOOKUP(TraženjeUčenika,NazočnostZaLipanj[],20,FALSE),\"\")","v":""},{"$f":"IFERROR(VLOOKUP(TraženjeUčenika,NazočnostZaLipanj[],21,FALSE),\"\")","v":""},{"$f":"IFERROR(VLOOKUP(TraženjeUčenika,NazočnostZaLipanj[],22,FALSE),\"\")","v":""},{"$f":"IFERROR(VLOOKUP(TraženjeUčenika,NazočnostZaLipanj[],23,FALSE),\"\")","v":""},{"$f":"IFERROR(VLOOKUP(TraženjeUčenika,NazočnostZaLipanj[],24,FALSE),\"\")","v":""},{"$f":"IFERROR(VLOOKUP(TraženjeUčenika,NazočnostZaLipanj[],25,FALSE),\"\")","v":""},{"$f":"IFERROR(VLOOKUP(TraženjeUčenika,NazočnostZaLipanj[],26,FALSE),\"\")","v":""},{"$f":"IFERROR(VLOOKUP(TraženjeUčenika,NazočnostZaLipanj[],27,FALSE),\"\")","v":""},{"$f":"IFERROR(VLOOKUP(TraženjeUčenika,NazočnostZaLipanj[],28,FALSE),\"\")","v":""},{"$f":"IFERROR(VLOOKUP(TraženjeUčenika,NazočnostZaLipanj[],29,FALSE),\"\")","v":""},{"$f":"IFERROR(VLOOKUP(TraženjeUčenika,NazočnostZaLipanj[],30,FALSE),\"\")","v":""},{"$f":"IFERROR(VLOOKUP(TraženjeUčenika,NazočnostZaLipanj[],31,FALSE),\"\")","v":""},{"$f":"IFERROR(VLOOKUP(TraženjeUčenika,NazočnostZaLipanj[],32,FALSE),\"\")","v":""}]
[null,"Srpanj",1,2,3,4,5,6,7,8,9,10,11,12,13,14,15,16,17,18,19,20,21,22,23,24,25,26,27,28,29,30,31,{"$f":"COUNTIF($D39:$AH39,Šifra1)","v":0},{"$f":"COUNTIF($D39:$AH39,Šifra2)","v":0},{"$f":"COUNTIF($D39:$AH39,Šifra3)","v":0},{"$f":"COUNTIF($D39:$AH39,Šifra4)","v":0}]
[null,null,{"$f":"IFERROR(VLOOKUP(TraženjeUčenika,NazočnostZaSrpanj[],3,FALSE),\"\")","v":""},{"$f":"IFERROR(VLOOKUP(TraženjeUčenika,NazočnostZaSrpanj[],4,FALSE),\"\")","v":""},{"$f":"IFERROR(VLOOKUP(TraženjeUčenika,NazočnostZaSrpanj[],5,FALSE),\"\")","v":""},{"$f":"IFERROR(VLOOKUP(TraženjeUčenika,NazočnostZaSrpanj[],6,FALSE),\"\")","v":""},{"$f":"IFERROR(VLOOKUP(TraženjeUčenika,NazočnostZaSrpanj[],7,FALSE),\"\")","v":""},{"$f":"IFERROR(VLOOKUP(TraženjeUčenika,NazočnostZaSrpanj[],8,FALSE),\"\")","v":""},{"$f":"IFERROR(VLOOKUP(TraženjeUčenika,NazočnostZaSrpanj[],9,FALSE),\"\")","v":""},{"$f":"IFERROR(VLOOKUP(TraženjeUčenika,NazočnostZaSrpanj[],10,FALSE),\"\")","v":""},{"$f":"IFERROR(VLOOKUP(TraženjeUčenika,NazočnostZaSrpanj[],11,FALSE),\"\")","v":""},{"$f":"IFERROR(VLOOKUP(TraženjeUčenika,NazočnostZaSrpanj[],12,FALSE),\"\")","v":""},{"$f":"IFERROR(VLOOKUP(TraženjeUčenika,NazočnostZaSrpanj[],13,FALSE),\"\")","v":""},{"$f":"IFERROR(VLOOKUP(TraženjeUčenika,NazočnostZaSrpanj[],14,FALSE),\"\")","v":""},{"$f":"IFERROR(VLOOKUP(TraženjeUčenika,NazočnostZaSrpanj[],15,FALSE),\"\")","v":""},{"$f":"IFERROR(VLOOKUP(TraženjeUčenika,NazočnostZaSrpanj[],16,FALSE),\"\")","v":""},{"$f":"IFERROR(VLOOKUP(TraženjeUčenika,NazočnostZaSrpanj[],17,FALSE),\"\")","v":""},{"$f":"IFERROR(VLOOKUP(TraženjeUčenika,NazočnostZaSrpanj[],18,FALSE),\"\")","v":""},{"$f":"IFERROR(VLOOKUP(TraženjeUčenika,NazočnostZaSrpanj[],19,FALSE),\"\")","v":""},{"$f":"IFERROR(VLOOKUP(TraženjeUčenika,NazočnostZaSrpanj[],20,FALSE),\"\")","v":""},{"$f":"IFERROR(VLOOKUP(TraženjeUčenika,NazočnostZaSrpanj[],21,FALSE),\"\")","v":""},{"$f":"IFERROR(VLOOKUP(TraženjeUčenika,NazočnostZaSrpanj[],22,FALSE),\"\")","v":""},{"$f":"IFERROR(VLOOKUP(TraženjeUčenika,NazočnostZaSrpanj[],23,FALSE),\"\")","v":""},{"$f":"IFERROR(VLOOKUP(TraženjeUčenika,NazočnostZaSrpanj[],24,FALSE),\"\")","v":""},{"$f":"IFERROR(VLOOKUP(TraženjeUčenika,NazočnostZaSrpanj[],25,FALSE),\"\")","v":""},{"$f":"IFERROR(VLOOKUP(TraženjeUčenika,NazočnostZaSrpanj[],26,FALSE),\"\")","v":""},{"$f":"IFERROR(VLOOKUP(TraženjeUčenika,NazočnostZaSrpanj[],27,FALSE),\"\")","v":""},{"$f":"IFERROR(VLOOKUP(TraženjeUčenika,NazočnostZaSrpanj[],28,FALSE),\"\")","v":""},{"$f":"IFERROR(VLOOKUP(TraženjeUčenika,NazočnostZaSrpanj[],29,FALSE),\"\")","v":""},{"$f":"IFERROR(VLOOKUP(TraženjeUčenika,NazočnostZaSrpanj[],30,FALSE),\"\")","v":""},{"$f":"IFERROR(VLOOKUP(TraženjeUčenika,NazočnostZaSrpanj[],31,FALSE),\"\")","v":""},{"$f":"IFERROR(VLOOKUP(TraženjeUčenika,NazočnostZaSrpanj[],32,FALSE),\"\")","v":""},{"$f":"IFERROR(VLOOKUP(TraženjeUčenika,NazočnostZaSrpanj[],33,FALSE),\"\")","v":""}]
[{"$nulls":30},"Ukupno",null,null,{"$f":"SUM(AH16:AH39)","v":2},{"$f":"SUM(AI16:AI39)","v":1},{"$f":"SUM(AJ16:AJ39)","v":0},{"$f":"SUM(AK16:AK39)","v":19}]